Workbook

Sheet Notes
A1: date: | B1: 2017-11-20
A2: author: | B2: Homelessness Statistics, CAD
A3: data source: | B3: PREVENT1 data for 1 April 2014 to 30 Sept 2017
A4: SAS code at: | B4: \\s0429a\datashare\dd\EAS7\Homelessness\Dissemination\Prevent1 Publications\PREVNT1 to 30 Sept 2017\SAS code
A5: notes: | B5: Where potentially disclosive, figures to be rounded to the nearest five.

Sheet Contents
A1: Housing Options (PREVENT1) Statistics in Scotland: 1 April 2015 to 30 September 2017
A2: Published on 23 January 2018
A4: Note: Where potentially disclosive, figures are rounded to the nearest five.
B5: Contents of Tables
A6: Click here
A7: ► | B7: ='Table 1 - Approaches'!A1 -> Table 1: Total Housing Options approaches by LA and quarter
A9: ► | B9: ='Table 2 - Unique Hhs - 6 months'!A1 -> Table 2: Unique household approaches as a percentage of households in each Local Authority for period 1 April to 30 Sept 2017
A11: ► | B11: ='Table 3 - Open Approaches'!A1 -> Table 3: Open Approaches at the end of each quarter by LA
A13: ► | B13: ='Table 4 - Reasons'!A1 -> Table 4a: Reasons for Approach (Number)
A15: ► | B15: ='Table 4 - Reasons'!A33 -> Table 4b: Reasons for Approach (Percent)
A17: ► | B17: ='Table 4 - Reasons'!A65 -> Table 4c: Reasons for Approach - abbreviated (Number)
A19: ► | B19: ='Table 4 - Reasons'!A73 -> Table 4d: Reasons for Approach - abbreviated (Percent)
A21: ► | B21: ='Table 5 - Maximum Activty Type'!A1 -> Table 5a: Maximum Activity Type (Number)
A23: ► | B23: ='Table 5 - Maximum Activty Type'!A10 -> Table 5b: Maximum Activity Type (Percent)
A25: ► | B25: ='Table 6 - Activities'!A1 -> Table 6a: Housing Options activities by quarter (number)
A27: ► | B27: ='Table 6 - Activities'!A18 -> Table 6b: Housing Options activities by quarter (percent)
A29: ► | B29: ='Table 7 - Activities by LA'!A1 -> Table 7a: Housing Options activities by Local Authority, during the last 6 months, 1 April to 30 September 2017 (number)
A31: ► | B31: ='Table 7 - Activities by LA'!A42 -> Table 7b: Housing Options activities by Local Authority, during the last 6 months, 1 April 2016 to 30 September 2016 (percent)
A33: ► | B33: ='Table 8 - Outcomes by Quarter'!A1 -> Table 8a: Outcomes by Quarter (number)
A35: ► | B35: ='Table 8 - Outcomes by Quarter'!A14 -> Table 8b: Outcomes by Quarter (percent)
A37: ► | B37: ='Table 9 - Outcomes by LA'!A1 -> Table 9a: Outcomes by LA during the last 6 months: 1 April to 30 September 2017
A39: ► | B39: ='Table 9 - Outcomes by LA'!A41 -> Table 9b: Outcomes by LA: 1 April to 30 September 2017
A41: ► | B41: ='Table 10 - Repeat Approaches'!A1 -> Table 10: Households making Repeat Approaches
B43: Contents of Charts
A45: ► | B45: ='Fig 1 - Infographic'!A1 -> Figure 1: Flow diagram of all approaches to Housing Options services in Scotland during April to September 2017
A47: ► | B47: ='Chart 2 - Rates of Approaches'!A1 -> Chart 2: Rates of Approaches per 10,000 households
A49: ► | B49: ='Chart 3.1 - Open Approaches'!A25 -> Chart 3.1: Open approaches as a proportion of all approaches received between 1 April 2014 and 30 September 2017
A51: ► | B51: ='Chart 3.2 Open Approach Durtio'!A1 -> Chart 3.2: Distribution of the number of days approaches have been open
A53: ► | B53: ='Chart 4 - Approach Reasons'!A1 -> Chart 4: Percentage of Approaches by Reason for Approach
A55: ► | B55: ='Chart 5 - Activities Type by Q'!A1 -> Chart 5: Percentage of Approaches with each level of activity type by quarter
A57: ► | B57: ='Chart 6 - Activities'!A1 -> Chart 6: Housing Options Actvities by quarter
A59: ► | B59: ='Chart 7 - Activities by LA'!A1 -> Chart 7: Activities by Local Authority
A61: ► | B61: ='Chart 8.1 - Outcomes by quarter'!A1 -> Chart 8.1: Outcome of Housing Options Approaches by quarter
A63: ► | B63: ='Chart 8.2 - Outcome Durations'!A1 -> Chart 8.2: Distribution of Housing Options approach case durations by outcome, cases closed between 1 April and 30 September 2017
A65: ► | B65: ='Chart 9 - Outcomes by LA'!A1 -> Chart 9: Variation in outcomes for each Local Authority
A67: ► | B67: ='Chart 10 - Homelessness Boxplot'!A1 -> Chart 10: Distribution of the number of days to outcome an approach as a homelessness application
A69: ► | B69: ='Chart 11- Lost Contact NK Boxpl'!A1 -> Chart 11: Distribution of the number of days to outcome approach as Lost Contact or Not Known by LA
A71: ► | B71: ='Chart 12- Repeat Approaches'!A1 -> Chart 12: Proportion of Unique Households in each LA area making Repeat Approaches

Sheet Fig 1 - Infographic
A1: Figure 1: Flow diagram of all approaches to Housing Options services in Scotland during April to September 2017 | N1: Back to Contents
Z8: Outcomes
Y9: ='Table 8 - Outcomes by Quarter'!A39 -> Made homelessness application to local authority | Z9: 10165 | AA9: =Z9/$Z$13 -> 0.4103257579
Y10: ='Table 8 - Outcomes by Quarter'!A40 -> Remained in current accommodation | Z10: 5456 | AA10: =Z10/$Z$13 -> 0.2202397772
Y11: ='Table 8 - Outcomes by Quarter'!A41 -> Lost Contact/ Not known | Z11: 5704 | AA11: 0.2302506761
Y12: ='Table 8 - Outcomes by Quarter'!A42 -> Moved into Alternative Accommodation | Z12: 3448 | AA12: 0.1391837888
Z13: =SUM(Z9:Z12) -> 24773

Sheet Fig 1 - Infographic (2)
C1: Figure 1: Flow diagram of all approaches to Housing Options services in Scotland during April to September 2017
H8: Outcomes
G9: ='Table 8 - Outcomes by Quarter'!A39 -> Made homelessness application to local authority | H9: 10165 | I9: =H9/$H$13 -> 0.4103257579
G10: ='Table 8 - Outcomes by Quarter'!A40 -> Remained in current accommodation | H10: 5456 | I10: =H10/$H$13 -> 0.2202397772
G11: ='Table 8 - Outcomes by Quarter'!A41 -> Lost Contact/ Not known | H11: 5704 | I11: 0.2302506761
G12: ='Table 8 - Outcomes by Quarter'!A42 -> Moved into Alternative Accommodation | H12: 3448 | I12: 0.1391837888
H13: =SUM(H9:H12) -> 24773

Sheet Table 1 - Approaches
A1: Table 1: Total Housing Options approaches by LA and quarter | R1: Back to Contents
A3: Local Authority | R3: Bi-annual change | W3: Annual change
B4: 2014 Q2 | C4: 2014 Q3 | D4: 2014 Q4 | E4: 2015 Q1 | F4: 2015 Q2 | G4: 2015 Q3 | H4: 2015 Q4 | I4: 2016 Q1 | J4: 2016 Q2 | K4: 2016 Q3 | L4: 2016 Q4 | M4: 2017 Q1 | N4: 2017 Q2 | O4: 2017 Q3 | P4: Total | R4: April to Sept 2016 | S4: April to Sept 2017 | T4: Change | U4: % | W4: Year to end Sept 2016 | X4: Year to end Sept 2017 | Y4: change | Z4: %
A5: Scotland | B5: 16025 | C5: 16200 | D5: 13920 | E5: 16945 | F5: 14670 | G5: 14595 | H5: 12375 | I5: 14840 | J5: 13570 | K5: 13320 | L5: 11355 | M5: 13615 | N5: 12210 | O5: 11125 | P5: 194770 | R5: =SUM(J5:K5) -> 26890 | S5: =SUM(N5:O5) -> 23335 | T5: =S5-R5 -> -3555 | U5: =T5/R5 -> -0.1322052808 | W5: =SUM(H5:K5) -> 54105 | X5: =SUM(L5:O5) -> 48305 | Y5: =X5-W5 -> -5800 | Z5: =Y5/W5 -> -0.107198965
A6: Aberdeen City | B6: 1165 | C6: 1595 | D6: 1615 | E6: 1910 | F6: 1710 | G6: 1580 | H6: 1330 | I6: 1515 | J6: 1415 | K6: 1400 | L6: 1025 | M6: 1345 | N6: 1220 | O6: 1005 | P6: 19830 | R6: =SUM(J6:K6) -> 2815 | S6: =SUM(N6:O6) -> 2225 | T6: =S6-R6 -> -590 | U6: =T6/R6 -> -0.2095914742 | W6: =SUM(H6:K6) -> 5660 | X6: =SUM(L6:O6) -> 4595 | Y6: =X6-W6 -> -1065 | Z6: =Y6/W6 -> -0.1881625442
A7: Aberdeenshire | B7: 575 | C7: 480 | D7: 420 | E7: 615 | F7: 560 | G7: 530 | H7: 435 | I7: 575 | J7: 480 | K7: 460 | L7: 390 | M7: 460 | N7: 405 | O7: 420 | P7: 6805 | R7: 940 | S7: 825 | T7: -115 | U7: -0.1223404255 | W7: 1950 | X7: 1675 | Y7: -275 | Z7: -0.141025641
A8: Angus | B8: 275 | C8: 275 | D8: 240 | E8: 295 | F8: 260 | G8: 250 | H8: 180 | I8: 215 | J8: 290 | K8: 305 | L8: 190 | M8: 270 | N8: 180 | O8: 200 | P8: 3425 | R8: 595 | S8: 380 | T8: -215 | U8: -0.3613445378 | W8: 990 | X8: 840 | Y8: -150 | Z8: -0.1515151515
A9: Argyll & Bute | B9: 130 | C9: 100 | D9: 260 | E9: 640 | F9: 580 | G9: 455 | H9: 400 | I9: 465 | J9: 435 | K9: 490 | L9: 375 | M9: 480 | N9: 520 | O9: 465 | P9: 5795 | R9: 925 | S9: 985 | T9: 60 | U9: 0.06486486486 | W9: 1790 | X9: 1840 | Y9: 50 | Z9: 0.02793296089
A10: Clackmannanshire | B10: 30 | C10: 45 | D10: 30 | E10: 25 | F10: 15 | G10: 50 | H10: 30 | I10: 25 | J10: 125 | K10: 100 | L10: 90 | M10: 180 | N10: 150 | O10: 120 | P10: 1010 | R10: 225 | S10: 270 | T10: 45 | U10: 0.2 | W10: 280 | X10: 540 | Y10: 260 | Z10: 0.9285714286
A11: Dumfries & Galloway | B11: 235 | C11: 250 | D11: 195 | E11: 210 | F11: 230 | G11: 200 | H11: 190 | I11: 235 | J11: 220 | K11: 255 | L11: 205 | M11: 300 | N11: 235 | O11: 255 | P11: 3220 | R11: 475 | S11: 490 | T11: 15 | U11: 0.03157894737 | W11: 900 | X11: 995 | Y11: 95 | Z11: 0.1055555556
A12: Dundee City | B12: 765 | C12: 785 | D12: 440 | E12: 480 | F12: 545 | G12: 550 | H12: 490 | I12: 615 | J12: 530 | K12: 500 | L12: 465 | M12: 655 | N12: 350 | O12: 240 | P12: 7420 | R12: 1030 | S12: 590 | T12: -440 | U12: -0.427184466 | W12: 2135 | X12: 1710 | Y12: -425 | Z12: -0.1990632319
A13: East Ayrshire | B13: 65 | C13: 45 | D13: 20 | E13: 25 | F13: 5 | G13: 5 | H13: 0 | I13: 30 | J13: 15 | K13: 30 | L13: 25 | M13: 30 | N13: 20 | O13: 10 | P13: 330 | R13: 45 | S13: 30 | T13: -15 | U13: -0.3333333333 | W13: 75 | X13: 85 | Y13: 10 | Z13: 0.1333333333
A14: East Dunbartonshire | B14: 35 | C14: 30 | D14: 35 | E14: 35 | F14: 35 | G14: 40 | H14: 25 | I14: 70 | J14: 60 | K14: 125 | L14: 90 | M14: 150 | N14: 105 | O14: 60 | P14: 885 | R14: 185 | S14: 165 | T14: -20 | U14: -0.1081081081 | W14: 280 | X14: 405 | Y14: 125 | Z14: 0.4464285714
A15: East Lothian | B15: 125 | C15: 110 | D15: 65 | E15: 135 | F15: 90 | G15: 110 | H15: 90 | I15: 70 | J15: 55 | K15: 40 | L15: 50 | M15: 55 | N15: 25 | O15: 25 | P15: 1040 | R15: 95 | S15: 50 | T15: -45 | U15: -0.4736842105 | W15: 255 | X15: 155 | Y15: -100 | Z15: -0.3921568627
A16: East Renfrewshire | B16: 40 | C16: 50 | D16: 45 | E16: 25 | F16: 45 | G16: 50 | H16: 45 | I16: 50 | J16: 55 | K16: 45 | L16: 40 | M16: 45 | N16: 35 | O16: 30 | P16: 595 | R16: 100 | S16: 65 | T16: -35 | U16: -0.35 | W16: 195 | X16: 150 | Y16: -45 | Z16: -0.2307692308
A17: Edinburgh | B17: 1940 | C17: 2105 | D17: 1960 | E17: 2170 | F17: 2045 | G17: 1930 | H17: 1785 | I17: 1845 | J17: 1760 | K17: 1600 | L17: 1470 | M17: 1595 | N17: 1465 | O17: 1275 | P17: 24940 | R17: 3360 | S17: 2740 | T17: -620 | U17: -0.1845238095 | W17: 6990 | X17: 5805 | Y17: -1185 | Z17: -0.169527897
A18: Eilean Siar | B18: 5 | C18: 5 | D18: 0 | E18: 5 | F18: 0 | G18: 0 | H18: 5 | I18: 5 | J18: 0 | K18: 0 | L18: 0 | M18: 10 | N18: 0 | O18: 0 | P18: 45 | R18: 0 | S18: 0 | T18: - | U18: - | W18: 10 | X18: 10 | Y18: 0 | Z18: 0
A19: Falkirk | B19: 565 | C19: 580 | D19: 435 | E19: 475 | F19: 440 | G19: 470 | H19: 395 | I19: 520 | J19: 485 | K19: 515 | L19: 450 | M19: 540 | N19: 505 | O19: 460 | P19: 6840 | R19: 1000 | S19: 965 | T19: -35 | U19: -0.035 | W19: 1915 | X19: 1955 | Y19: 40 | Z19: 0.02088772846
A20: Fife | B20: 805 | C20: 830 | D20: 650 | E20: 905 | F20: 845 | G20: 715 | H20: 560 | I20: 695 | J20: 700 | K20: 690 | L20: 570 | M20: 735 | N20: 715 | O20: 590 | P20: 10005 | R20: 1390 | S20: 1305 | T20: -85 | U20: -0.06115107914 | W20: 2645 | X20: 2610 | Y20: -35 | Z20: -0.01323251418
A21: Glasgow City | B21: 3685 | C21: 3210 | D21: 2845 | E21: 3325 | F21: 2115 | G21: 2720 | H21: 2385 | I21: 2890 | J21: 2525 | K21: 2520 | L21: 2085 | M21: 2590 | N21: 2485 | O21: 2365 | P21: 37750 | R21: 5045 | S21: 4850 | T21: -195 | U21: -0.03865213082 | W21: 10320 | X21: 9525 | Y21: -795 | Z21: -0.07703488372
A22: Highland | B22: 490 | C22: 490 | D22: 345 | E22: 400 | F22: 465 | G22: 430 | H22: 330 | I22: 325 | J22: 160 | K22: 130 | L22: 75 | M22: 110 | N22: 80 | O22: 30 | P22: 3855 | R22: 290 | S22: 110 | T22: -180 | U22: -0.6206896552 | W22: 945 | X22: 295 | Y22: -650 | Z22: -0.6878306878
A23: Inverclyde | B23: 225 | C23: 305 | D23: 215 | E23: 250 | F23: 240 | G23: 215 | H23: 205 | I23: 265 | J23: 235 | K23: 210 | L23: 225 | M23: 275 | N23: 220 | O23: 240 | P23: 3330 | R23: 445 | S23: 460 | T23: 15 | U23: 0.03370786517 | W23: 915 | X23: 960 | Y23: 45 | Z23: 0.04918032787
A24: Midlothian | B24: 160 | C24: 130 | D24: 90 | E24: 125 | F24: 125 | G24: 90 | H24: 85 | I24: 115 | J24: 100 | K24: 110 | L24: 90 | M24: 90 | N24: 65 | O24: 75 | P24: 1450 | R24: 210 | S24: 140 | T24: -70 | U24: -0.3333333333 | W24: 410 | X24: 320 | Y24: -90 | Z24: -0.2195121951
A25: Moray | B25: 325 | C25: 305 | D25: 270 | E25: 340 | F25: 315 | G25: 230 | H25: 225 | I25: 325 | J25: 255 | K25: 265 | L25: 240 | M25: 320 | N25: 280 | O25: 280 | P25: 3975 | R25: 520 | S25: 560 | T25: 40 | U25: 0.07692307692 | W25: 1070 | X25: 1120 | Y25: 50 | Z25: 0.04672897196
A26: North Ayrshire | B26: 470 | C26: 480 | D26: 410 | E26: 565 | F26: 470 | G26: 480 | H26: 380 | I26: 470 | J26: 435 | K26: 380 | L26: 320 | M26: 435 | N26: 425 | O26: 435 | P26: 6150 | R26: 815 | S26: 860 | T26: 45 | U26: 0.05521472393 | W26: 1665 | X26: 1615 | Y26: -50 | Z26: -0.03003003003
A27: North Lanarkshire | B27: 920 | C27: 875 | D27: 740 | E27: 995 | F27: 900 | G27: 925 | H27: 725 | I27: 875 | J27: 835 | K27: 830 | L27: 910 | M27: 630 | N27: 470 | O27: 445 | P27: 11065 | R27: 1665 | S27: 915 | T27: -750 | U27: -0.4504504505 | W27: 3265 | X27: 2455 | Y27: -810 | Z27: -0.248085758
A28: Orkney | B28: 10 | C28: 15 | D28: 15 | E28: 15 | F28: 10 | G28: 20 | H28: 10 | I28: 20 | J28: 10 | K28: 10 | L28: 5 | M28: 5 | N28: 5 | O28: 5 | P28: 155 | R28: 20 | S28: 10 | T28: -10 | U28: -0.5 | W28: 50 | X28: 20 | Y28: -30 | Z28: -0.6
A29: Perth & Kinross | B29: 565 | C29: 535 | D29: 485 | E29: 550 | F29: 460 | G29: 545 | H29: 435 | I29: 550 | J29: 575 | K29: 590 | L29: 525 | M29: 670 | N29: 635 | O29: 620 | P29: 7740 | R29: 1165 | S29: 1255 | T29: 90 | U29: 0.07725321888 | W29: 2150 | X29: 2450 | Y29: 300 | Z29: 0.1395348837
A30: Renfrewshire | B30: 460 | C30: 520 | D30: 460 | E30: 550 | F30: 535 | G30: 520 | H30: 470 | I30: 585 | J30: 530 | K30: 540 | L30: 485 | M30: 560 | N30: 525 | O30: 490 | P30: 7225 | R30: 1070 | S30: 1015 | T30: -55 | U30: -0.05140186916 | W30: 2125 | X30: 2060 | Y30: -65 | Z30: -0.03058823529
A31: Scottish Borders | B31: 275 | C31: 255 | D31: 200 | E31: 270 | F31: 260 | G31: 240 | H31: 160 | I31: 205 | J31: 210 | K31: 220 | L31: 165 | M31: 255 | N31: 190 | O31: 185 | P31: 3095 | R31: 430 | S31: 375 | T31: -55 | U31: -0.1279069767 | W31: 795 | X31: 795 | Y31: 0 | Z31: 0
A32: Shetland | B32: 100 | C32: 65 | D32: 75 | E32: 65 | F32: 40 | G32: 40 | H32: 45 | I32: 40 | J32: 50 | K32: 45 | L32: 55 | M32: 50 | N32: 45 | O32: 65 | P32: 780 | R32: 95 | S32: 110 | T32: 15 | U32: 0.1578947368 | W32: 180 | X32: 215 | Y32: 35 | Z32: 0.1944444444
A33: South Ayrshire | B33: 240 | C33: 230 | D33: 245 | E33: 350 | F33: 365 | G33: 395 | H33: 355 | I33: 450 | J33: 310 | K33: 260 | L33: 225 | M33: 215 | N33: 255 | O33: 265 | P33: 4170 | R33: 570 | S33: 520 | T33: -50 | U33: -0.08771929825 | W33: 1375 | X33: 960 | Y33: -415 | Z33: -0.3018181818
A34: South Lanarkshire | B34: 345 | C34: 365 | D34: 255 | E34: 335 | F34: 260 | G34: 315 | H34: 235 | I34: 265 | J34: 225 | K34: 195 | L34: 175 | M34: 260 | N34: 225 | O34: 190 | P34: 3640 | R34: 420 | S34: 415 | T34: -5 | U34: -0.0119047619 | W34: 920 | X34: 850 | Y34: -70 | Z34: -0.07608695652
A35: Stirling | B35: 200 | C35: 235 | D35: 155 | E35: 55 | F35: 100 | G35: 105 | H35: 80 | I35: 130 | J35: 105 | K35: 90 | L35: 50 | M35: 70 | N35: 90 | O35: 85 | P35: 1550 | R35: 195 | S35: 175 | T35: -20 | U35: -0.1025641026 | W35: 405 | X35: 295 | Y35: -110 | Z35: -0.2716049383
A36: West Dunbartonshire | B36: 420 | C36: 465 | D36: 385 | E36: 385 | F36: 285 | G36: 45 | H36: 20 | I36: 35 | J36: 40 | K36: 60 | L36: 40 | M36: 55 | N36: 60 | O36: 55 | P36: 2355 | R36: 100 | S36: 115 | T36: 15 | U36: 0.15 | W36: 155 | X36: 210 | Y36: 55 | Z36: 0.3548387097
A37: West Lothian | B37: 370 | C37: 430 | D37: 315 | E37: 430 | F37: 330 | G37: 340 | H37: 275 | I37: 370 | J37: 335 | K37: 300 | L37: 255 | M37: 180 | N37: 225 | O37: 150 | P37: 4305 | R37: 635 | S37: 375 | T37: -260 | U37: -0.4094488189 | W37: 1280 | X37: 810 | Y37: -470 | Z37: -0.3671875
A39: NB: Disclosure Control has been applied to this table. All cells have been rounded to the nearest five.
A40: Column totals may not sum to total of individual cells due to rounding.

Sheet Chart 1 - Apps v open apps
A1: Chart 1: Number of Housing Options Approaches by Month | R1: Back to Contents
AC45: =AVERAGE(Y50:AD50) -> 4481.166667
A48: 2014 | J48: 2015 | V48: 2016 | AH48: 2017
C49: Jun | F49: Sep | I49: Dec | L49: Mar | O49: Jun | R49: Sep | U49: Dec | X49: Mar | AA49: Jun | AD49: Sep | AG49: Dec | AJ49: Mar | AM49: Jun | AP49: Sep
A50: 5418 | B50: 5127 | C50: 5480 | D50: 5473 | E50: 5286 | F50: 5441 | G50: 5556 | H50: 4696 | I50: 3668 | J50: 5589 | K50: 5513 | L50: 5845 | M50: 4900 | N50: 4798 | O50: 4974 | P50: 4734 | Q50: 4994 | R50: 4867 | S50: 4715 | T50: 4438 | U50: 3222 | V50: 4774 | W50: 4988 | X50: 5079 | Y50: 4555 | Z50: 4408 | AA50: 4605 | AB50: 4054 | AC50: 4712 | AD50: 4553 | AE50: 4293 | AF50: 4155 | AG50: 2909 | AH50: 4482 | AI50: 4303 | AJ50: 4830 | AK50: 3768 | AL50: 4337 | AM50: 4105 | AN50: 3771 | AO50: 4085 | AP50: 3271
R53: =R50-L50 -> -978 | S53: =S50-M50 -> -185 | T53: -360 | U53: -1752 | V53: 40 | W53: -6 | X53: 212 | Y53: -160 | Z53: -30 | AA53: 1383 | AB53: -720 | AC53: -276 | AD53: -526 | AE53: =AE50-Y50 -> -262 | AF53: =AF50-Z50 -> -253 | AG53: -1696 | AH53: 428 | AI53: -409 | AJ53: 277 | AK53: -525 | AL53: 182 | AM53: 1196 | AN53: -711 | AO53: -218 | AP53: -1559
R54: =R53/L50 -> -0.1673224979 | S54: =S53/M50 -> -0.03775510204 | T54: -0.07503126303 | U54: -0.3522316043 | V54: 0.008449514153 | W54: -0.00120144173 | X54: 0.04355866037 | Y54: -0.03393425239 | Z54: -0.006759801712 | AA54: 0.4292364991 | AB54: -0.150816925 | AC54: -0.05533279872 | AD54: -0.1035636936 | AE54: =AE53/Y50 -> -0.05751920966 | AF54: =AF53/Z50 -> -0.05739564428 | AG54: -0.3682953312 | AH54: 0.105574741 | AI54: -0.08679966044 | AJ54: 0.06083900725 | AK54: -0.1222921034 | AL54: 0.04380264741 | AM54: 0.4111378481 | AN54: -0.1586345382 | AO54: -0.05066232861 | AP54: -0.3227743271
B57: 2014-06-30 | C57: 2014-09-30 | D57: 2014-12-31 | E57: 2015-03-31 | F57: 2015-06-30 | G57: 2015-09-30 | H57: 2015-12-31 | I57: 2016-03-31 | J57: 2016-06-30 | K57: 2016-09-30 | L57: 2016-12-31 | M57: 2017-03-31 | N57: 2017-06-30 | O57: 2017-09-30
A58: Open approaches | B58: 7440 | C58: 9630 | D58: 10215 | E58: 13765 | F58: 15690 | G58: 17060 | H58: 16550 | I58: 18270 | J58: 18875 | K58: 19815 | L58: 19580 | M58: 18495 | N58: 16715 | O58: 17060
A59: New approaches | B59: 16025 | C59: 16200 | D59: 13920 | E59: 16945 | F59: 14670 | G59: 14595 | H59: 12375 | I59: 14840 | J59: 13570 | K59: 13320 | L59: 11355 | M59: 13615 | N59: 12210 | O59: 11125

Sheet Table 2 - Unique Hhs - 6 months
A1: Table 2: Unique household approaches as a percentage of households in each Local Authority for period 1 April to 30 Sept 2017
E2: Back to Contents
A3: Local Authority | B3: Number of households1 | C3: Unique household approaches | D3: Unique household approaches as % of households within LA | G3: Number of approaches per 10,000 households
C4: 1 April 2014 to 31 March 2015
A5: Scotland | B5: 2451869 | C5: 21875 | D5: =C5/B5 -> 0.008921765396 | G5: =C5/B5*10000 -> 89.21765396
A6: Aberdeen City | B6: 106749 | C6: 2130 | D6: 0.01995334851 | G6: 199.5334851
A7: Aberdeenshire | B7: 110296 | C7: 785 | D7: 0.007117211866 | G7: 71.17211866
A8: Angus | B8: 53333 | C8: 370 | D8: 0.00693754336 | G8: 69.3754336
A9: Argyll & Bute | B9: 41040 | C9: 840 | D9: 0.02046783626 | G9: 204.6783626
A10: Clackmannanshire | B10: 23401 | C10: 260 | D10: 0.0111106363 | G10: 111.106363
A11: Dumfries & Galloway | B11: 69202 | C11: 470 | D11: 0.006791711222 | G11: 67.91711222
A12: Dundee City | B12: 69635 | C12: 570 | D12: 0.008185538881 | G12: 81.85538881
A13: East Ayrshire | B13: 54748 | C13: 30 | D13: 0.0005479652225 | G13: 5.479652225
A14: East Dunbartonshire | B14: 45350 | C14: 150 | D14: 0.003307607497 | G14: 33.07607497
A15: East Lothian | B15: 44749 | C15: 50 | D15: 0.001117343404 | G15: 11.17343404
A16: East Renfrewshire | B16: 38581 | C16: 65 | D16: 0.001684767113 | G16: 16.84767113
A17: Edinburgh, City of | B17: 232885 | C17: 2640 | D17: 0.01133606716 | G17: 113.3606716
A18: Eilean Siar | B18: 12951 | C18: 0 | D18: 0 | G18: 0
A19: Falkirk | B19: 71072 | C19: 870 | D19: 0.01224110761 | G19: 122.4110761
A20: Fife | B20: 165833 | C20: 1235 | D20: 0.00744725115 | G20: 74.4725115
A21: Glasgow City | B21: 293595 | C21: 4400 | D21: 0.01498663124 | G21: 149.8663124
A22: Highland | B22: 107573 | C22: 110 | D22: 0.001022561423 | G22: 10.22561423
A23: Inverclyde | B23: 37586 | C23: 390 | D23: 0.01037620391 | G23: 103.7620391
A24: Midlothian | B24: 37766 | C24: 135 | D24: 0.00357464386 | G24: 35.7464386
A25: Moray | B25: 41961 | C25: 540 | D25: 0.01286909273 | G25: 128.6909273
A26: North Ayrshire | B26: 63440 | C26: 835 | D26: 0.01316204288 | G26: 131.6204288
A27: North Lanarkshire | B27: 150364 | C27: 900 | D27: 0.005985475247 | G27: 59.85475247
A28: Orkney Islands | B28: 10256 | C28: 15 | D28: 0.001462558502 | G28: 14.62558502
A29: Perth & Kinross | B29: 67101 | C29: 1110 | D29: 0.01654222739 | G29: 165.4222739
A30: Renfrewshire | B30: 84025 | C30: 945 | D30: 0.01124665278 | G30: 112.4665278
A31: Scottish Borders | B31: 53787 | C31: 365 | D31: 0.006786026363 | G31: 67.86026363
A32: Shetland Islands | B32: 10283 | C32: 105 | D32: 0.01021102791 | G32: 102.1102791
A33: South Ayrshire | B33: 51923 | C33: 505 | D33: 0.009725940335 | G33: 97.25940335
A34: South Lanarkshire | B34: 144148 | C34: 405 | D34: 0.002809612343 | G34: 28.09612343
A35: Stirling | B35: 38951 | C35: 170 | D35: 0.004364457909 | G35: 43.64457909
A36: West Dunbartonshire | B36: 42657 | C36: 115 | D36: 0.002695923295 | G36: 26.95923295
A37: West Lothian | B37: 76630 | C37: 365 | D37: 0.004763147592 | G37: 47.63147592
A39: 1) Source: National Records of Scotland: Estimates of Households and Dwellings in Scotland, 2016
A40: http://www.gro-scotland.gov.uk/statistics-and-data/statistics/statistics-by-theme/housholds/household-estimates
A41: NB Unique household approaches are rounded to 5 for disclosure purposes.
A47: Data for chart
A49: Eilean Siar | B49: 0.0001544282295 | D49: Eilean Siar | E49: 0
A50: East Ayrshire | B50: 0.0005662307299 | D50: East Ayrshire | E50: 5.479652225
A51: Highland | B51: 0.001003969398 | D51: Highland | E51: 10.22561423
A52: East Lothian | B52: 0.001072649668 | D52: East Lothian | E52: 11.17343404
A53: Orkney Islands | B53: 0.001267550702 | D53: Orkney Islands | E53: 14.62558502
A54: East Renfrewshire | B54: 0.001658847619 | D54: East Renfrewshire | E54: 16.84767113
A55: West Dunbartonshire | B55: 0.002649037673 | D55: West Dunbartonshire | E55: 26.95923295
A56: South Lanarkshire | B56: 0.002823486972 | D56: South Lanarkshire | E56: 28.09612343
A57: East Dunbartonshire | B57: 0.003285556781 | D57: East Dunbartonshire | E57: 33.07607497
A58: Midlothian | B58: 0.003627601546 | D58: Midlothian | E58: 35.7464386
A59: Stirling | B59: 0.004415804472 | D59: Stirling | E59: 43.64457909
A60: West Lothian | B60: 0.004763147592 | D60: West Lothian | E60: 47.63147592
A61: North Lanarkshire | B61: 0.005992125775 | D61: North Lanarkshire | E61: 59.85475247
A62: Scottish Borders | B62: 0.006804618216 | D62: Scottish Borders | E62: 67.86026363
A63: Dumfries & Galloway | B63: 0.006806161672 | D63: Dumfries & Galloway | E63: 67.91711222
A64: Angus | B64: 0.006918793242 | D64: Angus | E64: 69.3754336
A65: Aberdeenshire | B65: 0.007108145354 | D65: Aberdeenshire | E65: 71.17211866
A66: Fife | B66: 0.007453281313 | D66: Fife | E66: 74.4725115
A67: Dundee City | B67: 0.008156817692 | D67: Dundee City | E67: 81.85538881
A68: Scotland | B68: 0.008922173248 | D68: Scotland | E68: 89.21765396
A69: South Ayrshire | B69: 0.009706681047 | D69: South Ayrshire | E69: 97.25940335
A70: Shetland Islands | B70: 0.0103082758 | D70: Shetland Islands | E70: 102.1102791
A71: Inverclyde | B71: 0.01037620391 | D71: Inverclyde | E71: 103.7620391
A72: Clackmannanshire | B72: 0.01119610273 | D72: Clackmannanshire | E72: 111.106363
A73: Renfrewshire | B73: 0.01122285034 | D73: Renfrewshire | E73: 112.4665278
A74: Edinburgh, City of | B74: 0.01133177319 | D74: Edinburgh, City of | E74: 113.3606716
A75: Falkirk | B75: 0.01225517785 | D75: Falkirk | E75: 122.4110761
A76: Moray | B76: 0.01289292438 | D76: Moray | E76: 128.6909273
A77: North Ayrshire | B77: 0.0131778058 | D77: North Ayrshire | E77: 131.6204288
A78: Glasgow City | B78: 0.01498663124 | D78: Glasgow City | E78: 149.8663124
A79: Perth & Kinross | B79: 0.01651242157 | D79: Perth & Kinross | E79: 165.4222739
A80: Aberdeen City | B80: 0.01995334851 | D80: Aberdeen City | E80: 199.5334851
A81: Argyll & Bute | B81: 0.0205165692 | D81: Argyll & Bute | E81: 204.6783626

Sheet Chart 2 - Rates of Approaches
A1: Chart 2: Rates of Approaches per 10,000 households | N1: Back to Contents
A2: Households making approaches between 1 April and 30 Sept 2017

Sheet Table 2B - Unique Hhs - all
A1: Table 2: Unique household approaches as a percentage of households in each Local Authority for period 1 April 2014 to 30 Sept 2017
E2: Back to Contents
A3: Local Authority | B3: Number of households1 | C3: Unique household approaches | D3: Unique household approaches as % of households within LA | G3: Number of approaches per 10,000 households
C4: 1 April 2014 to 31 March 2015
A5: Scotland | B5: 2451869 | C5: 150661 | D5: =C5/B5 -> 0.06144741012 | G5: =C5/B5*10000 -> 614.4741012
A6: Aberdeen City | B6: 106749 | C6: 16549 | D6: =C6/B6 -> 0.1550272134 | G6: =C6/B6*10000 -> 1550.272134
A7: Aberdeenshire | B7: 110296 | C7: 5116 | D7: 0.04638427504 | G7: 463.8427504
A8: Angus | B8: 53333 | C8: 2984 | D8: 0.05595034969 | G8: 559.5034969
A9: Argyll & Bute | B9: 41040 | C9: 3580 | D9: 0.08723196881 | G9: 872.3196881
A10: Clackmannanshire | B10: 23401 | C10: 855 | D10: 0.03653690013 | G10: 365.3690013
A11: Dumfries & Galloway | B11: 69202 | C11: 2535 | D11: 0.03663188925 | G11: 366.3188925
A12: Dundee City | B12: 69635 | C12: 5880 | D12: 0.08444029583 | G12: 844.4029583
A13: East Ayrshire | B13: 54748 | C13: 320 | D13: 0.005844962373 | G13: 58.44962373
A14: East Dunbartonshire | B14: 45350 | C14: 746 | D14: 0.01644983462 | G14: 164.4983462
A15: East Lothian | B15: 44749 | C15: 942 | D15: 0.02105074974 | G15: 210.5074974
A16: East Renfrewshire | B16: 38581 | C16: 533 | D16: 0.01381509033 | G16: 138.1509033
A17: Edinburgh, City of | B17: 232885 | C17: 19315 | D17: 0.08293793074 | G17: 829.3793074
A18: Eilean Siar | B18: 12951 | C18: 38 | D18: 0.00293413636 | G18: 29.3413636
A19: Falkirk | B19: 71072 | C19: 5089 | D19: 0.07160344439 | G19: 716.0344439
A20: Fife | B20: 165833 | C20: 7922 | D20: 0.04777095029 | G20: 477.7095029
A21: Glasgow City | B21: 293595 | C21: 25662 | D21: 0.08740612068 | G21: 874.0612068
A22: Highland | B22: 107573 | C22: 3534 | D22: 0.03285210973 | G22: 328.5210973
A23: Inverclyde | B23: 37586 | C23: 2049 | D23: 0.05451497898 | G23: 545.1497898
A24: Midlothian | B24: 37766 | C24: 1180 | D24: 0.03124503522 | G24: 312.4503522
A25: Moray | B25: 41961 | C25: 3306 | D25: 0.07878744549 | G25: 787.8744549
A26: North Ayrshire | B26: 63440 | C26: 4973 | D26: 0.078389029 | G26: 783.89029
A27: North Lanarkshire | B27: 150364 | C27: 9339 | D27: 0.06210928148 | G27: 621.0928148
A28: Orkney Islands | B28: 10256 | C28: 130 | D28: 0.01267550702 | G28: 126.7550702
A29: Perth & Kinross | B29: 67101 | C29: 5795 | D29: 0.08636234929 | G29: 863.6234929
A30: Renfrewshire | B30: 84025 | C30: 5289 | D30: 0.06294555192 | G30: 629.4555192
A31: Scottish Borders | B31: 53787 | C31: 2528 | D31: 0.04700020451 | G31: 470.0020451
A32: Shetland Islands | B32: 10283 | C32: 660 | D32: 0.06418360401 | G32: 641.8360401
A33: South Ayrshire | B33: 51923 | C33: 3258 | D33: 0.06274675962 | G33: 627.4675962
A34: South Lanarkshire | B34: 144148 | C34: 3225 | D34: 0.02237283903 | G34: 223.7283903
A35: Stirling | B35: 38951 | C35: 1334 | D35: 0.03424815794 | G35: 342.4815794
A36: West Dunbartonshire | B36: 42657 | C36: 2093 | D36: 0.04906580397 | G36: 490.6580397
A37: West Lothian | B37: 76630 | C37: 3902 | D37: 0.05092000522 | G37: 509.2000522
A39: 1) Source: National Records of Scotland: Estimates of Households and Dwellings in Scotland, 2016
A40: http://www.gro-scotland.gov.uk/statistics-and-data/statistics/statistics-by-theme/housholds/household-estimates
A47: Data for chart
A49: Eilean Siar | B49: 0.00293413636
A50: East Ayrshire | B50: 0.005844962373
A51: Orkney Islands | B51: 0.01267550702
A52: East Renfrewshire | B52: 0.01381509033
A53: East Dunbartonshire | B53: 0.01644983462
A54: East Lothian | B54: 0.02105074974
A55: South Lanarkshire | B55: 0.02237283903
A56: Midlothian | B56: 0.03124503522
A57: Highland | B57: 0.03285210973
A58: Stirling | B58: 0.03424815794
A59: Clackmannanshire | B59: 0.03653690013
A60: Dumfries & Galloway | B60: 0.03663188925
A61: Aberdeenshire | B61: 0.04638427504
A62: Scottish Borders | B62: 0.04700020451
A63: Fife | B63: 0.04777095029
A64: West Dunbartonshire | B64: 0.04906580397
A65: West Lothian | B65: 0.05092000522
A66: Inverclyde | B66: 0.05451497898
A67: Angus | B67: 0.05595034969
A68: Scotland | B68: 0.06144741012
A69: North Lanarkshire | B69: 0.06210928148
A70: South Ayrshire | B70: 0.06274675962
A71: Renfrewshire | B71: 0.06294555192
A72: Shetland Islands | B72: 0.06418360401
A73: Falkirk | B73: 0.07160344439
A74: North Ayrshire | B74: 0.078389029
A75: Moray | B75: 0.07878744549
A76: Edinburgh, City of | B76: 0.08293793074
A77: Dundee City | B77: 0.08444029583
A78: Perth & Kinross | B78: 0.08636234929
A79: Argyll & Bute | B79: 0.08723196881
A80: Glasgow City | B80: 0.08740612068
A81: Aberdeen City | B81: 0.1550272134

Sheet Table 3 - Open Approaches
A1: Table 3: Open Approaches at the end of each quarter by LA | W1: Back to Contents
A3: Local Authority | B3: Number of Approaches Open at the end of each Quarter | W3: Total Approaches received 1 April 2014 to 30 Sept 2017 | X3: Open Approaches as a % of all Approaches | Z3: Annual change
B4: 2014-06-30 | C4: 2014-09-30 | D4: 2014-12-31 | E4: 2015-03-31 | F4: 2015-06-30 | G4: 2015-09-30 | H4: 2015-12-31 | I4: 2016-03-31 | J4: 2016-06-30 | K4: 2016-09-30 | L4: 2016-12-31 | M4: 2017-03-31 | N4: 2017-06-30 | O4: 2017-09-30 | Z4: Open approaches on 30 Sept 2017 compared to 30 Sept 2016
A5: Scotland | B5: 7440 | C5: 9630 | D5: 10215 | E5: 13765 | F5: 15690 | G5: 17060 | H5: 16550 | I5: 18270 | J5: 18875 | K5: 19815 | L5: 19580 | M5: 18495 | N5: 16715 | O5: 17060 | W5: 194770 | X5: =O5/W5 -> 0.08759049135 | Z5: =O5-K5 -> -2755 | AA5: =Z5/K5 -> -0.1390360838
A6: Aberdeen City | B6: 710 | C6: 1155 | D6: 1390 | E6: 2445 | F6: 3480 | G6: 4165 | H6: 4675 | I6: 5340 | J6: 5630 | K6: 5675 | L6: 5530 | M6: 4200 | N6: 1780 | O6: 1725 | W6: 19830 | X6: =O6/W6 -> 0.08698940998 | Z6: =O6-K6 -> -3950 | AA6: =Z6/K6 -> -0.6960352423
A7: Aberdeenshire | B7: 125 | C7: 150 | D7: 190 | E7: 235 | F7: 240 | G7: 275 | H7: 235 | I7: 370 | J7: 365 | K7: 240 | L7: 220 | M7: 220 | N7: 240 | O7: 220 | W7: 6805 | X7: 0.03232916973 | Z7: -20 | AA7: -0.08333333333
A8: Angus | B8: 85 | C8: 105 | D8: 105 | E8: 150 | F8: 195 | G8: 200 | H8: 180 | I8: 185 | J8: 245 | K8: 290 | L8: 250 | M8: 255 | N8: 170 | O8: 80 | W8: 3425 | X8: 0.02335766423 | Z8: -210 | AA8: -0.724137931
A9: Argyll & Bute | B9: 45 | C9: 15 | D9: 115 | E9: 270 | F9: 315 | G9: 275 | H9: 335 | I9: 340 | J9: 415 | K9: 495 | L9: 430 | M9: 455 | N9: 555 | O9: 595 | W9: 5795 | X9: 0.1026747196 | Z9: 100 | AA9: 0.202020202
A10: Clackmannanshire | B10: 10 | C10: 25 | D10: 25 | E10: 25 | F10: 15 | G10: 25 | H10: 35 | I10: 15 | J10: 35 | K10: 15 | L10: 20 | M10: 85 | N10: 120 | O10: 120 | W10: 1010 | X10: 0.1188118812 | Z10: 105 | AA10: 7
A11: Dumfries & Galloway | B11: 165 | C11: 190 | D11: 180 | E11: 225 | F11: 250 | G11: 240 | H11: 255 | I11: 240 | J11: 180 | K11: 200 | L11: 35 | M11: 30 | N11: 15 | O11: 20 | W11: 3220 | X11: 0.006211180124 | Z11: -180 | AA11: -0.9
A12: Dundee City | B12: 175 | C12: 215 | D12: 60 | E12: 105 | F12: 275 | G12: 255 | H12: 145 | I12: 220 | J12: 170 | K12: 145 | L12: 120 | M12: 180 | N12: 115 | O12: 70 | W12: 7420 | X12: 0.009433962264 | Z12: -75 | AA12: -0.5172413793
A13: East Ayrshire | B13: 50 | C13: 70 | D13: 55 | E13: 45 | F13: 30 | G13: 20 | H13: 5 | I13: 20 | J13: 25 | K13: 35 | L13: 40 | M13: 30 | N13: 25 | O13: 20 | W13: 330 | X13: 0.06060606061 | Z13: -15 | AA13: -0.4285714286
A14: East Dunbartonshire | B14: 10 | C14: 20 | D14: 25 | E14: 20 | F14: 30 | G14: 20 | H14: 20 | I14: 30 | J14: 30 | K14: 35 | L14: 35 | M14: 55 | N14: 55 | O14: 65 | W14: 885 | X14: 0.07344632768 | Z14: 30 | AA14: 0.8571428571
A15: East Lothian | B15: 80 | C15: 95 | D15: 35 | E15: 80 | F15: 55 | G15: 60 | H15: 40 | I15: 45 | J15: 25 | K15: 25 | L15: 25 | M15: 35 | N15: 40 | O15: 50 | W15: 1040 | X15: 0.04807692308 | Z15: 25 | AA15: 1
A16: East Renfrewshire | B16: 35 | C16: 85 | D16: 55 | E16: 50 | F16: 55 | G16: 80 | H16: 90 | I16: 105 | J16: 95 | K16: 80 | L16: 100 | M16: 85 | N16: 115 | O16: 105 | W16: 595 | X16: 0.1764705882 | Z16: 25 | AA16: 0.3125
A17: Edinburgh | B17: 1050 | C17: 1725 | D17: 2015 | E17: 2555 | F17: 2785 | G17: 2835 | H17: 2805 | I17: 2875 | J17: 2960 | K17: 3080 | L17: 3090 | M17: 3230 | N17: 3425 | O17: 3565 | W17: 24940 | X17: 0.1429430634 | Z17: 485 | AA17: 0.1574675325
A18: Eilean Siar | B18: 10 | C18: 10 | D18: 5 | E18: 10 | F18: 10 | G18: 10 | H18: 10 | I18: 10 | J18: 10 | K18: 10 | L18: 5 | M18: 10 | N18: 5 | O18: 5 | W18: 45 | X18: 0.1111111111 | Z18: -5 | AA18: -0.5
A19: Falkirk | B19: 430 | C19: 665 | D19: 840 | E19: 290 | F19: 245 | G19: 265 | H19: 190 | I19: 130 | J19: 100 | K19: 90 | L19: 80 | M19: 40 | N19: 230 | O19: 320 | W19: 6840 | X19: 0.04678362573 | Z19: 230 | AA19: 2.555555556
A20: Fife | B20: 230 | C20: 335 | D20: 185 | E20: 435 | F20: 400 | G20: 455 | H20: 500 | I20: 835 | J20: 925 | K20: 1195 | L20: 1335 | M20: 1650 | N20: 1840 | O20: 2035 | W20: 10005 | X20: 0.2033983008 | Z20: 840 | AA20: 0.7029288703
A21: Glasgow City | B21: 1245 | C21: 1150 | D21: 1160 | E21: 1765 | F21: 1825 | G21: 2290 | H21: 1790 | I21: 1410 | J21: 1430 | K21: 1720 | L21: 1315 | M21: 750 | N21: 730 | O21: 915 | W21: 37750 | X21: 0.0242384106 | Z21: -805 | AA21: -0.4680232558
A22: Highland | B22: 240 | C22: 265 | D22: 205 | E22: 490 | F22: 390 | G22: 280 | H22: 245 | I22: 325 | J22: 190 | K22: 210 | L22: 200 | M22: 165 | N22: 145 | O22: 125 | W22: 3855 | X22: 0.03242542153 | Z22: -85 | AA22: -0.4047619048
A23: Inverclyde | B23: 170 | C23: 325 | D23: 335 | E23: 320 | F23: 335 | G23: 340 | H23: 295 | I23: 305 | J23: 325 | K23: 305 | L23: 340 | M23: 390 | N23: 380 | O23: 435 | W23: 3330 | X23: 0.1306306306 | Z23: 130 | AA23: 0.4262295082
A24: Midlothian | B24: 125 | C24: 185 | D24: 155 | E24: 140 | F24: 170 | G24: 190 | H24: 235 | I24: 345 | J24: 405 | K24: 470 | L24: 490 | M24: 540 | N24: 570 | O24: 615 | W24: 1450 | X24: 0.424137931 | Z24: 145 | AA24: 0.3085106383
A25: Moray | B25: 170 | C25: 190 | D25: 170 | E25: 220 | F25: 225 | G25: 150 | H25: 110 | I25: 200 | J25: 155 | K25: 165 | L25: 115 | M25: 190 | N25: 190 | O25: 205 | W25: 3975 | X25: 0.05157232704 | Z25: 40 | AA25: 0.2424242424
A26: North Ayrshire | B26: 220 | C26: 500 | D26: 605 | E26: 815 | F26: 880 | G26: 1045 | H26: 1090 | I26: 1030 | J26: 1030 | K26: 705 | L26: 590 | M26: 565 | N26: 570 | O26: 580 | W26: 6150 | X26: 0.09430894309 | Z26: -125 | AA26: -0.1773049645
A27: North Lanarkshire | B27: 385 | C27: 445 | D27: 355 | E27: 550 | F27: 760 | G27: 635 | H27: 500 | I27: 685 | J27: 920 | K27: 1335 | L27: 2065 | M27: 2440 | N27: 2570 | O27: 2590 | W27: 11065 | X27: 0.2340713963 | Z27: 1255 | AA27: 0.9400749064
A28: Orkney | B28: 10 | C28: 25 | D28: 20 | E28: 20 | F28: 25 | G28: 25 | H28: 20 | I28: 20 | J28: 15 | K28: 25 | L28: 15 | M28: 5 | N28: 15 | O28: 10 | W28: 155 | X28: 0.06451612903 | Z28: -15 | AA28: -0.6
A29: Perth & Kinross | B29: 300 | C29: 350 | D29: 400 | E29: 560 | F29: 515 | G29: 650 | H29: 720 | I29: 735 | J29: 770 | K29: 900 | L29: 985 | M29: 710 | N29: 530 | O29: 505 | W29: 7740 | X29: 0.06524547804 | Z29: -395 | AA29: -0.4388888889
A30: Renfrewshire | B30: 270 | C30: 235 | D30: 280 | E30: 300 | F30: 330 | G30: 315 | H30: 290 | I30: 365 | J30: 365 | K30: 425 | L30: 405 | M30: 395 | N30: 375 | O30: 315 | W30: 7225 | X30: 0.04359861592 | Z30: -110 | AA30: -0.2588235294
A31: Scottish Borders | B31: 120 | C31: 135 | D31: 110 | E31: 165 | F31: 175 | G31: 150 | H31: 125 | I31: 150 | J31: 160 | K31: 145 | L31: 120 | M31: 145 | N31: 130 | O31: 80 | W31: 3095 | X31: 0.02584814216 | Z31: -65 | AA31: -0.4482758621
A32: Shetland | B32: 50 | C32: 75 | D32: 110 | E32: 115 | F32: 125 | G32: 135 | H32: 145 | I32: 150 | J32: 150 | K32: 135 | L32: 145 | M32: 150 | N32: 135 | O32: 145 | W32: 780 | X32: 0.1858974359 | Z32: 10 | AA32: 0.07407407407
A33: South Ayrshire | B33: 135 | C33: 200 | D33: 220 | E33: 355 | F33: 460 | G33: 535 | H33: 390 | I33: 475 | J33: 465 | K33: 370 | L33: 240 | M33: 235 | N33: 300 | O33: 370 | W33: 4170 | X33: 0.08872901679 | Z33: 0 | AA33: 0
A34: South Lanarkshire | B34: 465 | C34: 300 | D34: 440 | E34: 480 | F34: 490 | G34: 595 | H34: 560 | I34: 680 | J34: 680 | K34: 600 | L34: 575 | M34: 655 | N34: 650 | O34: 545 | W34: 3640 | X34: 0.1497252747 | Z34: -55 | AA34: -0.09166666667
A35: Stirling | B35: 125 | C35: 135 | D35: 115 | E35: 155 | F35: 215 | G35: 210 | H35: 190 | I35: 210 | J35: 165 | K35: 170 | L35: 140 | M35: 175 | N35: 185 | O35: 215 | W35: 1550 | X35: 0.1387096774 | Z35: 45 | AA35: 0.2647058824
A36: West Dunbartonshire | B36: 100 | C36: 140 | D36: 135 | E36: 155 | F36: 110 | G36: 45 | H36: 40 | I36: 55 | J36: 60 | K36: 75 | L36: 75 | M36: 75 | N36: 85 | O36: 90 | W36: 2355 | X36: 0.03821656051 | Z36: 15 | AA36: 0.2
A37: West Lothian | B37: 90 | C37: 115 | D37: 130 | E37: 220 | F37: 280 | G37: 280 | H37: 290 | I37: 370 | J37: 390 | K37: 440 | L37: 450 | M37: 350 | N37: 420 | O37: 325 | W37: 4305 | X37: 0.07549361208 | Z37: -115 | AA37: -0.2613636364
A39: Disclosure Control has been applied to this table. All cells have been rounded to the nearest five.
A40: Row totals may not sum to total of individual cells due to rounding.
A42: Chart Data - Open Cases
B43: =X3 -> Open Approaches as a % of all Approaches
A44: Midlothian | B44: 0.424137931
A45: North Lanarkshire | B45: 0.2340713963
A46: Fife | B46: 0.2033983008
A47: Shetland | B47: 0.1858974359
A48: East Renfrewshire | B48: 0.1764705882
A49: South Lanarkshire | B49: 0.1497252747
A50: Edinburgh | B50: 0.1429430634
A51: Stirling | B51: 0.1387096774
A52: Inverclyde | B52: 0.1306306306
A53: Clackmannanshire | B53: 0.1188118812
A54: Eilean Siar | B54: 0.1111111111
A55: Argyll & Bute | B55: 0.1026747196
A56: North Ayrshire | B56: 0.09430894309
A57: South Ayrshire | B57: 0.08872901679
A58: Scotland | B58: 0.08759049135
A59: Aberdeen City | B59: 0.08698940998
A60: West Lothian | B60: 0.07549361208
A61: East Dunbartonshire | B61: 0.07344632768
A62: Perth & Kinross | B62: 0.06524547804
A63: Orkney | B63: 0.06451612903
A64: East Ayrshire | B64: 0.06060606061
A65: Moray | B65: 0.05157232704
A66: East Lothian | B66: 0.04807692308
A67: Falkirk | B67: 0.04678362573
A68: Renfrewshire | B68: 0.04359861592
A69: West Dunbartonshire | B69: 0.03821656051
A70: Highland | B70: 0.03242542153
A71: Aberdeenshire | B71: 0.03232916973
A72: Scottish Borders | B72: 0.02584814216
A73: Glasgow City | B73: 0.0242384106
A74: Angus | B74: 0.02335766423
A75: Dundee City | B75: 0.009433962264
A76: Dumfries & Galloway | B76: 0.006211180124
A79: Note: To calculate these figures, see 'Calculating open approaches.xlsx' in the publication folder

Sheet Chart 3.1 - Open Approaches
A1: Chart 3.1: Open Approaches at the end of each quarter - Scotland | K1: Back to Contents
M7: 2014-06-30 | N7: 2014-09-30 | O7: 2014-12-31 | P7: 2015-03-31 | Q7: 2015-06-30 | R7: 2015-09-30 | S7: 2015-12-31 | T7: 2016-03-31 | U7: 2016-06-30 | V7: 2016-09-30 | W7: 2016-12-31 | X7: 2017-03-31 | Y7: 2017-06-30 | Z7: 2017-09-30
L8: Number of approaches per quarter | M8: 16025 | N8: 16200 | O8: 13920 | P8: 16947 | Q8: 14672 | R8: 14595 | S8: 12375 | T8: 14841 | U8: 13568 | V8: 13319 | W8: 11357 | X8: 13615 | Y8: 12210 | Z8: 11127
L9: Open approaches at the end of each quarter | M9: 7440 | N9: 9630 | O9: 10215 | P9: 13765 | Q9: 15690 | R9: 17060 | S9: 16550 | T9: 18270 | U9: 18875 | V9: 19815 | W9: 19580 | X9: 18495 | Y9: 16715 | Z9: 17060
A25: Chart 3.1: Open approaches as a proportion of all approaches received between 1 April 2014 and 30 September 2017

Sheet Chart 3.2 Open Approach Durtio
A1: Chart 3.2: Distribution of the number of days approaches have been open | G1: Back to Contents
A63: Working for Chart 15: For Approaches open on 30 September 2017, how long have they been open for?
A65: Local Authority | B65: Number of Open Approaches on 30 Sept 2017 | C65: Number of days between Approach Date and 30 Sept 2017
C66: P5 | D66: Q1 | E66: Median | F66: Q3 | G66: P95
A67: Scotland | B67: 17058 | C67: 10 | D67: 67 | E67: 198 | F67: 404 | G67: 1018
A68: Aberdeen City | B68: 1726 | C68: 10 | D68: 47 | E68: 109 | F68: 340 | G68: 526
A69: Aberdeenshire | B69: 219 | C69: 4 | D69: 19 | E69: 40 | F69: 68 | G69: 115
A70: Angus | B70: 82 | C70: 3 | D70: 18 | E70: 42 | F70: 215 | G70: 1095
A71: Argyll & Bute | B71: 595 | C71: 10 | D71: 47 | E71: 122 | F71: 306 | G71: 940
A72: Clackmannanshire | B72: 120 | C72: 8 | D72: 53 | E72: 116 | F72: 192 | G72: 405
A73: Dumfries & Galloway | B73: 18 | C73: 1 | D73: 12 | E73: 39 | F73: 81 | G73: 508
A74: Dundee City | B74: 68 | C74: 8 | D74: 36 | E74: 45 | F74: 158 | G74: 939
A75: East Ayrshire | B75: 22 | C75: 16 | D75: 59 | E75: 100 | F75: 149 | G75: 206
A76: East Dunbartonshire | B76: 67 | C76: 16 | D76: 101 | E76: 248 | F76: 633 | G76: 1249
A77: East Lothian | B77: 49 | C77: 16 | D77: 61 | E77: 172 | F77: 206 | G77: 305
A78: East Renfrewshire | B78: 104 | C78: 37 | D78: 108 | E78: 206 | F78: 1022 | G78: 1187
A79: Edinburgh | B79: 3563 | C79: 16 | D79: 92 | E79: 206 | F79: 354 | G79: 572
A80: Eilean Siar | B80: 6 | C80: 61 | D80: 148 | E80: 204 | F80: 228 | G80: 241
A81: Falkirk | B81: 319 | C81: 2 | D81: 22 | E81: 50 | F81: 86 | G81: 144
A82: Fife | B82: 2034 | C82: 18 | D82: 136 | E82: 340 | F82: 562 | G82: 839
A83: Glasgow City | B83: 913 | C83: 3 | D83: 18 | E83: 47 | F83: 121 | G83: 399
A84: Highland | B84: 127 | C84: 32 | D84: 103 | E84: 158 | F84: 562 | G84: 1024
A85: Inverclyde | B85: 437 | C85: 8 | D85: 58 | E85: 156 | F85: 394 | G85: 1223
A86: Midlothian | B86: 615 | C86: 46 | D86: 249 | E86: 495 | F86: 719 | G86: 1170
A87: Moray | B87: 207 | C87: 4 | D87: 18 | E87: 39 | F87: 74 | G87: 145
A88: North Ayrshire | B88: 581 | C88: 12 | D88: 68 | E88: 171 | F88: 339 | G88: 948
A89: North Lanarkshire | B89: 2592 | C89: 29 | D89: 151 | E89: 316 | F89: 396 | G89: 583
A90: Orkney | B90: 9 | C90: 8 | D90: 46 | E90: 93 | F90: 227 | G90: 428
A91: Perth & Kinross | B91: 503 | C91: 8 | D91: 40 | E91: 116 | F91: 298 | G91: 732
A92: Renfrewshire | B92: 313 | C92: 3 | D92: 37 | E92: 1107 | F92: 1191 | G92: 1230
A93: Scottish Borders | B93: 81 | C93: 2 | D93: 17 | E93: 54 | F93: 192 | G93: 467
A94: Shetland | B94: 143 | C94: 16 | D94: 109 | E94: 787 | F94: 1053 | G94: 1221
A95: South Ayrshire | B95: 368 | C95: 30 | D95: 115 | E95: 208 | F95: 262 | G95: 648
A96: South Lanarkshire | B96: 545 | C96: 25 | D96: 93 | E96: 710 | F96: 1060 | G96: 1202
A97: Stirling | B97: 215 | C97: 9 | D97: 74 | E97: 333 | F97: 1054 | G97: 1152
A98: West Dunbartonshire | B98: 91 | C98: 8 | D98: 47 | E98: 114 | F98: 1046 | G98: 1256
A99: West Lothian | B99: 326 | C99: 15 | D99: 122 | E99: 396 | F99: 625 | G99: 971
A101: Notes
A102: P5 = 5th Percentile. 5% of approaches have been open for this many days.
A103: Q1 = First Quartile. 25% of approaches have been open for this many days.
A104: Median. 50% of approaches have been open for this many days.
A105: Q3 = First Quartile. 75% of approaches have been open for this many days. Conversely, 25% of cases have been open for more than this number of days.
A106: P95 = 95th Percentile. 5% of approaches have been open for more than this number of days.
A109: Data for Box Plot
B111: Number of days between Approach Date and 30 September 2016
A112: Local Authority | B112: P5 | C112: Q1 | D112: Median | E112: Q3 | F112: P95
A113: Dumfries & Galloway | B113: 1 | C113: 12 | D113: 39 | E113: 81 | F113: 508
A114: Moray | B114: 4 | C114: 18 | D114: 39 | E114: 74 | F114: 145
A115: Aberdeenshire | B115: 4 | C115: 19 | D115: 40 | E115: 68 | F115: 115
A116: Angus | B116: 3 | C116: 18 | D116: 42 | E116: 215 | F116: 1095
A117: Dundee City | B117: 8 | C117: 36 | D117: 45 | E117: 158 | F117: 939
A118: Glasgow City | B118: 3 | C118: 18 | D118: 47 | E118: 121 | F118: 399
A119: Falkirk | B119: 2 | C119: 22 | D119: 50 | E119: 86 | F119: 144
A120: Scottish Borders | B120: 2 | C120: 17 | D120: 54 | E120: 192 | F120: 467
A121: Orkney | B121: 8 | C121: 46 | D121: 93 | E121: 227 | F121: 428
A122: East Ayrshire | B122: 16 | C122: 59 | D122: 100 | E122: 149 | F122: 206
A123: Aberdeen City | B123: 10 | C123: 47 | D123: 109 | E123: 340 | F123: 526
A124: West Dunbartonshire | B124: 8 | C124: 47 | D124: 114 | E124: 1046 | F124: 1256
A125: Clackmannanshire | B125: 8 | C125: 53 | D125: 116 | E125: 192 | F125: 405
A126: Perth & Kinross | B126: 8 | C126: 40 | D126: 116 | E126: 298 | F126: 732
A127: Argyll & Bute | B127: 10 | C127: 47 | D127: 122 | E127: 306 | F127: 940
A128: Inverclyde | B128: 8 | C128: 58 | D128: 156 | E128: 394 | F128: 1223
A129: Highland | B129: 32 | C129: 103 | D129: 158 | E129: 562 | F129: 1024
A130: North Ayrshire | B130: 12 | C130: 68 | D130: 171 | E130: 339 | F130: 948
A131: East Lothian | B131: 16 | C131: 61 | D131: 172 | E131: 206 | F131: 305
A132: Scotland | B132: 10 | C132: 67 | D132: 198 | E132: 404 | F132: 1018
A133: Eilean Siar | B133: 61 | C133: 148 | D133: 204 | E133: 228 | F133: 241
A134: East Renfrewshire | B134: 37 | C134: 108 | D134: 206 | E134: 1022 | F134: 1187
A135: Edinburgh | B135: 16 | C135: 92 | D135: 206 | E135: 354 | F135: 572
A136: South Ayrshire | B136: 30 | C136: 115 | D136: 208 | E136: 262 | F136: 648
A137: East Dunbartonshire | B137: 16 | C137: 101 | D137: 248 | E137: 633 | F137: 1249
A138: North Lanarkshire | B138: 29 | C138: 151 | D138: 316 | E138: 396 | F138: 583
A139: Stirling | B139: 9 | C139: 74 | D139: 333 | E139: 1054 | F139: 1152
A140: Fife | B140: 18 | C140: 136 | D140: 340 | E140: 562 | F140: 839
A141: West Lothian | B141: 15 | C141: 122 | D141: 396 | E141: 625 | F141: 971
A142: Midlothian | B142: 46 | C142: 249 | D142: 495 | E142: 719 | F142: 1170
A143: South Lanarkshire | B143: 25 | C143: 93 | D143: 710 | E143: 1060 | F143: 1202
A144: Shetland | B144: 16 | C144: 109 | D144: 787 | E144: 1053 | F144: 1221
A145: Renfrewshire | B145: 3 | C145: 37 | D145: 1107 | E145: 1191 | F145: 1230
A147: =A112 -> Local Authority | B147: Q1 | C147: Median-Q1 | D147: Q3-Median | E147: Q1-P5 | F147: P95-Q3 | G147: Median
A149: =A113 -> Dumfries & Galloway | B149: =C113 -> 12 | C149: =D113-C113 -> 27 | D149: 42 | E149: =C113-B113 -> 11 | F149: =F113-E113 -> 427 | G149: =D113 -> 39
A150: Moray | B150: 18 | C150: 21 | D150: 35 | E150: 14 | F150: 71 | G150: 39
A151: Aberdeenshire | B151: 19 | C151: 21 | D151: 28 | E151: 15 | F151: 47 | G151: 40
A152: Angus | B152: 18 | C152: 24 | D152: 173 | E152: 15 | F152: 880 | G152: 42
A153: Dundee City | B153: 36 | C153: 9 | D153: 113 | E153: 28 | F153: 781 | G153: 45
A154: Glasgow City | B154: 18 | C154: 29 | D154: 74 | E154: 15 | F154: 278 | G154: 47
A155: Falkirk | B155: 22 | C155: 28 | D155: 36 | E155: 20 | F155: 58 | G155: 50
A156: Scottish Borders | B156: 17 | C156: 37 | D156: 138 | E156: 15 | F156: 275 | G156: 54
A157: Orkney | B157: 46 | C157: 47 | D157: 134 | E157: 38 | F157: 201 | G157: 93
A158: East Ayrshire | B158: 59 | C158: 41 | D158: 49 | E158: 43 | F158: 57 | G158: 100
A159: Aberdeen City | B159: 47 | C159: 62 | D159: 231 | E159: 37 | F159: 186 | G159: 109
A160: West Dunbartonshire | B160: 47 | C160: 67 | D160: 932 | E160: 39 | F160: 210 | G160: 114
A161: Clackmannanshire | B161: 53 | C161: 63 | D161: 76 | E161: 45 | F161: 213 | G161: 116
A162: Perth & Kinross | B162: 40 | C162: 76 | D162: 182 | E162: 32 | F162: 434 | G162: 116
A163: Argyll & Bute | B163: 47 | C163: 75 | D163: 184 | E163: 37 | F163: 634 | G163: 122
A164: Inverclyde | B164: 58 | C164: 98 | D164: 238 | E164: 50 | F164: 829 | G164: 156
A165: Highland | B165: 103 | C165: 55 | D165: 404 | E165: 71 | F165: 462 | G165: 158
A166: North Ayrshire | B166: 68 | C166: 103 | D166: 168 | E166: 56 | F166: 609 | G166: 171
A167: East Lothian | B167: 61 | C167: 111 | D167: 34 | E167: 45 | F167: 99 | G167: 172
A168: Scotland | B168: 67 | C168: 131 | D168: 206 | E168: 57 | F168: 614 | G168: 198
A169: Eilean Siar | B169: 148 | C169: =D133-C133 -> 56 | D169: 24 | E169: 87 | F169: 13 | G169: 204
A170: East Renfrewshire | B170: 108 | C170: 98 | D170: 816 | E170: 71 | F170: 165 | G170: 206
A171: Edinburgh | B171: 92 | C171: 114 | D171: 148 | E171: 76 | F171: 218 | G171: 206
A172: South Ayrshire | B172: 115 | C172: 93 | D172: 54 | E172: 85 | F172: 386 | G172: 208
A173: East Dunbartonshire | B173: 101 | C173: 147 | D173: 385 | E173: 85 | F173: 616 | G173: 248
A174: North Lanarkshire | B174: 151 | C174: 165 | D174: 80 | E174: 122 | F174: 187 | G174: 316
A175: Stirling | B175: 74 | C175: 259 | D175: 721 | E175: 65 | F175: 98 | G175: 333
A176: Fife | B176: 136 | C176: 204 | D176: 222 | E176: 118 | F176: 277 | G176: 340
A177: West Lothian | B177: 122 | C177: 274 | D177: 229 | E177: 107 | F177: 346 | G177: 396
A178: Midlothian | B178: 249 | C178: 246 | D178: 224 | E178: 203 | F178: 451 | G178: 495
A179: South Lanarkshire | B179: 93 | C179: 617 | D179: 350 | E179: 68 | F179: 142 | G179: 710
A180: Shetland | B180: 109 | C180: 678 | D180: 266 | E180: 93 | F180: 168 | G180: 787
A181: Renfrewshire | B181: 37 | C181: 1070 | D181: 84 | E181: 34 | F181: 39 | G181: 1107

Sheet Table 4 - Reasons
A1: Table 4a: Reasons for Approach (Number) | B1: Back to Contents
B3: Quarter of Approach | M3: Bi-annual change | R3: Annual change
B4: 2015 Q2 | C4: 2015 Q3 | D4: 2015 Q4 | E4: 2016 Q1 | F4: 2016 Q2 | G4: 2016 Q3 | H4: 2016 Q4 | I4: 2017 Q1 | J4: 2017 Q2 | K4: 2017 Q3 | M4: April to Sept 2016 | N4: April to Sept 2017 | O4: Change | P4: % | R4: Year to end Sept 2016 | S4: Year to end Sept 2017 | T4: Change | U4: %
A5: Total | B5: 14672 | C5: 14595 | D5: 12375 | E5: 14841 | F5: 13568 | G5: 13319 | H5: 11357 | I5: 13615 | J5: 12210 | K5: 11127 | M5: =SUM(F5:G5) -> 26887 | N5: =SUM(J5:K5) -> 23337 | O5: =N5-M5 -> -3550 | P5: =O5/M5 -> -0.1320340685 | R5: =SUM(D5:G5) -> 54103 | S5: =SUM(H5:K5) -> 48309 | T5: =S5-R5 -> -5794 | U5: =T5/R5 -> -0.1070920282
A6: General housing options advice | B6: 1975 | C6: 2115 | D6: 1810 | E6: 2392 | F6: 2090 | G6: 2085 | H6: 1779 | I6: 2174 | J6: 2201 | K6: 2077 | M6: =SUM(F6:G6) -> 4175 | N6: =SUM(J6:K6) -> 4278 | O6: =N6-M6 -> 103 | P6: =O6/M6 -> 0.02467065868 | R6: =SUM(D6:G6) -> 8377 | S6: =SUM(H6:K6) -> 8231 | T6: =S6-R6 -> -146 | U6: =T6/R6 -> -0.01742867375
A7: Asked to leave | B7: 2132 | C7: 2102 | D7: 1782 | E7: 2121 | F7: 1979 | G7: 1779 | H7: 1464 | I7: 1878 | J7: 1634 | K7: 1517 | M7: =SUM(F7:G7) -> 3758 | N7: =SUM(J7:K7) -> 3151 | O7: =N7-M7 -> -607 | P7: =O7/M7 -> -0.1615220862 | R7: =SUM(D7:G7) -> 7661 | S7: =SUM(H7:K7) -> 6493 | T7: =S7-R7 -> -1168 | U7: =T7/R7 -> -0.1524605143
A8: Dispute within household / relationship breakdown: non-violent | B8: 1850 | C8: 1895 | D8: 1581 | E8: 1879 | F8: 1669 | G8: 1776 | H8: 1535 | I8: 1988 | J8: 1582 | K8: 1453 | M8: 3445 | N8: 3035 | O8: -410 | P8: -0.1190130624 | R8: 6905 | S8: 6558 | T8: -347 | U8: -0.05025343954
A9: Risk of losing accommodation | B9: 1274 | C9: 1126 | D9: 1006 | E9: 1227 | F9: 1062 | G9: 1103 | H9: 924 | I9: 1041 | J9: 949 | K9: 900 | M9: 2165 | N9: 1849 | O9: -316 | P9: -0.1459584296 | R9: 4398 | S9: 3814 | T9: -584 | U9: -0.1327876307
A10: Other action by landlord resulting in the termination of the tenancy | B10: 1042 | C10: 1041 | D10: 819 | E10: 1122 | F10: 1127 | G10: 972 | H10: 757 | I10: 1077 | J10: 951 | K10: 763 | M10: 2099 | N10: 1714 | O10: -385 | P10: -0.1834206765 | R10: 4040 | S10: 3548 | T10: -492 | U10: -0.1217821782
A11: Dispute within household: violent or abusive | B11: 836 | C11: 881 | D11: 780 | E11: 838 | F11: 816 | G11: 789 | H11: 708 | I11: 826 | J11: 785 | K11: 747 | M11: 1605 | N11: 1532 | O11: -73 | P11: -0.04548286604 | R11: 3223 | S11: 3066 | T11: -157 | U11: -0.04871237977
A12: Discharge from prison / hospital / care / other institution | B12: 674 | C12: 672 | D12: 523 | E12: 586 | F12: 609 | G12: 536 | H12: 546 | I12: 597 | J12: 568 | K12: 470 | M12: 1145 | N12: 1038 | O12: -107 | P12: -0.09344978166 | R12: 2254 | S12: 2181 | T12: -73 | U12: -0.03238686779
A13: Other reason for leaving accommodation / household | B13: 473 | C13: 543 | D13: 508 | E13: 505 | F13: 479 | G13: 554 | H13: 411 | I13: 501 | J13: 413 | K13: 434 | M13: 1033 | N13: 847 | O13: -186 | P13: -0.1800580833 | R13: 2046 | S13: 1759 | T13: -287 | U13: -0.1402737048
A14: Accommodation unsuitable | B14: 614 | C14: 619 | D14: 433 | E14: 531 | F14: 497 | G14: 639 | H14: 521 | I14: 633 | J14: 582 | K14: 416 | M14: 1136 | N14: 998 | O14: -138 | P14: -0.1214788732 | R14: 2100 | S14: 2152 | T14: 52 | U14: 0.02476190476
A15: Termination of tenancy / mortgage due to rent arrears / default on payments | B15: 653 | C15: 576 | D15: 561 | E15: 627 | F15: 555 | G15: 458 | H15: 428 | I15: 574 | J15: 464 | K15: 405 | M15: 1013 | N15: 869 | O15: -144 | P15: -0.1421520237 | R15: 2201 | S15: 1871 | T15: -330 | U15: -0.1499318492
A16: Other reason for loss of accommodation | B16: 314 | C16: 347 | D16: 333 | E16: 408 | F16: 432 | G16: 372 | H16: 369 | I16: 407 | J16: 454 | K16: 373 | M16: 804 | N16: 827 | O16: 23 | P16: 0.02860696517 | R16: 1545 | S16: 1603 | T16: 58 | U16: 0.03754045307
A17: Personal issues – affordability / financial difficulties | B17: 388 | C17: 383 | D17: 297 | E17: 368 | F17: 360 | G17: 443 | H17: 479 | I17: 455 | J17: 323 | K17: 304 | M17: 803 | N17: 627 | O17: -176 | P17: -0.2191780822 | R17: 1468 | S17: 1561 | T17: 93 | U17: 0.06335149864
A18: Other | B18: 735 | C18: 696 | D18: 586 | E18: 666 | F18: 499 | G18: 406 | H18: 243 | I18: 196 | J18: 190 | K18: 198 | M18: 905 | N18: 388 | O18: -517 | P18: -0.5712707182 | R18: 2157 | S18: 827 | T18: -1330 | U18: -0.6165971256
A19: Harassment | B19: 227 | C19: 208 | D19: 153 | E19: 162 | F19: 180 | G19: 187 | H19: 145 | I19: 182 | J19: 156 | K19: 166 | M19: 367 | N19: 322 | O19: -45 | P19: -0.1226158038 | R19: 682 | S19: 649 | T19: -33 | U19: -0.04838709677
A20: Fleeing non-domestic violence | B20: 211 | C20: 215 | D20: 175 | E20: 173 | F20: 200 | G20: 131 | H20: 137 | I20: 158 | J20: 161 | K20: 153 | M20: 331 | N20: 314 | O20: -17 | P20: -0.05135951662 | R20: 679 | S20: 609 | T20: -70 | U20: -0.1030927835
A21: Overcrowding | B21: 254 | C21: 237 | D21: 225 | E21: 256 | F21: 185 | G21: 194 | H21: 155 | I21: 201 | J21: 178 | K21: 146 | M21: 379 | N21: 324 | O21: -55 | P21: -0.1451187335 | R21: 860 | S21: 680 | T21: -180 | U21: -0.2093023256
A22: Benefit issues & Welfare Reform | B22: 248 | C22: 157 | D22: 148 | E22: 183 | F22: 117 | G22: 215 | H22: 188 | I22: 132 | J22: 139 | K22: 127 | M22: 332 | N22: 266 | O22: -66 | P22: -0.1987951807 | R22: 663 | S22: 586 | T22: -77 | U22: -0.1161387632
A23: Applicant terminated secure accommodation | B23: 148 | C23: 155 | D23: 131 | E23: 144 | F23: 112 | G23: 149 | H23: 115 | I23: 148 | J23: 135 | K23: 125 | M23: 261 | N23: 260 | O23: -1 | P23: -0.003831417625 | R23: 536 | S23: 523 | T23: -13 | U23: -0.02425373134
A24: Household experiencing anti-social behaviour / neighbour problems | B24: 104 | C24: 104 | D24: 67 | E24: 94 | F24: 114 | G24: 106 | H24: 92 | I24: 100 | J24: 88 | K24: 93 | M24: 220 | N24: 181 | O24: -39 | P24: -0.1772727273 | R24: 381 | S24: 373 | T24: -8 | U24: -0.02099737533
A25: Property condition | B25: 136 | C25: 127 | D25: 139 | E25: 167 | F25: 104 | G25: 98 | H25: 95 | I25: 123 | J25: 74 | K25: 68 | M25: 202 | N25: 142 | O25: -60 | P25: -0.297029703 | R25: 508 | S25: 360 | T25: -148 | U25: -0.2913385827
A26: Loss of service / tied accommodation | B26: 61 | C26: 64 | D26: 63 | E26: 59 | F26: 66 | G26: 49 | H26: 34 | I26: 49 | J26: 40 | K26: 57 | M26: 115 | N26: 97 | O26: -18 | P26: -0.1565217391 | R26: 237 | S26: 180 | T26: -57 | U26: -0.2405063291
A27: Forced division and sale of matrimonial home | B27: 69 | C27: 71 | D27: 45 | E27: 63 | F27: 56 | G27: 51 | H27: 37 | I27: 48 | J27: 44 | K27: 49 | M27: 107 | N27: 93 | O27: -14 | P27: -0.1308411215 | R27: 215 | S27: 178 | T27: -37 | U27: -0.1720930233
A28: Household member needing care | B28: 165 | C28: 182 | D28: 140 | E28: 182 | F28: 176 | G28: 170 | H28: 119 | I28: 62 | J28: 40 | K28: 37 | M28: 346 | N28: 77 | O28: -269 | P28: -0.7774566474 | R28: 668 | S28: 258 | T28: -410 | U28: -0.6137724551
A29: Landlord issue | B29: 48 | C29: 45 | D29: 34 | E29: 43 | F29: 33 | G29: 30 | H29: 34 | I29: 34 | J29: 25 | K29: 27 | M29: 63 | N29: 52 | O29: -11 | P29: -0.1746031746 | R29: 140 | S29: 120 | T29: -20 | U29: -0.1428571429
A30: Emergency (fire, flood, storm, closing order from Environmental Health etc.) | B30: 41 | C30: 34 | D30: 36 | E30: 45 | F30: 51 | G30: 27 | H30: 42 | I30: 31 | J30: 34 | K30: 22 | M30: 78 | N30: 56 | O30: -22 | P30: -0.2820512821 | R30: 159 | S30: 129 | T30: -30 | U30: -0.1886792453
A33: Table 4b: Reasons for Approach (Percent)
B35: Quarter of Approach | M35: Bi-annual change | R35: Annual change
B36: 2015 Q2 | C36: 2015 Q3 | D36: 2015 Q4 | E36: 2016 Q1 | F36: 2016 Q2 | G36: 2016 Q3 | H36: 2016 Q4 | I36: 2017 Q1 | J36: 2017 Q2 | K36: 2017 Q3 | M36: April to Sept 2016 | N36: April to Sept 2017 | O36: % change | R36: Year to end Sept 2016 | S36: Year to end Sept 2017 | T36: % change
A37: Total | B37: =B5/B$5 -> 1 | C37: 1 | D37: 1 | E37: 1 | F37: 1 | G37: 1 | H37: 1 | I37: 1 | J37: 1 | K37: 1 | M37: =SUM(F37:G37)/2 -> 1 | N37: =SUM(J37:K37)/2 -> 1 | O37: =N37-M37 -> 0 | R37: =SUM(D37:G37)/4 -> 1 | S37: =SUM(H37:K37)/4 -> 1 | T37: =S37-R37 -> 0
A38: General housing options advice | B38: =B6/B$5 -> 0.1346101418 | C38: 0.1449126413 | D38: 0.1462626263 | E38: 0.161175123 | F38: 0.1540389151 | G38: 0.156543284 | H38: 0.1566434798 | I38: 0.159676827 | J38: 0.1802620803 | K38: 0.1866630718 | M38: =SUM(F38:G38)/2 -> 0.1552910996 | N38: =SUM(J38:K38)/2 -> 0.183462576 | O38: =N38-M38 -> 0.02817147647 | R38: =SUM(D38:G38)/4 -> 0.1545049871 | S38: =SUM(H38:K38)/4 -> 0.1708113647 | T38: =S38-R38 -> 0.01630637763
A39: Dispute within household / relationship breakdown: non-violent | B39: =B7/B$5 -> 0.1453107961 | C39: 0.1440219253 | D39: 0.144 | E39: 0.1429148979 | F39: 0.1458579009 | G39: 0.1335685862 | H39: 0.1289072819 | I39: 0.1379360999 | J39: 0.1338247338 | K39: 0.1363350409 | M39: =SUM(F39:G39)/2 -> 0.1397132436 | N39: =SUM(J39:K39)/2 -> 0.1350798874 | O39: =N39-M39 -> -0.004633356229 | R39: 0.1415853463 | S39: 0.1342507891 | T39: -0.007334557158
A40: Asked to leave | B40: =B8/B$5 -> 0.1260905125 | C40: 0.129838986 | D40: 0.1277575758 | E40: 0.1266087191 | F40: 0.1230100236 | G40: 0.1333433441 | H40: 0.1351589328 | I40: 0.1460154242 | J40: 0.1295659296 | K40: 0.1305832659 | M40: 0.1281766838 | N40: 0.1300745977 | O40: 0.001897913908 | R40: 0.1276799156 | S40: 0.1353308881 | T40: 0.007650972488
A41: Risk of losing accommodation | B41: =B9/B$5 -> 0.08683206107 | C41: 0.0771497088 | D41: 0.08129292929 | E41: 0.08267636952 | F41: 0.07827240566 | G41: 0.08281402508 | H41: 0.08135951396 | I41: 0.076459787 | J41: 0.07772317772 | K41: 0.0808843354 | M41: 0.08054321537 | N41: 0.07930375656 | O41: -0.001239458807 | R41: 0.08126393239 | S41: 0.07910670352 | T41: -0.002157228867
A42: Other action by landlord resulting in the termination of the tenancy | B42: =B10/B$5 -> 0.07101962923 | C42: 0.07132579651 | D42: 0.06618181818 | E42: 0.07560137457 | F42: 0.08306308962 | G42: 0.07297845184 | H42: 0.06665492648 | I42: 0.07910392949 | J42: 0.07788697789 | K42: 0.06857194212 | M42: 0.07802077073 | N42: 0.07322946 | O42: -0.004791310724 | R42: 0.07445618355 | S42: 0.07305444399 | T42: -0.001401739559
A43: Dispute within household: violent or abusive | B43: =B11/B$5 -> 0.05697928026 | C43: 0.06036313806 | D43: 0.06303030303 | E43: 0.05646519776 | F43: 0.06014150943 | G43: 0.05923868158 | H43: 0.0623404068 | I43: 0.06066838046 | J43: 0.06429156429 | K43: 0.06713399838 | M43: 0.05969009551 | N43: 0.06571278134 | O43: 0.006022685829 | R43: 0.05971892295 | S43: 0.06360858748 | T43: 0.003889664531
A44: Accommodation unsuitable | B44: =B12/B$5 -> 0.04593784079 | C44: 0.04604316547 | D44: 0.04226262626 | E44: 0.03948520989 | F44: 0.04488502358 | G44: 0.04024326151 | H44: 0.04807607643 | I44: 0.04384869629 | J44: 0.04651924652 | K44: 0.04223959738 | M44: 0.04256414255 | N44: 0.04437942195 | O44: 0.001815279402 | R44: 0.04171903031 | S44: 0.04517090415 | T44: 0.003451873842
A45: Other reason for leaving accommodation / household | B45: =B13/B$5 -> 0.03223827699 | C45: 0.0372045221 | D45: 0.04105050505 | E45: 0.03402735665 | F45: 0.03530365566 | G45: 0.04159471432 | H45: 0.03618913445 | I45: 0.03679764965 | J45: 0.03382473382 | K45: 0.03900422396 | M45: 0.03844918499 | N45: 0.03641447889 | O45: -0.002034706097 | R45: 0.03799405792 | S45: 0.03645393547 | T45: -0.001540122446
A46: Discharge from prison / hospital / care / other institution | B46: =B14/B$5 -> 0.04184841876 | C46: 0.04241178486 | D46: 0.03498989899 | E46: 0.03577926016 | F46: 0.0366303066 | G46: 0.04797657482 | H46: 0.04587479088 | I46: 0.04649283878 | J46: 0.04766584767 | K46: 0.03738653725 | M46: 0.04230344071 | N46: 0.04252619246 | O46: 0.0002227517479 | R46: 0.03884401014 | S46: 0.04435500364 | T46: 0.005510993502
A47: Other | B47: =B15/B$5 -> 0.04450654308 | C47: 0.0394655704 | D47: 0.04533333333 | E47: 0.04224782697 | F47: 0.04090507075 | G47: 0.03438696599 | H47: 0.03768600863 | I47: 0.04215938303 | J47: 0.038001638 | K47: 0.03639795093 | M47: 0.03764601837 | N47: 0.03719979447 | O47: -0.0004462239057 | R47: 0.04071829926 | S47: 0.03856124515 | T47: -0.002157054112
A48: Termination of tenancy / mortgage due to rent arrears / default on payments | B48: =B16/B$5 -> 0.02140130862 | C48: 0.0237752655 | D48: 0.02690909091 | E48: 0.02749140893 | F48: 0.03183962264 | G48: 0.02793002478 | H48: 0.03249097473 | I48: 0.02989349982 | J48: 0.03718263718 | K48: 0.03352206345 | M48: 0.02988482371 | N48: 0.03535235032 | O48: 0.005467526607 | R48: 0.02854253682 | S48: 0.03327229379 | T48: 0.004729756979
A49: Personal issues – affordability / financial difficulties | B49: =B17/B$5 -> 0.02644492912 | C49: 0.02624186365 | D49: 0.024 | E49: 0.02479617276 | F49: 0.02653301887 | G49: 0.03326075531 | H49: 0.04217663115 | I49: 0.03341902314 | J49: 0.02645372645 | K49: 0.02732093107 | M49: 0.02989688709 | N49: 0.02688732876 | O49: -0.003009558329 | R49: 0.02714748674 | S49: 0.03234257795 | T49: 0.005195091217
A50: Other reason for loss of accommodation | B50: =B18/B$5 -> 0.05009541985 | C50: 0.04768756423 | D50: 0.04735353535 | E50: 0.04487568223 | F50: 0.03677771226 | G50: 0.03048276898 | H50: 0.02139649555 | I50: 0.01439588689 | J50: 0.01556101556 | K50: 0.01779455379 | M50: 0.03363024062 | N50: 0.01667778467 | O50: -0.01695245595 | R50: 0.03987242471 | S50: 0.01728698795 | T50: -0.02258543676
A51: Benefit issues & Welfare Reform | B51: =B19/B$5 -> 0.01547164667 | C51: 0.01425145598 | D51: 0.01236363636 | E51: 0.01091570649 | F51: 0.01326650943 | G51: 0.0140400931 | H51: 0.01276745619 | I51: 0.01336760925 | J51: 0.01277641278 | K51: 0.01491866631 | M51: 0.01365330127 | N51: 0.01384753954 | O51: 0.0001942382748 | R51: 0.01264648635 | S51: 0.01345753613 | T51: 0.0008110497865
A52: Overcrowding | B52: =B20/B$5 -> 0.01438113413 | C52: 0.01473107229 | D52: 0.01414141414 | E52: 0.01165689644 | F52: 0.01474056604 | G52: 0.009835573241 | H52: 0.01206304482 | I52: 0.01160484759 | J52: 0.01318591319 | K52: 0.01375033702 | M52: 0.01228806964 | N52: 0.0134681251 | O52: 0.001180055463 | R52: 0.01259361246 | S52: 0.01265103565 | T52: 5.74231902e-05
A53: Harassment | B53: =B21/B$5 -> 0.01731188659 | C53: 0.01623843782 | D53: 0.01818181818 | E53: 0.01724951149 | F53: 0.01363502358 | G53: 0.01456565808 | H53: 0.01364797041 | I53: 0.0147631289 | J53: 0.01457821458 | K53: 0.01312123663 | M53: 0.01410034083 | N53: 0.0138497256 | O53: -0.0002506152288 | R53: 0.01590800283 | S53: 0.01402763763 | T53: -0.001880365203
A54: Applicant terminated secure accommodation | B54: =B22/B$5 -> 0.01690294438 | C54: 0.0107571086 | D54: 0.01195959596 | E54: 0.01233070548 | F54: 0.008623231132 | G54: 0.01614235303 | H54: 0.01655366734 | I54: 0.00969518913 | J54: 0.01138411138 | K54: 0.01141367844 | M54: 0.01238279208 | N54: 0.01139889491 | O54: -0.0009838971688 | R54: 0.0122639714 | S54: 0.01226166157 | T54: -2.309825985e-06
A55: Household member needing care | B55: =B23/B$5 -> 0.010087241 | C55: 0.01062007537 | D55: 0.01058585859 | E55: 0.009702850212 | F55: 0.008254716981 | G55: 0.01118702605 | H55: 0.01012591353 | I55: 0.01087036357 | J55: 0.01105651106 | K55: 0.01123393547 | M55: 0.009720871517 | N55: 0.01114522326 | O55: 0.001424351747 | R55: 0.009932612958 | S55: 0.01082168091 | T55: 0.0008890679499
A56: Fleeing non-domestic violence | B56: =B24/B$5 -> 0.007088331516 | C56: 0.007125727989 | D56: 0.005414141414 | E56: 0.006333805 | F56: 0.008402122642 | G56: 0.007958555447 | H56: 0.008100730827 | I56: 0.00734484025 | J56: 0.007207207207 | K56: 0.008358047991 | M56: 0.008180339044 | N56: 0.007782627599 | O56: -0.000397711445 | R56: 0.007027156126 | S56: 0.007752706569 | T56: 0.0007255504432
A57: Household experiencing anti-social behaviour / neighbour problems | B57: =B25/B$5 -> 0.009269356598 | C57: 0.00870161014 | D57: 0.01123232323 | E57: 0.01125261101 | F57: 0.00766509434 | G57: 0.007357909753 | H57: 0.008364885093 | I57: 0.009034153507 | J57: 0.006060606061 | K57: 0.006111260897 | M57: 0.007511502046 | N57: 0.006085933479 | O57: -0.001425568568 | R57: 0.009376984584 | S57: 0.007392726389 | T57: -0.001984258194
A58: Property condition | B58: =B26/B$5 -> 0.004157579062 | C58: 0.004385063378 | D58: 0.005090909091 | E58: 0.003975473351 | F58: 0.004864386792 | G58: 0.003678954876 | H58: 0.002993748349 | I58: 0.003598971722 | J58: 0.003276003276 | K58: 0.005122674575 | M58: 0.004271670834 | N58: 0.004199338926 | O58: -7.233190879e-05 | R58: 0.004402431028 | S58: 0.003747849481 | T58: -0.000654581547
A59: Forced division and sale of matrimonial home | B59: =B27/B$5 -> 0.004702835333 | C59: 0.004864679685 | D59: 0.003636363636 | E59: 0.004244996968 | F59: 0.004127358491 | G59: 0.0038291163 | H59: 0.003257902615 | I59: 0.00352552332 | J59: 0.003603603604 | K59: 0.004403702705 | M59: 0.003978237395 | N59: 0.004003653154 | O59: 2.541575907e-05 | R59: 0.003959458849 | S59: 0.003697683061 | T59: -0.0002617757878
A60: Loss of service / tied accommodation | B60: =B28/B$5 -> 0.01124591058 | C60: 0.01247002398 | D60: 0.01131313131 | E60: 0.01226332457 | F60: 0.01297169811 | G60: 0.012763721 | H60: 0.01047811922 | I60: 0.004553800955 | J60: 0.003276003276 | K60: 0.0033252449 | M60: 0.01286770956 | N60: 0.003300624088 | O60: -0.009567085469 | R60: 0.01232796875 | S60: 0.005408292088 | T60: -0.006919676662
A61: Landlord issue | B61: =B29/B$5 -> 0.003271537623 | C61: 0.003083247688 | D61: 0.002747474747 | E61: 0.002897378883 | F61: 0.002432193396 | G61: 0.002252421353 | H61: 0.002993748349 | I61: 0.002497245685 | J61: 0.002047502048 | K61: 0.002426530062 | M61: 0.002342307375 | N61: 0.002237016055 | O61: -0.0001052913198 | R61: 0.002582367095 | S61: 0.002491256536 | T61: -9.111055901e-05
A62: Emergency (fire, flood, storm, closing order from Environmental Health etc.) | B62: =B30/B$5 -> 0.002794438386 | C62: 0.002329564919 | D62: 0.002909090909 | E62: 0.003032140691 | F62: 0.00375884434 | G62: 0.002027179218 | H62: 0.003698159725 | I62: 0.002276900477 | J62: 0.002784602785 | K62: 0.001977172643 | M62: 0.002893011779 | N62: 0.002380887714 | O62: -0.0005121240648 | R62: 0.002931813789 | S62: 0.002684208908 | T62: -0.0002476048818
A65: Table 4c: Reasons for Approach - abbreviated (Number)
B67: Quarter of Approach | M67: Bi-annual change | R67: Annual change
B68: 2015 Q2 | C68: 2015 Q3 | D68: 2015 Q4 | E68: 2016 Q1 | F68: 2016 Q2 | G68: 2016 Q3 | H68: 2016 Q4 | I68: 2017 Q1 | J68: 2017 Q2 | K68: 2017 Q3 | M68: April - Sept 2016 | N68: April - Sept 2017 | O68: Change | P68: % | R68: Year to end Sept 2016 | S68: Year to end Sept 2017 | T68: Change | U68: %
A69: Homelessness Type | B69: 8985 | C69: 9041 | D69: 7715 | E69: 8988 | F69: 8516 | G69: 8024 | H69: 6883 | I69: 8665 | J69: 7599 | K69: 6880 | M69: =SUM(F69:G69) -> 16540 | N69: =SUM(J69:K69) -> 14479 | O69: =N69-M69 -> -2061 | P69: =O69/M69 -> -0.1246070133 | R69: =SUM(D69:G69) -> 33243 | S69: =SUM(H69:K69) -> 30027 | T69: =S69-R69 -> -3216 | U69: =T69/R69 -> -0.09674217128
A70: Prevention Type | B70: 5687 | C70: 5554 | D70: 4660 | E70: 5853 | F70: 5052 | G70: 5295 | H70: 4474 | I70: 4950 | J70: 4611 | K70: 4247 | M70: =SUM(F70:G70) -> 10347 | N70: =SUM(J70:K70) -> 8858 | O70: =N70-M70 -> -1489 | P70: =O70/M70 -> -0.1439064463 | R70: =SUM(D70:G70) -> 20860 | S70: =SUM(H70:K70) -> 18282 | T70: =S70-R70 -> -2578 | U70: =T70/R70 -> -0.1235858102
A71: Total | B71: 14672 | C71: 14595 | D71: 12375 | E71: 14841 | F71: 13568 | G71: 13319 | H71: 11357 | I71: 13615 | J71: 12210 | K71: 11127 | M71: =SUM(F71:G71) -> 26887 | N71: =SUM(J71:K71) -> 23337 | O71: -3550 | P71: -0.1320340685 | R71: 54103 | S71: 48309 | T71: -5794 | U71: -0.1070920282
A73: Table 4d: Reasons for Approach - abbreviated (Percent)
B75: Quarter of Approach | M75: Bi-annual change | R75: Annual change
B76: 2015 Q2 | C76: 2015 Q3 | D76: 2015 Q4 | E76: 2016 Q1 | F76: 2016 Q2 | G76: 2016 Q3 | H76: 2016 Q4 | I76: 2017 Q1 | J76: 2017 Q2 | K76: 2017 Q3 | M76: April - Sept 2016 | N76: April - Sept 2017 | O76: % Change | R76: Year to end Sept 2016 | S76: Year to end Sept 2017 | T76: % Change
A77: Homelessness Type | B77: =B69/B$71 -> 0.6123909487 | C77: =C69/C$71 -> 0.6194587187 | D77: 0.6234343434 | E77: 0.6056195674 | F77: 0.6276533019 | G77: =G69/G$71 -> 0.6024476312 | H77: =H69/H$71 -> 0.6060579378 | I77: =I69/I$71 -> 0.6364304076 | J77: =J69/J$71 -> 0.6223587224 | K77: =K69/K$71 -> 0.6183158084 | M77: =SUM(F77:G77)/2 -> 0.6150504665 | N77: =SUM(J77:K77)/2 -> 0.6203372654 | O77: =N77-M77 -> 0.005286798831 | R77: =SUM(D77:G77)/4 -> 0.614788711 | S77: =SUM(H77:K77)/4 -> 0.6207907191 | T77: =S77-R77 -> 0.006002008072
A78: Prevention Type | B78: =B70/B$71 -> 0.3876090513 | C78: 0.3805412813 | D78: 0.3765656566 | E78: 0.3943804326 | F78: 0.3723466981 | G78: 0.3975523688 | H78: =H70/H$71 -> 0.3939420622 | I78: =I70/I$71 -> 0.3635695924 | J78: 0.3776412776 | K78: 0.3816841916 | M78: =SUM(F78:G78)/2 -> 0.3849495335 | N78: =SUM(J78:K78)/2 -> 0.3796627346 | O78: =N78-M78 -> -0.005286798831 | R78: =SUM(D78:G78)/4 -> 0.385211289 | S78: =SUM(H78:K78)/4 -> 0.3792092809 | T78: =S78-R78 -> -0.006002008072
A79: Total | B79: 1 | C79: 1 | D79: 1 | E79: 1 | F79: 1 | G79: 1 | H79: =H71/H$71 -> 1 | I79: =I71/I$71 -> 1 | J79: 1 | K79: 1 | M79: 1 | N79: 1 | O79: =N79-M79 -> 0 | R79: 1 | S79: 1 | T79: 0
A81: Notes
A82: Homeless Type Reasons as defined as: | B82: Termination of tenancy / mortgage due to rent arrears / default on payments
B83: Other action by landlord resulting in the termination of the tenancy
B84: Applicant terminated secure accommodation
B85: Loss of service / tied accommodation
B86: Discharge from prison / hospital / care / other institution
B87: Emergency (fire, flood, storm, closing order from Environmental Health etc.)
B88: Forced division and sale of matrimonial home
B89: Other reason for loss of accommodation
B90: Reasons for having to leave accommodation / household
B91: Dispute within household: violent or abusive
B92: Dispute within household / relationship breakdown: non-violent
B93: Fleeing non-domestic violence
B94: Harassment
B95: Overcrowding
B96: Asked to leave
B97: Other reason for leaving accommodation / household
A100: Prevention Type Reasons are defined as: | B100: General housing options advice
B101: Benefit issues (excluding Welfare Reform)
B102: Welfare Reform – Benefit Cap
B103: Welfare Reform – Under-occupancy penalty
B104: Welfare Reform - Other
B105: Property condition - disrepair
B106: Property condition – lacking amenities
B107: Property condition – fire/flood
B108: Accommodation unsuitable - Overcrowded
B109: Accommodation unsuitable – Mobility/ Adaptation Issues
B110: Accommodation unsuitable – Location
B111: Household experiencing anti-social behaviour / neighbour problems
B112: Household experiencing hate crime
B113: Household member needing care
B114: Personal issues – affordability / financial difficulties
B115: Risk of losing accommodation - eviction/ repossession
B116: Risk of losing accommodation - eviction from UK Borders Agency (or successor organisation) accommodation
B117: Risk of losing accommodation - tied/ service tenancy
B118: Risk of losing accommodation - asked to leave - parents
B119: Risk of losing accommodation - asked to leave – other family
B120: Risk of losing accommodation - asked to leave – friends
B121: Landlord issue - Harassment from private sector landlord
B122: Landlord issue - Illegal eviction – private sector landlord
B123: Other

Sheet Chart 4 - Approach Reasons
A1: Chart 4: Percentage of Approaches by Reason for Approach | L1: Back to Contents

Sheet Table 5 - Maximum Activty Type
A1: Table 5a: Maximum Activity Type (Number) | B1: Back to Contents
B3: Quarter of Approach | M3: Bi-annual change | R3: Annual change
A4: Activity type | B4: 2015 Q2 | C4: 2015 Q3 | D4: 2015 Q4 | E4: 2016 Q1 | F4: 2016 Q2 | G4: 2016 Q3 | H4: 2016 Q4 | I4: 2017 Q1 | J4: 2017 Q2 | K4: 2017 Q3 | M4: April to Sept 2016 | N4: April to Sept 2017 | O4: Change | P4: % | R4: Year to end Sept 2016 | S4: Year to end Sept 2017 | T4: Change | U4: %
A5: Type I – Active Information, Sign-posting and Explanation | B5: 8291 | C5: 7935 | D5: 6665 | E5: 8133 | F5: 7428 | G5: 7072 | H5: 6127 | I5: 7466 | J5: 6965 | K5: 6355 | M5: =SUM(F5:G5) -> 14500 | N5: =SUM(J5:K5) -> 13320 | O5: =N5-M5 -> -1180 | P5: =O5/M5 -> -0.08137931034 | R5: =SUM(D5:G5) -> 29298 | S5: =SUM(H5:K5) -> 26913 | T5: =S5-R5 -> -2385 | U5: =T5/R5 -> -0.08140487405
A6: Type II – Casework | B6: 6349 | C6: 6620 | D6: 5683 | E6: 6666 | F6: 6073 | G6: 6177 | H6: 5152 | I6: 6070 | J6: 5169 | K6: 4707 | M6: =SUM(F6:G6) -> 12250 | N6: =SUM(J6:K6) -> 9876 | O6: =N6-M6 -> -2374 | P6: =O6/M6 -> -0.1937959184 | R6: =SUM(D6:G6) -> 24599 | S6: =SUM(H6:K6) -> 21098 | T6: =S6-R6 -> -3501 | U6: =T6/R6 -> -0.1423228587
A7: Type III – Advocacy, Representation and Mediation at Tribunal or Court Action Level | B7: 32 | C7: 40 | D7: 27 | E7: 42 | F7: 67 | G7: 70 | H7: 78 | I7: 79 | J7: 76 | K7: 65 | M7: 137 | N7: 141 | O7: 4 | P7: 0.02919708029 | R7: 206 | S7: 298 | T7: 92 | U7: 0.4466019417
A8: Total | B8: 14672 | C8: 14595 | D8: 12375 | E8: 14841 | F8: 13568 | G8: 13319 | H8: 11357 | I8: 13615 | J8: 12210 | K8: 11127 | M8: =SUM(F8:G8) -> 26887 | N8: =SUM(J8:K8) -> 23337 | O8: =N8-M8 -> -3550 | P8: =O8/M8 -> -0.1320340685 | R8: 54103 | S8: 48309 | T8: -5794 | U8: -0.1070920282
A10: Table 5b: Maximum Activity Type (Percent)
M12: Bi-annual change | R12: Annual change
A13: Activity type (Percentage) | B13: 2015 Q2 | C13: 2015 Q3 | D13: 2015 Q4 | E13: 2016 Q1 | F13: 2016 Q2 | G13: 2016 Q3 | H13: 2016 Q4 | I13: 2017 Q1 | J13: 2017 Q2 | K13: 2017 Q3 | M13: April to Sept 2016 | N13: April to Sept 2017 | O13: % change | R13: Year to end Sept 2016 | S13: Year to end Sept 2017 | T13: % change
A14: Type I – Active Information, Sign-posting and Explanation | B14: =B5/B$8 -> 0.5650899673 | C14: =C5/C$8 -> 0.5436793422 | D14: 0.5385858586 | E14: 0.5480088943 | F14: 0.5474646226 | G14: 0.5309707936 | H14: =H5/H$8 -> 0.5394910628 | I14: =I5/I$8 -> 0.548365773 | J14: =J5/J$8 -> 0.5704340704 | K14: 0.5711332794 | M14: =SUM(F14:G14)/2 -> 0.5392177081 | N14: =SUM(J14:K14)/2 -> 0.5707836749 | O14: =N14-M14 -> 0.0315659668 | R14: =SUM(D14:G14)/4 -> 0.5412575423 | S14: =SUM(H14:K14)/4 -> 0.5573560464 | T14: =S14-R14 -> 0.01609850414
A15: Type II – Casework | B15: =B6/B$8 -> 0.4327290076 | C15: 0.4535799931 | D15: 0.4592323232 | E15: 0.4491611077 | F15: 0.4475972877 | G15: 0.4637735566 | H15: =H6/H$8 -> 0.4536409263 | I15: =I6/I$8 -> 0.4458318032 | J15: 0.4233415233 | K15: 0.4230250741 | M15: =SUM(F15:G15)/2 -> 0.4556854222 | N15: =SUM(J15:K15)/2 -> 0.4231832987 | O15: =N15-M15 -> -0.03250212341 | R15: =SUM(D15:G15)/4 -> 0.4549410688 | S15: =SUM(H15:K15)/4 -> 0.4364598317 | T15: =S15-R15 -> -0.01848123708
A16: Type III – Advocacy, Representation and Mediation at Tribunal or Court Action Level | B16: =B7/B$8 -> 0.002181025082 | C16: 0.002740664611 | D16: 0.002181818182 | E16: 0.002829997979 | F16: 0.004938089623 | G16: 0.005255649824 | H16: =H7/H$8 -> 0.006868010918 | I16: =I7/I$8 -> 0.005802423797 | J16: 0.006224406224 | K16: 0.005841646446 | M16: 0.005096869723 | N16: 0.006033026335 | O16: 0.0009361566119 | R16: 0.003801388902 | S16: 0.006184121846 | T16: 0.002382732945
A17: Total | B17: =B8/B$8 -> 1 | C17: 1 | D17: 1 | E17: 1 | F17: 1 | G17: 1 | H17: =H8/H$8 -> 1 | I17: =I8/I$8 -> 1 | J17: 1 | K17: 1 | M17: =SUM(J17:K17)/2 -> 1 | N17: =SUM(G17:H17)/2 -> 1 | O17: 0 | R17: =SUM(D17:G17)/4 -> 1 | S17: =SUM(H17:K17)/4 -> 1 | T17: 0

Sheet Chart 5 - Activities Type by Q
A1: Chart 5: Percentage of Approaches with each level of activity type by quarter | N1: Back to Contents

Sheet Table 6 - Activities
A1: Table 6a: Housing Options activities by quarter (number) | D1: Back to Contents
B3: Quarter of Approach | M3: Bi-annual change | R3: Annual change
A4: Activity type | B4: 2015 Q2 | C4: 2015 Q3 | D4: 2015 Q4 | E4: 2016 Q1 | F4: 2016 Q2 | G4: 2016 Q3 | H4: 2016 Q4 | I4: 2017 Q1 | J4: 2017 Q2 | K4: 2017 Q3 | M4: April to Sept 2016 | N4: April to Sept 2017 | O4: Change | P4: % | R4: Year to end Sept 2016 | S4: Year to end Sept 2017 | T4: Change | U4: %
A5: General Housing advice/Tenancy rights advice | B5: 12462 | C5: 12712 | D5: 10400 | E5: 12594 | F5: 11084 | G5: 10662 | H5: 8906 | I5: 10934 | J5: 9839 | K5: 8499 | M5: =SUM(F5:G5) -> 21746 | N5: =SUM(J5:K5) -> 18338 | O5: =N5-M5 -> -3408 | P5: =O5/M5 -> -0.156718477 | R5: =SUM(D5:G5) -> 44740 | S5: =SUM(H5:K5) -> 38178 | T5: =S5-R5 -> -6562 | U5: =T5/R5 -> -0.1466696468
A6: Client informed of rights under homelessness legislation | B6: 7814 | C6: 7839 | D6: 6827 | E6: 8103 | F6: 7466 | G6: 7110 | H6: 6138 | I6: 7739 | J6: 6806 | K6: 6294 | M6: 14576 | N6: 13100 | O6: =N6-M6 -> -1476 | P6: =O6/M6 -> -0.1012623491 | R6: =SUM(D6:G6) -> 29506 | S6: =SUM(H6:K6) -> 26977 | T6: =S6-R6 -> -2529 | U6: =T6/R6 -> -0.08571138074
A7: Rent/repairs/referrals/negotiation with landlords | B7: 2246 | C7: 2315 | D7: 1765 | E7: 1850 | F7: 1679 | G7: 1778 | H7: 1464 | I7: 1741 | J7: 1588 | K7: 1514 | M7: 3457 | N7: 3102 | O7: -355 | P7: -0.1026901938 | R7: 7072 | S7: 6307 | T7: -765 | U7: -0.1081730769
A8: Help to move property | B8: 1874 | C8: 2008 | D8: 1601 | E8: 2000 | F8: 2028 | G8: 2154 | H8: 1702 | I8: 2173 | J8: 1958 | K8: 1443 | M8: 4182 | N8: 3401 | O8: -781 | P8: -0.1867527499 | R8: 7783 | S8: 7276 | T8: -507 | U8: -0.0651419761
A9: Other | B9: 1611 | C9: 1642 | D9: 1393 | E9: 1696 | F9: 1546 | G9: 1686 | H9: 1437 | I9: 1455 | J9: 1113 | K9: 1414 | M9: 3232 | N9: 2527 | O9: -705 | P9: -0.2181311881 | R9: 6321 | S9: 5419 | T9: -902 | U9: -0.14269894
A10: Financial assistance/advice | B10: 2439 | C10: 2474 | D10: 2059 | E10: 2147 | F10: 2007 | G10: 2193 | H10: 1822 | I10: 1814 | J10: 1593 | K10: 1357 | M10: 4200 | N10: 2950 | O10: -1250 | P10: -0.2976190476 | R10: 8406 | S10: 6586 | T10: -1820 | U10: -0.2165120152
A11: Referral to health/Social Work/employment services | B11: 795 | C11: 958 | D11: 717 | E11: 836 | F11: 805 | G11: 882 | H11: 734 | I11: 825 | J11: 837 | K11: 760 | M11: 1687 | N11: 1597 | O11: -90 | P11: -0.05334914049 | R11: 3240 | S11: 3156 | T11: -84 | U11: -0.02592592593
A12: Help to remain in accommodation | B12: 693 | C12: 774 | D12: 566 | E12: 732 | F12: 616 | G12: 736 | H12: 560 | I12: 564 | J12: 579 | K12: 417 | M12: 1352 | N12: 996 | O12: -356 | P12: -0.2633136095 | R12: 2650 | S12: 2120 | T12: -530 | U12: -0.2
A13: Tenancy/social care support/adaptations to property | B13: 372 | C13: 340 | D13: 343 | E13: 419 | F13: 377 | G13: 342 | H13: 251 | I13: 343 | J13: 419 | K13: 382 | M13: 719 | N13: 801 | O13: 82 | P13: 0.1140472879 | R13: 1481 | S13: 1395 | T13: -86 | U13: -0.05806887238
A14: Mediation/outreach work | B14: 397 | C14: 393 | D14: 339 | E14: 440 | F14: 414 | G14: 475 | H14: 342 | I14: 416 | J14: 315 | K14: 252 | M14: 889 | N14: 567 | O14: -322 | P14: -0.3622047244 | R14: 1668 | S14: 1325 | T14: -343 | U14: -0.2056354916
A15: Mortgage/home ownership advice | B15: 164 | C15: 154 | D15: 99 | E15: 131 | F15: 97 | G15: 91 | H15: 68 | I15: 103 | J15: 86 | K15: 65 | M15: 188 | N15: 151 | O15: -37 | P15: -0.1968085106 | R15: 418 | S15: 322 | T15: -96 | U15: -0.2296650718
A16: Total (ALL) | B16: 30867 | C16: 31609 | D16: 26109 | E16: 30948 | F16: 28119 | G16: 28109 | H16: 23424 | I16: 28107 | J16: 25133 | K16: 22397 | M16: 56228 | N16: 47530 | O16: -8698 | P16: -0.1546916127 | R16: 113285 | S16: 99061 | T16: -14224 | U16: -0.1255594298
A18: Table 6b: Housing Options activities by quarter (percent)
B20: Quarter of Approach | M20: Bi-annual change | R20: Annual change
A21: Activity Type | B21: 2015 Q2 | C21: 2015 Q3 | D21: 2015 Q4 | E21: 2016 Q1 | F21: 2016 Q2 | G21: 2016 Q3 | H21: 2016 Q4 | I21: 2017 Q1 | J21: 2017 Q2 | K21: 2017 Q3 | M21: April to Sept 2016 | N21: April to Sept 2017 | O21: % change | R21: Year to end Sept 2016 | S21: Year to end Sept 2017 | T21: % change
A22: General Housing advice/Tenancy rights advice | B22: =B5/B$16 -> 0.4037321411 | C22: =C5/C$16 -> 0.4021639406 | D22: 0.3983300778 | E22: 0.4069406747 | F22: 0.3941818699 | G22: 0.3793091181 | H22: =H5/H$16 -> 0.3802083333 | I22: =I5/I$16 -> 0.389013413 | J22: 0.3914773405 | K22: 0.3794704648 | M22: =SUM(F22:G22)/2 -> 0.386745494 | N22: =SUM(J22:K22)/2 -> 0.3854739027 | O22: =N22-M22 -> -0.001271591322 | R22: =SUM(D22:G22)/4 -> 0.3946904351 | S22: =SUM(H22:K22)/4 -> 0.3850423879 | T22: =S22-R22 -> -0.009648047178
A23: Client informed of rights under homelessness legislation | B23: =B6/B$16 -> 0.2531506139 | C23: 0.2479989876 | D23: 0.2614807155 | E23: 0.2618262893 | F23: 0.2655144209 | G23: 0.252943897 | H23: =H6/H$16 -> 0.2620389344 | I23: =I6/I$16 -> 0.2753406625 | J23: 0.2707993475 | K23: 0.2810197794 | M23: 0.2592291589 | N23: 0.2759095635 | O23: =N23-M23 -> 0.01668040454 | R23: =SUM(D23:G23)/4 -> 0.2604413306 | S23: =SUM(H23:K23)/4 -> 0.272299681 | T23: =S23-R23 -> 0.01185835031
A24: Financial assistance/advice | B24: =B7/B$16 -> 0.07276379305 | C24: 0.07323863457 | D24: 0.06760121031 | E24: 0.05977769161 | F24: 0.05971051602 | G24: 0.06325376214 | H24: =H7/H$16 -> 0.0625 | I24: =I7/I$16 -> 0.06194186502 | J24: 0.06318386185 | K24: 0.06759833906 | M24: 0.06148213908 | N24: 0.06539110046 | O24: 0.003908961378 | R24: 0.06258579502 | S24: 0.06380601648 | T24: 0.001220221463
A25: Help to move property | B25: =B8/B$16 -> 0.06071208734 | C25: 0.06352621089 | D25: 0.06131985139 | E25: 0.06462453147 | F25: 0.0721220527 | G25: 0.07663026077 | H25: =H8/H$16 -> 0.07266051913 | I25: =I8/I$16 -> 0.07731170171 | J25: 0.07790554251 | K25: 0.06442827164 | M25: 0.07437615674 | N25: 0.07116690708 | O25: -0.003209249659 | R25: 0.06867417408 | S25: 0.07307650875 | T25: 0.004402334664
A26: Rent/repairs/referrals/negotiation with landlords | B26: =B9/B$16 -> 0.052191661 | C26: 0.05194723022 | D26: 0.05335324984 | E26: 0.05480160269 | F26: 0.05498061809 | G26: 0.05998078907 | H26: =H9/H$16 -> 0.06134733607 | I26: =I9/I$16 -> 0.05176646387 | J26: 0.04428440695 | K26: 0.06313345537 | M26: 0.05748070358 | N26: 0.05370893116 | O26: -0.003771772415 | R26: 0.05577906492 | S26: 0.05513291557 | T26: -0.000646149355
A27: Other | B27: =B10/B$16 -> 0.07901642531 | C27: 0.07826884748 | D27: 0.0788616952 | E27: 0.06937443454 | F27: 0.07137522672 | G27: 0.07801771675 | H27: =H10/H$16 -> 0.07778346995 | I27: =I10/I$16 -> 0.06453908279 | J27: 0.06338280349 | K27: 0.06058847167 | M27: 0.07469647173 | N27: 0.06198563758 | O27: -0.01271083415 | R27: 0.0744072683 | S27: 0.06657345697 | T27: -0.007833811326
A28: Referral to health/Social Work/employment services | B28: =B11/B$16 -> 0.02575566139 | C28: 0.03030782372 | D28: 0.02746179478 | E28: 0.02701305416 | F28: 0.0286283296 | G28: 0.03137785051 | H28: =H11/H$16 -> 0.03133538251 | I28: =I11/I$16 -> 0.02935211869 | J28: 0.03330282895 | K28: 0.03393311604 | M28: 0.03000309005 | N28: 0.0336179725 | O28: 0.003614882441 | R28: 0.02862025726 | S28: 0.03198086155 | T28: 0.003360604287
A29: Help to remain in accommodation | B29: =B12/B$16 -> 0.02245116143 | C29: 0.02448669683 | D29: 0.02167834846 | E29: 0.02365257852 | F29: 0.02190689569 | G29: 0.02618378455 | H29: =H12/H$16 -> 0.02390710383 | I29: =I12/I$16 -> 0.02006617569 | J29: 0.02303744081 | K29: 0.01861856499 | M29: 0.02404534012 | N29: 0.0208280029 | O29: -0.003217337223 | R29: 0.02335540181 | S29: 0.02140732133 | T29: -0.001948080479
A30: Mediation/outreach work | B30: =B13/B$16 -> 0.01205170571 | C30: 0.01075643013 | D30: 0.01313723237 | E30: 0.01353883934 | F30: 0.01340730467 | G30: 0.01216692163 | H30: =H13/H$16 -> 0.01071550546 | I30: =I13/I$16 -> 0.01220336571 | J30: 0.01667130864 | K30: 0.01705585569 | M30: 0.01278711315 | N30: 0.01686358217 | O30: 0.004076469019 | R30: 0.0130625745 | S30: 0.01416150888 | T30: 0.001098934374
A31: Tenancy/social care support/adaptations to property | B31: =B14/B$16 -> 0.01286163216 | C31: 0.01243316777 | D31: 0.0129840285 | E31: 0.01421739692 | F31: 0.01472314094 | G31: 0.01689850226 | H31: =H14/H$16 -> 0.01460040984 | I31: =I14/I$16 -> 0.01480058348 | J31: 0.01253332272 | K31: 0.0112515069 | M31: 0.0158108216 | N31: 0.01189241481 | O31: -0.003918406787 | R31: 0.01470576715 | S31: 0.01329645574 | T31: -0.001409311418
A32: Mortgage/home ownership advice | B32: =B15/B$16 -> 0.005313117569 | C32: 0.004872030118 | D32: 0.003791795932 | E32: 0.004232906811 | F32: 0.003449624809 | G32: 0.003237397275 | H32: =H15/H$16 -> 0.002903005464 | I32: =I15/I$16 -> 0.003664567545 | J32: 0.003421796045 | K32: 0.002902174398 | M32: 0.003343511042 | N32: 0.003161985222 | O32: -0.0001815258202 | R32: 0.003677931207 | S32: 0.003222885863 | T32: -0.0004550453436
A33: Total (ALL) | B33: =B16/B$16 -> 1 | C33: 1 | D33: 1 | E33: 1 | F33: 1 | G33: 1 | H33: =H16/H$16 -> 1 | I33: =I16/I$16 -> 1 | J33: 1 | K33: 1 | M33: 1 | N33: 1 | O33: 0 | R33: 1 | S33: 1 | T33: 0
A46: Data for chart
M47: Bi-annual change
B48: Quarter of Approach | M48: April to Sept 2016 | N48: April to Sept 2017 | O48: % change
B49: 2015 Q2 | C49: 2015 Q3 | D49: 2015 Q4 | E49: 2016 Q1 | F49: 2016 Q2 | G49: 2016 Q3 | H49: 2016 Q4 | I49: 2017 Q1 | J49: 2017 Q2 | K49: 2017 Q3
A50: =A22 -> General Housing advice/Tenancy rights advice | B50: =B22 -> 0.4037321411 | C50: =C22 -> 0.4021639406 | D50: 0.3983300778 | E50: 0.4069406747 | F50: 0.3941818699 | G50: 0.3793091181 | H50: 0.3802083333 | I50: 0.389013413 | J50: 0.3914773405 | K50: 0.3794704648 | M50: =SUM(F50:G50)/2 -> 0.386745494 | N50: =SUM(J50:K50)/2 -> 0.3854739027 | O50: =N50-M50 -> -0.001271591322
A51: =A23 -> Client informed of rights under homelessness legislation | B51: =B23 -> 0.2531506139 | C51: =C23 -> 0.2479989876 | D51: 0.2614807155 | E51: 0.2618262893 | F51: 0.2655144209 | G51: 0.252943897 | H51: 0.2620389344 | I51: 0.2753406625 | J51: 0.2707993475 | K51: 0.2810197794 | M51: =SUM(F51:G51)/2 -> 0.2592291589 | N51: =SUM(J51:K51)/2 -> 0.2759095635 | O51: =N51-M51 -> 0.01668040454
A52: Other Activity | B52: =SUM(B24:B32) -> 0.343117245 | C52: =SUM(C24:C32) -> 0.3498370717 | D52: 0.3401892068 | E52: 0.3312330361 | F52: 0.3403037092 | G52: 0.367746985 | H52: 0.3577527322 | I52: 0.3356459245 | J52: 0.337723312 | K52: 0.3395097558 | M52: 0.3540253471 | N52: 0.3386165339 | O52: -0.01540881322

Sheet Chart 6 - Activities
A1: Chart 6: Housing Options Actvities by quarter | N1: Back to Contents

Sheet Table 7 - Activities by LA
A1: Table 7a: Housing Options activities by Local Authority, during the last 6 months, 1 April to 30 September 2017 (number) | L1: Back to Contents
A3: Local Authority | B3: ACTIVITY | M3: All
B4: Mediation/outreach work | C4: Financial assistance/advice | D4: Rent/repairs/referrals/negotiation with landlords | E4: Help to remain in accommodation | F4: Mortgage/home ownership advice | G4: Tenancy/social care support/adaptations to property | H4: Referral to health/Social Work/employment services | I4: Client informed of rights under homelessness legislation | J4: General Housing advice/Tenancy rights advice | K4: Help to move property | L4: Other | O4: All other activities | P4: NB: This includes all categories apart from 'Client informed of rights under homelessness legislation' and 'General Housing Advice'
A5: Scotland | B5: 565 | C5: 2950 | D5: 3100 | E5: 995 | F5: 150 | G5: 800 | H5: 1595 | I5: 13100 | J5: 18340 | K5: 3400 | L5: 2525 | M5: 47530 | O5: =SUM(B5:H5,K5:L5) -> 16080
A6: Aberdeen City | B6: 20 | C6: 35 | D6: 20 | E6: 90 | F6: 5 | G6: 5 | H6: 25 | I6: 740 | J6: 1145 | K6: 190 | L6: 0 | M6: 2275 | O6: 390
A7: Aberdeenshire | B7: 20 | C7: 210 | D7: 265 | E7: 20 | F7: 10 | G7: 5 | H7: 20 | I7: 630 | J7: 895 | K7: 5 | L7: 20 | M7: 2095 | O7: 575
A8: Angus | B8: 5 | C8: 225 | D8: 80 | E8: 35 | F8: 5 | G8: 25 | H8: 10 | I8: 280 | J8: 430 | K8: 280 | L8: 0 | M8: 1375 | O8: 665
A9: Argyll & Bute | B9: 5 | C9: 25 | D9: 60 | E9: 130 | F9: 0 | G9: 40 | H9: 5 | I9: 435 | J9: 610 | K9: 90 | L9: 5 | M9: 1405 | O9: 360
A10: Clackmannanshire | B10: 0 | C10: 0 | D10: 10 | E10: 0 | F10: 0 | G10: 0 | H10: 0 | I10: 275 | J10: 245 | K10: 20 | L10: 0 | M10: 550 | O10: 30
A11: Dumfries & Galloway | B11: 0 | C11: 15 | D11: 40 | E11: 10 | F11: 0 | G11: 85 | H11: 25 | I11: 455 | J11: 480 | K11: 150 | L11: 10 | M11: 1275 | O11: 335
A12: Dundee City | B12: 10 | C12: 10 | D12: 30 | E12: 10 | F12: 0 | G12: 5 | H12: 5 | I12: 595 | J12: 680 | K12: 65 | L12: 20 | M12: 1430 | O12: 155
A13: East Ayrshire | B13: 0 | C13: 55 | D13: 40 | E13: 5 | F13: 20 | G13: 20 | H13: 15 | I13: 30 | J13: 35 | K13: 5 | L13: 0 | M13: 230 | O13: 160
A14: East Dunbartonshire | B14: 0 | C14: 95 | D14: 70 | E14: 10 | F14: 5 | G14: 5 | H14: 5 | I14: 130 | J14: 135 | K14: 150 | L14: 0 | M14: 605 | O14: 340
A15: East Lothian | B15: 0 | C15: 25 | D15: 60 | E15: 15 | F15: 5 | G15: 0 | H15: 0 | I15: 45 | J15: 75 | K15: 55 | L15: 5 | M15: 285 | O15: 165
A16: East Renfrewshire | B16: 0 | C16: 25 | D16: 25 | E16: 5 | F16: 5 | G16: 5 | H16: 10 | I16: 60 | J16: 50 | K16: 5 | L16: 0 | M16: 190 | O16: 80
A17: Edinburgh | B17: 0 | C17: 95 | D17: 45 | E17: 5 | F17: 5 | G17: 0 | H17: 45 | I17: 825 | J17: 1685 | K17: 15 | L17: 15 | M17: 2740 | O17: 225
A18: Eilean Siar | B18: 0 | C18: 0 | D18: 0 | E18: 0 | F18: 0 | G18: 0 | H18: 0 | I18: 0 | J18: 0 | K18: 0 | L18: 0 | M18: 5 | O18: 0
A19: Falkirk | B19: 330 | C19: 970 | D19: 75 | E19: 460 | F19: 0 | G19: 50 | H19: 485 | I19: 1020 | J19: 1230 | K19: 755 | L19: 1490 | M19: 6865 | O19: 4615
A20: Fife | B20: 30 | C20: 145 | D20: 430 | E20: 35 | F20: 50 | G20: 30 | H20: 70 | I20: 1105 | J20: 1455 | K20: 265 | L20: 55 | M20: 3675 | O20: 1110
A21: Glasgow City | B21: 10 | C21: 70 | D21: 80 | E21: 50 | F21: 0 | G21: 0 | H21: 635 | I21: 1795 | J21: 2265 | K21: 25 | L21: 0 | M21: 4940 | O21: 870
A22: Highland | B22: 0 | C22: 5 | D22: 5 | E22: 5 | F22: 5 | G22: 0 | H22: 0 | I22: 65 | J22: 95 | K22: 0 | L22: 0 | M22: 190 | O22: 20
A23: Inverclyde | B23: 0 | C23: 5 | D23: 0 | E23: 5 | F23: 0 | G23: 0 | H23: 5 | I23: 235 | J23: 320 | K23: 20 | L23: 5 | M23: 595 | O23: 40
A24: Midlothian | B24: 15 | C24: 25 | D24: 15 | E24: 0 | F24: 0 | G24: 5 | H24: 0 | I24: 125 | J24: 235 | K24: 30 | L24: 110 | M24: 565 | O24: 200
A25: Moray | B25: 25 | C25: 65 | D25: 30 | E25: 5 | F25: 0 | G25: 10 | H25: 15 | I25: 430 | J25: 530 | K25: 105 | L25: 125 | M25: 1335 | O25: 380
A26: North Ayrshire | B26: 0 | C26: 75 | D26: 725 | E26: 10 | F26: 5 | G26: 0 | H26: 5 | I26: 790 | J26: 850 | K26: 10 | L26: 5 | M26: 2470 | O26: 835
A27: North Lanarkshire | B27: 5 | C27: 260 | D27: 140 | E27: 30 | F27: 5 | G27: 110 | H27: 35 | I27: 200 | J27: 980 | K27: 35 | L27: 85 | M27: 1880 | O27: 705
A28: Orkney | B28: 0 | C28: 0 | D28: 0 | E28: 0 | F28: 0 | G28: 0 | H28: 0 | I28: 10 | J28: 20 | K28: 0 | L28: 0 | M28: 30 | O28: 0
A29: Perth & Kinross | B29: 10 | C29: 20 | D29: 235 | E29: 0 | F29: 0 | G29: 0 | H29: 5 | I29: 425 | J29: 725 | K29: 5 | L29: 75 | M29: 1505 | O29: 350
A30: Renfrewshire | B30: 55 | C30: 295 | D30: 175 | E30: 10 | F30: 5 | G30: 75 | H30: 70 | I30: 765 | J30: 945 | K30: 280 | L30: 40 | M30: 2720 | O30: 1005
A31: Scottish Borders | B31: 0 | C31: 30 | D31: 55 | E31: 0 | F31: 0 | G31: 45 | H31: 5 | I31: 225 | J31: 280 | K31: 115 | L31: 0 | M31: 755 | O31: 250
A32: Shetland | B32: 0 | C32: 5 | D32: 0 | E32: 0 | F32: 0 | G32: 0 | H32: 0 | I32: 95 | J32: 110 | K32: 0 | L32: 0 | M32: 225 | O32: 5
A33: South Ayrshire | B33: 10 | C33: 45 | D33: 230 | E33: 10 | F33: 5 | G33: 280 | H33: 95 | I33: 405 | J33: 630 | K33: 230 | L33: 445 | M33: 2385 | O33: 1350
A34: South Lanarkshire | B34: 5 | C34: 65 | D34: 110 | E34: 10 | F34: 0 | G34: 0 | H34: 0 | I34: 380 | J34: 500 | K34: 420 | L34: 0 | M34: 1495 | O34: 610
A35: Stirling | B35: 0 | C35: 5 | D35: 10 | E35: 0 | F35: 0 | G35: 0 | H35: 0 | I35: 40 | J35: 165 | K35: 5 | L35: 0 | M35: 225 | O35: 20
A36: West Dunbartonshire | B36: 0 | C36: 30 | D36: 25 | E36: 15 | F36: 5 | G36: 0 | H36: 0 | I36: 105 | J36: 85 | K36: 50 | L36: 0 | M36: 320 | O36: 125
A37: West Lothian | B37: 0 | C37: 15 | D37: 30 | E37: 5 | F37: 5 | G37: 0 | H37: 5 | I37: 380 | J37: 445 | K37: 20 | L37: 0 | M37: 905 | O37: 80
A39: Disclosure Control has been applied to this table. All cells have been rounded to the nearest five.
A40: Column totals may not sum to total of individual cells due to rounding.
A42: Table 7b: Housing Options activities by Local Authority, during the last 6 months, 1 April 2016 to 30 September 2016 (percent)
A44: Local Authority | B44: ACTIVITY | M44: All
B45: Mediation/ outreach work | C45: Financial assistance/ advice | D45: Rent/repairs/ referrals/ negotiation with landlords | E45: Help to remain in accommodation | F45: Mortgage/ home ownership advice | G45: Tenancy/ social care support/ adaptations to property | H45: Referral to health/Social Work/ employment services | I45: Client informed of rights under homelessness legislation | J45: General Housing advice/ Tenancy rights advice | K45: Help to move property | L45: Other | O45: All other activities
A46: Scotland | B46: =B5/$M5 -> 0.01188722912 | C46: =C5/$M5 -> 0.06206606354 | D46: 0.06522196507 | E46: 0.02093414685 | F46: 0.003155901536 | G46: 0.01683147486 | H46: 0.033557753 | I46: 0.2756154008 | J46: 0.3858615611 | K46: 0.07153376815 | L46: =L5/$M5 -> 0.05312434252 | M46: =SUM(B46,C46,D46,E46,F46,G46,H46,I46,J46,K46,L46) -> 0.9997896066 | O46: =O5/$M5 -> 0.3383126446
A47: Aberdeen City | B47: =B6/$M6 -> 0.008791208791 | C47: 0.01538461538 | D47: 0.008791208791 | E47: 0.03956043956 | F47: 0.002197802198 | G47: 0.002197802198 | H47: 0.01098901099 | I47: 0.3252747253 | J47: 0.5032967033 | K47: 0.08351648352 | L47: 0 | M47: =SUM(B47,C47,D47,E47,F47,G47,H47,I47,J47,K47,L47) -> 1 | O47: 0.1714285714
A48: Aberdeenshire | B48: =B7/$M7 -> 0.009546539379 | C48: 0.1002386635 | D48: 0.1264916468 | E48: 0.009546539379 | F48: 0.00477326969 | G48: 0.002386634845 | H48: 0.009546539379 | I48: 0.3007159905 | J48: 0.4272076372 | K48: 0.002386634845 | L48: 0.009546539379 | M48: 1.002386635 | O48: 0.2744630072
A49: Angus | B49: =B8/$M8 -> 0.003636363636 | C49: 0.1636363636 | D49: 0.05818181818 | E49: 0.02545454545 | F49: 0.003636363636 | G49: 0.01818181818 | H49: 0.007272727273 | I49: 0.2036363636 | J49: 0.3127272727 | K49: 0.2036363636 | L49: 0 | M49: 1 | O49: 0.4836363636
A50: Argyll & Bute | B50: =B9/$M9 -> 0.003558718861 | C50: 0.01779359431 | D50: 0.04270462633 | E50: 0.09252669039 | F50: 0 | G50: 0.02846975089 | H50: 0.003558718861 | I50: 0.3096085409 | J50: 0.4341637011 | K50: 0.0640569395 | L50: 0.003558718861 | M50: 1 | O50: 0.256227758
A51: Clackmannanshire | B51: =B10/$M10 -> 0 | C51: 0 | D51: 0.01818181818 | E51: 0 | F51: 0 | G51: 0 | H51: 0 | I51: 0.5 | J51: 0.4454545455 | K51: 0.03636363636 | L51: 0 | M51: 1 | O51: 0.05454545455
A52: Dumfries & Galloway | B52: =B11/$M11 -> 0 | C52: 0.01176470588 | D52: 0.03137254902 | E52: 0.007843137255 | F52: 0 | G52: 0.06666666667 | H52: 0.01960784314 | I52: 0.3568627451 | J52: 0.3764705882 | K52: 0.1176470588 | L52: 0.007843137255 | M52: 0.9960784314 | O52: 0.262745098
A53: Dundee City | B53: =B12/$M12 -> 0.006993006993 | C53: 0.006993006993 | D53: 0.02097902098 | E53: 0.006993006993 | F53: 0 | G53: 0.003496503497 | H53: 0.003496503497 | I53: 0.4160839161 | J53: 0.4755244755 | K53: 0.04545454545 | L53: 0.01398601399 | M53: 1 | O53: 0.1083916084
A54: East Ayrshire | B54: =B13/$M13 -> 0 | C54: 0.2391304348 | D54: 0.1739130435 | E54: 0.02173913043 | F54: 0.08695652174 | G54: 0.08695652174 | H54: 0.0652173913 | I54: 0.1304347826 | J54: 0.152173913 | K54: 0.02173913043 | L54: 0 | M54: 0.9782608696 | O54: 0.6956521739
A55: East Dunbartonshire | B55: =B14/$M14 -> 0 | C55: 0.1570247934 | D55: 0.1157024793 | E55: 0.01652892562 | F55: 0.00826446281 | G55: 0.00826446281 | H55: 0.00826446281 | I55: 0.2148760331 | J55: 0.2231404959 | K55: 0.2479338843 | L55: 0 | M55: 1 | O55: 0.5619834711
A56: East Lothian | B56: =B15/$M15 -> 0 | C56: 0.08771929825 | D56: 0.2105263158 | E56: 0.05263157895 | F56: 0.01754385965 | G56: 0 | H56: 0 | I56: 0.1578947368 | J56: 0.2631578947 | K56: 0.1929824561 | L56: 0.01754385965 | M56: 1 | O56: 0.5789473684
A57: East Renfrewshire | B57: =B16/$M16 -> 0 | C57: 0.1315789474 | D57: 0.1315789474 | E57: 0.02631578947 | F57: 0.02631578947 | G57: 0.02631578947 | H57: 0.05263157895 | I57: 0.3157894737 | J57: 0.2631578947 | K57: 0.02631578947 | L57: 0 | M57: 1 | O57: 0.4210526316
A58: Edinburgh | B58: =B17/$M17 -> 0 | C58: 0.03467153285 | D58: 0.01642335766 | E58: 0.001824817518 | F58: 0.001824817518 | G58: 0 | H58: 0.01642335766 | I58: 0.3010948905 | J58: 0.6149635036 | K58: 0.005474452555 | L58: 0.005474452555 | M58: 0.9981751825 | O58: 0.08211678832
A59: Eilean Siar | B59: =B18/$M18 -> 0 | C59: 0 | D59: 0 | E59: 0 | F59: 0 | G59: 0 | H59: 0 | I59: 0 | J59: 0 | K59: 0 | L59: 0 | M59: =SUM(B59,C59,D59,E59,F59,G59,H59,I59,J59,K59,L59) -> 0 | O59: 0
A60: Falkirk | B60: =B19/$M19 -> 0.04806991988 | C60: 0.1412964312 | D60: 0.01092498179 | E60: 0.06700655499 | F60: 0 | G60: 0.007283321194 | H60: 0.07064821559 | I60: 0.1485797524 | J60: 0.1791697014 | K60: 0.10997815 | L60: 0.2170429716 | M60: 1 | O60: 0.6722505462
A61: Fife | B61: =B20/$M20 -> 0.008163265306 | C61: 0.03945578231 | D61: 0.1170068027 | E61: 0.009523809524 | F61: 0.01360544218 | G61: 0.008163265306 | H61: 0.01904761905 | I61: 0.3006802721 | J61: 0.3959183673 | K61: 0.07210884354 | L61: 0.01496598639 | M61: 0.9986394558 | O61: 0.3020408163
A62: Glasgow City | B62: =B21/$M21 -> 0.002024291498 | C62: 0.01417004049 | D62: 0.01619433198 | E62: 0.01012145749 | F62: 0 | G62: 0 | H62: 0.1285425101 | I62: 0.3633603239 | J62: 0.4585020243 | K62: 0.005060728745 | L62: 0 | M62: 0.9979757085 | O62: 0.1761133603
A63: Highland | B63: =B22/$M22 -> 0 | C63: 0.02631578947 | D63: 0.02631578947 | E63: 0.02631578947 | F63: 0.02631578947 | G63: 0 | H63: 0 | I63: 0.3421052632 | J63: 0.5 | K63: 0 | L63: 0 | M63: 0.9473684211 | O63: 0.1052631579
A64: Inverclyde | B64: =B23/$M23 -> 0 | C64: 0.008403361345 | D64: 0 | E64: 0.008403361345 | F64: 0 | G64: 0 | H64: 0.008403361345 | I64: 0.3949579832 | J64: 0.5378151261 | K64: 0.03361344538 | L64: 0.008403361345 | M64: 1 | O64: 0.06722689076
A65: Midlothian | B65: =B24/$M24 -> 0.02654867257 | C65: 0.04424778761 | D65: 0.02654867257 | E65: 0 | F65: 0 | G65: 0.008849557522 | H65: 0 | I65: 0.2212389381 | J65: 0.4159292035 | K65: 0.05309734513 | L65: 0.1946902655 | M65: 0.9911504425 | O65: 0.3539823009
A66: Moray | B66: =B25/$M25 -> 0.01872659176 | C66: 0.04868913858 | D66: 0.02247191011 | E66: 0.003745318352 | F66: 0 | G66: 0.007490636704 | H66: 0.01123595506 | I66: 0.3220973783 | J66: 0.3970037453 | K66: 0.07865168539 | L66: 0.0936329588 | M66: 1.003745318 | O66: 0.2846441948
A67: North Ayrshire | B67: =B26/$M26 -> 0 | C67: 0.03036437247 | D67: 0.2935222672 | E67: 0.004048582996 | F67: 0.002024291498 | G67: 0 | H67: 0.002024291498 | I67: 0.3198380567 | J67: 0.3441295547 | K67: 0.004048582996 | L67: 0.002024291498 | M67: 1.002024291 | O67: 0.3380566802
A68: North Lanarkshire | B68: =B27/$M27 -> 0.002659574468 | C68: 0.1382978723 | D68: 0.07446808511 | E68: 0.01595744681 | F68: 0.002659574468 | G68: 0.0585106383 | H68: 0.01861702128 | I68: 0.1063829787 | J68: 0.5212765957 | K68: 0.01861702128 | L68: 0.04521276596 | M68: 1.002659574 | O68: 0.375
A69: Orkney | B69: =B28/$M28 -> 0 | C69: 0 | D69: 0 | E69: 0 | F69: 0 | G69: 0 | H69: 0 | I69: 0.3333333333 | J69: 0.6666666667 | K69: 0 | L69: 0 | M69: 1 | O69: 0
A70: Perth & Kinross | B70: =B29/$M29 -> 0.006644518272 | C70: 0.01328903654 | D70: 0.1561461794 | E70: 0 | F70: 0 | G70: 0 | H70: 0.003322259136 | I70: 0.2823920266 | J70: 0.4817275748 | K70: 0.003322259136 | L70: 0.04983388704 | M70: 0.9966777409 | O70: 0.2325581395
A71: Renfrewshire | B71: =B30/$M30 -> 0.02022058824 | C71: 0.1084558824 | D71: 0.06433823529 | E71: 0.003676470588 | F71: 0.001838235294 | G71: 0.02757352941 | H71: 0.02573529412 | I71: 0.28125 | J71: 0.3474264706 | K71: 0.1029411765 | L71: 0.01470588235 | M71: 0.9981617647 | O71: 0.3694852941
A72: Scottish Borders | B72: =B31/$M31 -> 0 | C72: 0.03973509934 | D72: 0.07284768212 | E72: 0 | F72: 0 | G72: 0.05960264901 | H72: 0.006622516556 | I72: 0.298013245 | J72: 0.3708609272 | K72: 0.1523178808 | L72: 0 | M72: 1 | O72: 0.3311258278
A73: Shetland | B73: =B32/$M32 -> 0 | C73: 0.02222222222 | D73: 0 | E73: 0 | F73: 0 | G73: 0 | H73: 0 | I73: 0.4222222222 | J73: 0.4888888889 | K73: 0 | L73: 0 | M73: 0.9333333333 | O73: 0.02222222222
A74: South Ayrshire | B74: =B33/$M33 -> 0.004192872117 | C74: 0.01886792453 | D74: 0.0964360587 | E74: 0.004192872117 | F74: 0.002096436059 | G74: 0.1174004193 | H74: 0.03983228512 | I74: 0.1698113208 | J74: 0.2641509434 | K74: 0.0964360587 | L74: 0.1865828092 | M74: 1 | O74: 0.5660377358
A75: South Lanarkshire | B75: =B34/$M34 -> 0.003344481605 | C75: 0.04347826087 | D75: 0.07357859532 | E75: 0.006688963211 | F75: 0 | G75: 0 | H75: 0 | I75: 0.254180602 | J75: 0.3344481605 | K75: 0.2809364548 | L75: 0 | M75: 0.9966555184 | O75: 0.4080267559
A76: Stirling | B76: =B35/$M35 -> 0 | C76: 0.02222222222 | D76: 0.04444444444 | E76: 0 | F76: 0 | G76: 0 | H76: 0 | I76: 0.1777777778 | J76: 0.7333333333 | K76: 0.02222222222 | L76: 0 | M76: 1 | O76: 0.08888888889
A77: West Dunbartonshire | B77: =B36/$M36 -> 0 | C77: 0.09375 | D77: 0.078125 | E77: 0.046875 | F77: 0.015625 | G77: 0 | H77: 0 | I77: 0.328125 | J77: 0.265625 | K77: 0.15625 | L77: 0 | M77: 0.984375 | O77: 0.390625
A78: West Lothian | B78: =B37/$M37 -> 0 | C78: 0.01657458564 | D78: 0.03314917127 | E78: 0.005524861878 | F78: 0.005524861878 | G78: 0 | H78: 0.005524861878 | I78: 0.4198895028 | J78: 0.4917127072 | K78: 0.02209944751 | L78: 0 | M78: 1 | O78: 0.08839779006
A80: Disclosure Control has been applied to this table. All cells have been rounded to the nearest five.
A81: Column totals may not sum to total of individual cells due to rounding.
B87: Chart Data
C88: Client informed of rights under homelessness legislation | D88: General Housing advice/ Tenancy rights advice | E88: Other Actitivity
B89: Clackmannanshire | C89: 0.5 | D89: 0.4454545455 | E89: 0.05454545455
B90: Shetland | C90: 0.4222222222 | D90: 0.4888888889 | E90: 0.02222222222
B91: West Lothian | C91: 0.4198895028 | D91: 0.4917127072 | E91: 0.08839779006
B92: Dundee City | C92: 0.4160839161 | D92: 0.4755244755 | E92: 0.1083916084
B93: Inverclyde | C93: 0.3949579832 | D93: 0.5378151261 | E93: 0.06722689076
B94: Glasgow City | C94: 0.3633603239 | D94: 0.4585020243 | E94: 0.1761133603
B95: Dumfries & Galloway | C95: 0.3568627451 | D95: 0.3764705882 | E95: 0.262745098
B96: Highland | C96: 0.3421052632 | D96: 0.5 | E96: 0.1052631579
B97: Orkney | C97: 0.3333333333 | D97: 0.6666666667 | E97: 0
B98: West Dunbartonshire | C98: 0.328125 | D98: 0.265625 | E98: 0.390625
B99: Aberdeen City | C99: 0.3252747253 | D99: 0.5032967033 | E99: 0.1714285714
B100: Moray | C100: 0.3220973783 | D100: 0.3970037453 | E100: 0.2846441948
B101: North Ayrshire | C101: 0.3198380567 | D101: 0.3441295547 | E101: 0.3380566802
B102: East Renfrewshire | C102: 0.3157894737 | D102: 0.2631578947 | E102: 0.4210526316
B103: Argyll & Bute | C103: 0.3096085409 | D103: 0.4341637011 | E103: 0.256227758
B104: Edinburgh | C104: 0.3010948905 | D104: 0.6149635036 | E104: 0.08211678832
B105: Aberdeenshire | C105: 0.3007159905 | D105: 0.4272076372 | E105: 0.2744630072
B106: Fife | C106: 0.3006802721 | D106: 0.3959183673 | E106: 0.3020408163
B107: Scottish Borders | C107: 0.298013245 | D107: 0.3708609272 | E107: 0.3311258278
B108: Perth & Kinross | C108: 0.2823920266 | D108: 0.4817275748 | E108: 0.2325581395
B109: Renfrewshire | C109: 0.28125 | D109: 0.3474264706 | E109: 0.3694852941
B110: Scotland | C110: 0.2756154008 | D110: 0.3858615611 | E110: 0.3383126446
B111: South Lanarkshire | C111: 0.254180602 | D111: 0.3344481605 | E111: 0.4080267559
B112: Midlothian | C112: 0.2212389381 | D112: 0.4159292035 | E112: 0.3539823009
B113: East Dunbartonshire | C113: 0.2148760331 | D113: 0.2231404959 | E113: 0.5619834711
B114: Angus | C114: 0.2036363636 | D114: 0.3127272727 | E114: 0.4836363636
B115: Stirling | C115: 0.1777777778 | D115: 0.7333333333 | E115: 0.08888888889
B116: South Ayrshire | C116: 0.1698113208 | D116: 0.2641509434 | E116: 0.5660377358
B117: East Lothian | C117: 0.1578947368 | D117: 0.2631578947 | E117: 0.5789473684
B118: Falkirk | C118: 0.1485797524 | D118: 0.1791697014 | E118: 0.6722505462
B119: East Ayrshire | C119: 0.1304347826 | D119: 0.152173913 | E119: 0.6956521739
B120: North Lanarkshire | C120: 0.1063829787 | D120: 0.5212765957 | E120: 0.375
B121: Eilean Siar | C121: 0 | D121: 0 | E121: 0

Sheet Chart 7 - Activities by LA
A1: Chart 7: Activities by Local Authority | N1: Back to Contents
A2: Data from 1 April to 30 September 2017

Sheet Table 8 - Outcomes by Quarter
A1: Table 8a: Outcomes by Quarter (number) | F1: Back to Contents
B3: Quarter of Approach Closure | M3: Bi-annual change | R3: Annual change
A4: Outcomes | B4: 2015 Q2 | C4: 2015 Q3 | D4: 2015 Q4 | E4: 2016 Q1 | F4: 2016 Q2 | G4: 2016 Q3 | H4: 2016 Q4 | I4: 2017 Q1 | J4: 2017 Q2 | K4: 2017 Q3 | M4: April to Sept 2016 | N4: April to Sept 2017 | O4: Change | P4: % | R4: Year to end Sept 2016 | S4: Year to end Sept 2017 | T4: Change | U4: %
A5: Made homelessness application to local authority | B5: 6624 | C5: 6761 | D5: 6203 | E5: 6535 | F5: 6478 | G5: 5412 | H5: 5521 | I5: 6334 | J5: 5367 | K5: 4798 | M5: =SUM(F5:G5) -> 11890 | N5: =SUM(J5:K5) -> 10165 | O5: =N5-M5 -> -1725 | P5: =O5/M5 -> -0.1450798991 | R5: =SUM(D5:G5) -> 24628 | S5: =SUM(H5:K5) -> 22020 | T5: =S5-R5 -> -2608 | U5: =T5/R5 -> -0.1058957284
A6: Remained in current accommodation | B6: 2606 | C6: 2834 | D6: 2705 | E6: 2736 | F6: 2613 | G6: 2704 | H6: 2376 | I6: 3308 | J6: 2832 | K6: 2624 | M6: 5317 | N6: 5456 | O6: =N6-M6 -> 139 | P6: =O6/M6 -> 0.02614256159 | R6: =SUM(D6:G6) -> 10758 | S6: =SUM(H6:K6) -> 11140 | T6: =S6-R6 -> 382 | U6: =T6/R6 -> 0.03550845882
A7: Lost Contact/ Not known | B7: 1689 | C7: 1794 | D7: 2205 | E7: 1900 | F7: 2074 | G7: 1906 | H7: 1843 | I7: 2961 | J7: 4033 | K7: 1671 | M7: 3980 | N7: 5704 | O7: 1724 | P7: 0.4331658291 | R7: 8085 | S7: 10508 | T7: 2423 | U7: 0.2996907854
A8: Other (known) | B8: 515 | C8: 576 | D8: 439 | E8: 680 | F8: 545 | G8: 735 | H8: 715 | I8: 892 | J8: 682 | K8: 613 | M8: 1280 | N8: 1295 | O8: 15 | P8: 0.01171875 | R8: 2399 | S8: 2902 | T8: 503 | U8: 0.2096706961
A9: LA/RSL Tenancy | B9: 578 | C9: 544 | D9: 565 | E9: 586 | F9: 528 | G9: 812 | H9: 509 | I9: 513 | J9: 417 | K9: 424 | M9: 1340 | N9: 841 | O9: -499 | P9: -0.3723880597 | R9: 2491 | S9: 1863 | T9: -628 | U9: -0.2521075873
A10: PRS Tenancy | B10: 489 | C10: 462 | D10: 468 | E10: 408 | F10: 459 | G10: 502 | H10: 395 | I10: 422 | J10: 402 | K10: 401 | M10: 961 | N10: 803 | O10: -158 | P10: -0.1644120708 | R10: 1837 | S10: 1620 | T10: -217 | U10: -0.1181273816
A11: Moved-in with friends/ relatives | B11: 246 | C11: 251 | D11: 302 | E11: 275 | F11: 267 | G11: 307 | H11: 232 | I11: 268 | J11: 258 | K11: 251 | M11: 574 | N11: 509 | O11: -65 | P11: -0.1132404181 | R11: 1151 | S11: 1009 | T11: -142 | U11: -0.1233709818
A12: Total (ALL) | B12: 12747 | C12: 13222 | D12: 12887 | E12: 13120 | F12: 12964 | G12: 12378 | H12: 11591 | I12: 14698 | J12: 13991 | K12: 10782 | M12: 25342 | N12: 24773 | O12: -569 | P12: -0.02245284508 | R12: 51349 | S12: 51062 | T12: -287 | U12: -0.005589203295
A14: Table 8b: Outcomes by Quarter (percent)
B16: Quarter of Approach Closure | M16: Bi-annual change | R16: Annual change
A17: Outcomes | B17: 2015 Q2 | C17: 2015 Q3 | D17: 2015 Q4 | E17: 2016 Q1 | F17: 2016 Q2 | G17: 2016 Q3 | H17: 2016 Q4 | I17: 2017 Q1 | J17: 2017 Q2 | K17: 2017 Q3 | M17: April to Sept 2016 | N17: April to Sept 2017 | O17: Change | R17: Year to end Sept 2016 | S17: Year to end Sept 2017 | T17: Change
A18: Made homelessness application to local authority | B18: =B5/B$12 -> 0.5196516827 | C18: =C5/C$12 -> 0.5113447285 | D18: 0.4813377823 | E18: 0.4980945122 | F18: 0.4996914533 | G18: 0.4372273388 | H18: =H5/H$12 -> 0.4763178328 | I18: =I5/I$12 -> 0.4309429854 | J18: 0.3836037453 | K18: 0.4450009275 | M18: =SUM(F18:G18)/2 -> 0.468459396 | N18: =SUM(J18:K18)/2 -> 0.4143023364 | O18: =N18-M18 -> -0.05415705967 | R18: =SUM(D18:G18)/4 -> 0.4790877716 | S18: =SUM(H18:K18)/4 -> 0.4339663727 | T18: =S18-R18 -> -0.04512139889
A19: Remained in current accommodation | B19: =B6/B$12 -> 0.2044402605 | C19: 0.2143397368 | D19: 0.2099014511 | E19: 0.2085365854 | F19: 0.2015581611 | G19: 0.2184520924 | H19: =H6/H$12 -> 0.2049866276 | I19: =I6/I$12 -> 0.2250646346 | J19: 0.2024158388 | K19: 0.2433685773 | M19: =SUM(F19:G19)/2 -> 0.2100051267 | N19: =SUM(J19:K19)/2 -> 0.222892208 | O19: =N19-M19 -> 0.01288708126 | R19: =SUM(D19:G19)/4 -> 0.2096120725 | S19: =SUM(H19:K19)/4 -> 0.2189589196 | T19: =S19-R19 -> 0.009346847072
A20: Lost Contact/ Not known | B20: =B7/B$12 -> 0.1325017651 | C20: 0.1356829527 | D20: 0.1711026616 | E20: 0.1448170732 | F20: 0.1599814872 | G20: 0.1539828728 | H20: =H7/H$12 -> 0.1590026745 | I20: =I7/I$12 -> 0.2014559804 | J20: 0.2882567365 | K20: 0.1549805231 | M20: 0.15698218 | N20: 0.2216186298 | O20: 0.06463644977 | R20: 0.1574710237 | S20: 0.2009239786 | T20: 0.04345295491
A21: LA/RSL Tenancy | B21: =B8/B$12 -> 0.04040166314 | C21: 0.04356375737 | D21: 0.03406533716 | E21: 0.05182926829 | F21: 0.04203949398 | G21: 0.05937954435 | H21: =H8/H$12 -> 0.0616857907 | I21: =I8/I$12 -> 0.06068852905 | J21: 0.04874562219 | K21: 0.05685401595 | M21: 0.05070951917 | N21: 0.05279981907 | O21: 0.002090299901 | R21: 0.04682841095 | S21: 0.05699348947 | T21: 0.01016507852
A22: Other (known) | B22: =B9/B$12 -> 0.04534400251 | C22: 0.04114354863 | D22: 0.04384263211 | E22: 0.04466463415 | F22: 0.04072817032 | G22: 0.06560025852 | H22: =H9/H$12 -> 0.04391338107 | I22: =I9/I$12 -> 0.03490270785 | J22: 0.02980487456 | K22: 0.03932480059 | M22: 0.05316421442 | N22: 0.03456483758 | O22: -0.01859937684 | R22: 0.04870892377 | S22: 0.03698644102 | T22: -0.01172248275
A23: PRS Tenancy | B23: =B10/B$12 -> 0.03836196752 | C23: 0.03494176373 | D23: 0.03631566695 | E23: 0.03109756098 | F23: 0.03540573897 | G23: 0.04055582485 | H23: =H10/H$12 -> 0.03407816409 | I23: =I10/I$12 -> 0.0287113893 | J23: 0.02873275677 | K23: 0.03719161566 | M23: 0.03798078191 | N23: 0.03296218621 | O23: -0.005018595696 | R23: 0.03584369794 | S23: 0.03217848146 | T23: -0.00366521648
A24: Moved-in with friends/ relatives | B24: =B11/B$12 -> 0.01929865851 | C24: 0.01898351233 | D24: 0.02343446884 | E24: 0.02096036585 | F24: 0.02059549522 | G24: 0.02480206819 | H24: =H11/H$12 -> 0.02001552929 | I24: =I11/I$12 -> 0.0182337733 | J24: 0.01844042599 | K24: 0.02327953997 | M24: 0.0226987817 | N24: 0.02085998298 | O24: -0.00183879872 | R24: 0.02244809953 | S24: 0.01999231714 | T24: -0.002455782387
A25: Total (ALL) | B25: =B12/B$12 -> 1 | C25: 1 | D25: 1 | E25: 1 | F25: 1 | G25: 1 | H25: =H12/H$12 -> 1 | I25: =I12/I$12 -> 1 | J25: 1 | K25: 1 | M25: 1 | N25: 1 | O25: 0 | R25: 1 | S25: 1 | T25: 0
M27: =SUM(M21:M24) -> 0.1645532972 | N27: =SUM(N21:N24) -> 0.1411868258
A35: Data for chart
B37: Quarter of Approach Closure | M37: bi-annual summary
B38: 2015 Q2 | C38: 2015 Q3 | D38: 2015 Q4 | E38: 2016 Q1 | F38: 2016 Q2 | G38: 2016 Q3 | H38: 2016 Q4 | I38: 2017 Q1 | J38: 2017 Q2 | K38: 2017 Q3
A39: Made homelessness application to local authority | B39: 6624 | C39: 6761 | D39: 6203 | E39: 6535 | F39: 6478 | G39: 5412 | H39: 5521 | I39: 6334 | J39: 5367 | K39: 4798 | M39: =SUM(J39:K39) -> 10165
A40: Remained in current accommodation | B40: 2606 | C40: 2834 | D40: 2705 | E40: 2736 | F40: 2613 | G40: 2704 | H40: 2376 | I40: 3308 | J40: 2832 | K40: 2624 | M40: =SUM(J40:K40) -> 5456
A41: Lost Contact/ Not known | B41: 1689 | C41: 1794 | D41: 2205 | E41: 1900 | F41: 2074 | G41: 1906 | H41: 1843 | I41: 2961 | J41: 4033 | K41: 1671 | M41: 5704
A42: Moved into Alternative Accommodation | B42: =SUM(B8:B11) -> 1828 | C42: =SUM(C8:C11) -> 1833 | D42: =SUM(D8:D11) -> 1774 | E42: 1949 | F42: 1799 | G42: 2356 | H42: 1851 | I42: 2095 | J42: 1759 | K42: 1689 | M42: 3448
A43: Total (ALL) | B43: =SUM(B39:B42) -> 12747 | C43: =SUM(C39:C42) -> 13222 | D43: 12887 | E43: 13120 | F43: 12964 | G43: 12378 | H43: 11591 | I43: 14698 | J43: 13991 | K43: 10782 | M43: 24773
B45: Quarter of Approach Closure
B46: 2015 Q2 | C46: 2015 Q3 | D46: 2015 Q4 | E46: 2016 Q1 | F46: 2016 Q2 | G46: 2016 Q3 | H46: 2016 Q4 | I46: 2017 Q1 | J46: 2017 Q2 | K46: 2017 Q3
A47: Made homelessness application to local authority | B47: =B39/B$43 -> 0.5196516827 | C47: =C39/C$43 -> 0.5113447285 | D47: 0.4813377823 | E47: 0.4980945122 | F47: 0.4996914533 | G47: 0.4372273388 | H47: =H39/H$43 -> 0.4763178328 | I47: =I39/I$43 -> 0.4309429854 | J47: 0.3836037453 | K47: 0.4450009275 | M47: =M39/$M$43 -> 0.4103257579
A48: Remained in current accommodation | B48: =B40/B$43 -> 0.2044402605 | C48: 0.2143397368 | D48: 0.2099014511 | E48: 0.2085365854 | F48: 0.2015581611 | G48: 0.2184520924 | H48: =H40/H$43 -> 0.2049866276 | I48: =I40/I$43 -> 0.2250646346 | J48: 0.2024158388 | K48: 0.2433685773 | M48: =M40/$M$43 -> 0.2202397772
A49: Lost Contact/ Not known | B49: 0.1325017651 | C49: 0.1356829527 | D49: 0.1711026616 | E49: 0.1448170732 | F49: 0.1599814872 | G49: 0.1539828728 | H49: =H41/H$43 -> 0.1590026745 | I49: =I41/I$43 -> 0.2014559804 | J49: 0.2882567365 | K49: 0.1549805231 | M49: 0.2302506761
A50: Moved into Alternative Accommodation | B50: 0.1434062917 | C50: 0.1386325821 | D50: 0.1376581051 | E50: 0.1485518293 | F50: 0.1387688985 | G50: 0.1903376959 | H50: =H42/H$43 -> 0.1596928652 | I50: =I42/I$43 -> 0.1425363995 | J50: 0.1257236795 | K50: 0.1566499722 | M50: 0.1391837888
A51: Total (ALL) | B51: =B43/B$43 -> 1 | C51: 1 | D51: 1 | E51: 1 | F51: 1 | G51: 1 | H51: =H43/H$43 -> 1 | I51: =I43/I$43 -> 1 | J51: 1 | K51: 1 | M51: 1

Sheet Chart 8.1 - Outcomes by quarter
A1: Chart 8.1: Outcome of Housing Options Approaches by quarter | N1: Back to Contents
A2: Data from 1 April 30 September 2017

Sheet Chart 8.2 - Outcome Durations
A1: Chart 8.2: Distribution of Housing Options approach case durations by outcome, cases closed between 1 April and 30 September 2017
A37: Workings for Chart XX: Distribution of approach duration by outcome
A38: All approaches closed between 1 April 30 September 2017
A40: Outcome | B40: Number | C40: Number of days between Approach Date and Outcome Date
C41: P5 | D41: Q1 | E41: Median | F41: Q3 | G41: P95
A42: LA/RSL Tenancy | B42: 841 | C42: 4 | D42: 40 | E42: 84 | F42: 156 | G42: 381
A43: PRS Tenancy | B43: 803 | C43: 6 | D43: 29 | E43: 60 | F43: 129 | G43: 374
A44: Other (known) | B44: 1295 | C44: 0 | D44: 4 | E44: 33 | F44: 103 | G44: 371
A45: Moved-in with friends/ relatives | B45: 509 | C45: 0 | D45: 20 | E45: 41 | F45: 83 | G45: 302
A46: Lost Contact/ Not known | B46: 5704 | C46: 0 | D46: 31 | E46: 137 | F46: 588 | G46: 846
A47: Remained in current accommodation | B47: 5456 | C47: 0 | D47: 19 | E47: 48 | F47: 112 | G47: 392
A48: Made homelessness application to local authority | B48: 10165 | C48: 0 | D48: 0 | E48: 1 | F48: 13 | G48: 109
A49: All Outcomes | B49: 24773 | C49: 0 | D49: 1 | E49: 26 | F49: 100 | G49: 651
A51: Notes
A52: P5 = 5th Percentile. 5% of approaches have been open for this many days.
A53: Q1 = First Quartile. 25% of approaches have been open for this many days.
A54: Median. 50% of approaches have been open for this many days.
A55: Q3 = First Quartile. 75% of approaches have been open for this many days. Conversely, 25% of cases have been open for more than this number of days.
A56: P95 = 95th Percentile. 5% of approaches have been open for more than this number of days.
A59: Data for Box Plot
A60: Outcome | B60: P5 | C60: Q1 | D60: Median | E60: Q3 | F60: P95
A61: Made homelessness application to local authority | B61: 0 | C61: 0 | D61: 1 | E61: 13 | F61: 109
A62: Other (known) | B62: 0 | C62: 4 | D62: 33 | E62: 103 | F62: 371
A63: Moved-in with friends/ relatives | B63: 0 | C63: 20 | D63: 41 | E63: 83 | F63: 302
A64: Remained in current accommodation | B64: 0 | C64: 19 | D64: 48 | E64: 112 | F64: 392
A65: PRS Tenancy | B65: 6 | C65: 29 | D65: 60 | E65: 129 | F65: 374
A66: LA/RSL Tenancy | B66: 4 | C66: 40 | D66: 84 | E66: 156 | F66: 381
A67: Lost Contact/ Not known | B67: 0 | C67: 31 | D67: 137 | E67: 588 | F67: 846
A69: =A60 -> Outcome | B69: Q1 | C69: Median-Q1 | D69: Q3-Median | E69: Q1-P5 | F69: P95-Q3 | G69: Median
A70: =A61 -> Made homelessness application to local authority | B70: =C61 -> 0 | C70: =D61-C61 -> 1 | D70: 12 | E70: =C61-B61 -> 0 | F70: =F61-E61 -> 96 | G70: =D61 -> 1
A71: Other (known) | B71: 4 | C71: 29 | D71: 70 | E71: 4 | F71: 268 | G71: 33
A72: Moved-in with friends/ relatives | B72: 20 | C72: 21 | D72: 42 | E72: 20 | F72: 219 | G72: 41
A73: Remained in current accommodation | B73: 19 | C73: 29 | D73: 64 | E73: 19 | F73: 280 | G73: 48
A74: PRS Tenancy | B74: 29 | C74: 31 | D74: 69 | E74: 23 | F74: 245 | G74: 60
A75: LA/RSL Tenancy | B75: 40 | C75: 44 | D75: 72 | E75: 36 | F75: 225 | G75: 84
A76: Lost Contact/ Not known | B76: 31 | C76: 106 | D76: 451 | E76: 31 | F76: 258 | G76: 137

Sheet Table 9 - Outcomes by LA
A1: Table 9a: Outcomes by LA during the last 6 months: 1 April to 30 September 2017 | G1: Back to Contents
A3: Local Authority | B3: LA/RSL Tenancy | C3: PRS Tenancy | D3: Other (known) | E3: Moved-in with friends/ relatives | F3: Lost Contact/ Not known | G3: Remained in current accommodation | H3: Made homelessness application to local authority | I3: All | K3: Found Alternative Accommodation (sum of LA/RSL/PRS/Other (known)/moved in with friends/relatives)
A4: Scotland | B4: 841 | C4: 803 | D4: 1295 | E4: 509 | F4: 5704 | G4: 5456 | H4: 10165 | I4: 24773 | K4: =SUM(B4:E4) -> 3448
A5: Aberdeen City | B5: 182 | C5: 102 | D5: 113 | E5: 35 | F5: 2666 | G5: 971 | H5: 628 | I5: 4697 | K5: 432
A6: Aberdeenshire | B6: 20 | C6: 52 | D6: 20 | E6: 26 | F6: 271 | G6: 174 | H6: 264 | I6: 827 | K6: 118
A7: Angus | B7: 15 | C7: 18 | D7: 17 | E7: 1 | F7: 54 | G7: 179 | H7: 267 | I7: 551 | K7: 51
A8: Argyll & Bute | B8: 38 | C8: 30 | D8: 51 | E8: 9 | F8: 101 | G8: 413 | H8: 203 | I8: 845 | K8: 128
A9: Clackmannanshire | B9: 0 | C9: 0 | D9: 0 | E9: 1 | F9: 5 | G9: 9 | H9: 220 | I9: 235 | K9: 1
A10: Dumfries & Galloway | B10: 7 | C10: 6 | D10: 2 | E10: 2 | F10: 99 | G10: 39 | H10: 351 | I10: 506 | K10: 17
A11: Dundee City | B11: 33 | C11: 27 | D11: 33 | E11: 15 | F11: 143 | G11: 186 | H11: 263 | I11: 700 | K11: 108
A12: East Ayrshire | B12: 6 | C12: 3 | D12: 0 | E12: 5 | F12: 4 | G12: 16 | H12: 4 | I12: 38 | K12: 14
A13: East Dunbartonshire | B13: 1 | C13: 1 | D13: 2 | E13: 0 | F13: 26 | G13: 29 | H13: 95 | I13: 154 | K13: 4
A14: East Lothian | B14: 0 | C14: 2 | D14: 0 | E14: 2 | F14: 10 | G14: 7 | H14: 16 | I14: 37 | K14: 4
A15: East Renfrewshire | B15: 1 | C15: 5 | D15: 1 | E15: 1 | F15: 3 | G15: 16 | H15: 18 | I15: 45 | K15: 8
A16: Edinburgh | B16: 35 | C16: 38 | D16: 52 | E16: 51 | F16: 459 | G16: 447 | H16: 1327 | I16: 2409 | K16: 176
A17: Eilean Siar | B17: 1 | C17: 0 | D17: 0 | E17: 1 | F17: 0 | G17: 2 | H17: 1 | I17: 5 | K17: 2
A18: Falkirk | B18: 18 | C18: 3 | D18: 27 | E18: 25 | F18: 44 | G18: 124 | H18: 446 | I18: 687 | K18: 73
A19: Fife | B19: 53 | C19: 93 | D19: 41 | E19: 9 | F19: 191 | G19: 129 | H19: 402 | I19: 918 | K19: 196
A20: Glasgow City | B20: 32 | C20: 5 | D20: 381 | E20: 121 | F20: 656 | G20: 698 | H20: 2792 | I20: 4685 | K20: 539
A21: Highland | B21: 3 | C21: 10 | D21: 11 | E21: 11 | F21: 21 | G21: 44 | H21: 46 | I21: 146 | K21: 35
A22: Inverclyde | B22: 18 | C22: 19 | D22: 37 | E22: 27 | F22: 114 | G22: 98 | H22: 101 | I22: 414 | K22: 101
A23: Midlothian | B23: 4 | C23: 4 | D23: 2 | E23: 3 | F23: 5 | G23: 41 | H23: 5 | I23: 64 | K23: 13
A24: Moray | B24: 22 | C24: 40 | D24: 19 | E24: 46 | F24: 60 | G24: 128 | H24: 222 | I24: 537 | K24: 127
A25: North Ayrshire | B25: 75 | C25: 94 | D25: 50 | E25: 30 | F25: 30 | G25: 85 | H25: 480 | I25: 844 | K25: 249
A26: North Lanarkshire | B26: 51 | C26: 9 | D26: 34 | E26: 10 | F26: 48 | G26: 471 | H26: 138 | I26: 761 | K26: 104
A27: Orkney | B27: 1 | C27: 0 | D27: 0 | E27: 0 | F27: 3 | G27: 1 | H27: 6 | I27: 11 | K27: 1
A28: Perth & Kinross | B28: 38 | C28: 91 | D28: 258 | E28: 8 | F28: 217 | G28: 410 | H28: 435 | I28: 1457 | K28: 395
A29: Renfrewshire | B29: 42 | C29: 16 | D29: 78 | E29: 36 | F29: 117 | G29: 364 | H29: 442 | I29: 1095 | K29: 172
A30: Scottish Borders | B30: 35 | C30: 32 | D30: 16 | E30: 2 | F30: 112 | G30: 63 | H30: 178 | I30: 438 | K30: 85
A31: Shetland | B31: 11 | C31: 0 | D31: 2 | E31: 3 | F31: 22 | G31: 29 | H31: 52 | I31: 119 | K31: 16
A32: South Ayrshire | B32: 3 | C32: 0 | D32: 0 | E32: 0 | F32: 10 | G32: 4 | H32: 370 | I32: 387 | K32: 3
A33: South Lanarkshire | B33: 38 | C33: 76 | D33: 18 | E33: 13 | F33: 145 | G33: 84 | H33: 150 | I33: 524 | K33: 145
A34: Stirling | B34: 6 | C34: 9 | D34: 5 | E34: 6 | F34: 16 | G34: 77 | H34: 18 | I34: 137 | K34: 26
A35: West Dunbartonshire | B35: 23 | C35: 4 | D35: 4 | E35: 0 | F35: 19 | G35: 28 | H35: 21 | I35: 99 | K35: 31
A36: West Lothian | B36: 29 | C36: 14 | D36: 21 | E36: 10 | F36: 33 | G36: 90 | H36: 204 | I36: 401 | K36: 74
A38: Disclosure Control has been applied to this table. All cells have been rounded to the nearest five.
A39: Row totals may not sum to total of individual cells due to rounding.
A41: Table 9b: Outcomes by LA: 1 April to 30 September 2017
A43: Local Authority | B43: LA/RSL Tenancy | C43: PRS Tenancy | D43: Other (known) | E43: Moved-in with friends/ relatives | F43: Lost Contact/ Not known | G43: Remained in current accommodation | H43: Made homelessness application to local authority | I43: All | K43: Found Alternative Accommodation (sum of LA/RSL/PRS/Other (known)/moved in with friends/relatives)
A44: Scotland | B44: =B4/$I4 -> 0.03394825011 | C44: =C4/$I4 -> 0.03241432204 | D44: 0.05227465386 | E44: 0.02054656279 | F44: 0.2302506761 | G44: 0.2202397772 | H44: =H4/$I4 -> 0.4103257579 | I44: =SUM(B44,C44,D44,E44,F44,G44,H44) -> 1 | K44: =K4/$I4 -> 0.1391837888
A45: Aberdeen City | B45: =B5/$I5 -> 0.03874813711 | C45: 0.02171598893 | D45: 0.0240579093 | E45: 0.007451564829 | F45: 0.5675963381 | G45: 0.2067276985 | H45: 0.1337023632 | I45: 1 | K45: 0.09197360017
A46: Aberdeenshire | B46: =B6/$I6 -> 0.02418379686 | C46: 0.06287787183 | D46: 0.02418379686 | E46: 0.03143893591 | F46: 0.3276904474 | G46: 0.2103990326 | H46: 0.3192261185 | I46: 1 | K46: 0.1426844015
A47: Angus | B47: =B7/$I7 -> 0.02722323049 | C47: 0.03266787659 | D47: 0.03085299456 | E47: 0.001814882033 | F47: 0.09800362976 | G47: 0.3248638838 | H47: 0.4845735027 | I47: 1 | K47: 0.09255898367
A48: Argyll & Bute | B48: =B8/$I8 -> 0.0449704142 | C48: 0.03550295858 | D48: 0.06035502959 | E48: 0.01065088757 | F48: 0.1195266272 | G48: 0.4887573964 | H48: 0.2402366864 | I48: 1 | K48: 0.1514792899
A49: Clackmannanshire | B49: =B9/$I9 -> 0 | C49: 0 | D49: 0 | E49: 0.004255319149 | F49: 0.02127659574 | G49: 0.03829787234 | H49: 0.9361702128 | I49: 1 | K49: 0.004255319149
A50: Dumfries & Galloway | B50: =B10/$I10 -> 0.01383399209 | C50: 0.01185770751 | D50: 0.00395256917 | E50: 0.00395256917 | F50: 0.1956521739 | G50: 0.07707509881 | H50: 0.6936758893 | I50: 1 | K50: 0.03359683794
A51: Dundee City | B51: =B11/$I11 -> 0.04714285714 | C51: 0.03857142857 | D51: 0.04714285714 | E51: 0.02142857143 | F51: 0.2042857143 | G51: 0.2657142857 | H51: 0.3757142857 | I51: 1 | K51: 0.1542857143
A52: East Ayrshire | B52: =B12/$I12 -> 0.1578947368 | C52: 0.07894736842 | D52: 0 | E52: 0.1315789474 | F52: 0.1052631579 | G52: 0.4210526316 | H52: 0.1052631579 | I52: 1 | K52: 0.3684210526
A53: East Dunbartonshire | B53: =B13/$I13 -> 0.006493506494 | C53: 0.006493506494 | D53: 0.01298701299 | E53: 0 | F53: 0.1688311688 | G53: 0.1883116883 | H53: 0.6168831169 | I53: 1 | K53: 0.02597402597
A54: East Lothian | B54: =B14/$I14 -> 0 | C54: 0.05405405405 | D54: 0 | E54: 0.05405405405 | F54: 0.2702702703 | G54: 0.1891891892 | H54: 0.4324324324 | I54: 1 | K54: 0.1081081081
A55: East Renfrewshire | B55: =B15/$I15 -> 0.02222222222 | C55: 0.1111111111 | D55: 0.02222222222 | E55: 0.02222222222 | F55: 0.06666666667 | G55: 0.3555555556 | H55: 0.4 | I55: 1 | K55: 0.1777777778
A56: Edinburgh | B56: =B16/$I16 -> 0.01452885015 | C56: 0.01577418016 | D56: 0.02158572022 | E56: 0.02117061021 | F56: 0.1905354919 | G56: 0.1855541719 | H56: 0.5508509755 | I56: 1 | K56: 0.07305936073
A57: Eilean Siar | B57: =B17/$I17 -> 0.2 | C57: 0 | D57: 0 | E57: 0.2 | F57: 0 | G57: 0.4 | H57: 0.2 | I57: 1 | K57: 0.4
A58: Falkirk | B58: =B18/$I18 -> 0.02620087336 | C58: 0.004366812227 | D58: 0.03930131004 | E58: 0.03639010189 | F58: 0.06404657933 | G58: 0.1804949054 | H58: 0.6491994178 | I58: 1 | K58: 0.1062590975
A59: Fife | B59: =B19/$I19 -> 0.05773420479 | C59: 0.1013071895 | D59: 0.04466230937 | E59: 0.009803921569 | F59: 0.2080610022 | G59: 0.1405228758 | H59: 0.4379084967 | I59: 1 | K59: 0.2135076253
A60: Glasgow City | B60: =B20/$I20 -> 0.006830309498 | C60: 0.001067235859 | D60: 0.08132337247 | E60: 0.02582710779 | F60: 0.1400213447 | G60: 0.1489861259 | H60: 0.5959445037 | I60: 1 | K60: 0.1150480256
A61: Highland | B61: =B21/$I21 -> 0.02054794521 | C61: 0.06849315068 | D61: 0.07534246575 | E61: 0.07534246575 | F61: 0.1438356164 | G61: 0.301369863 | H61: 0.3150684932 | I61: 1 | K61: 0.2397260274
A62: Inverclyde | B62: =B22/$I22 -> 0.04347826087 | C62: 0.04589371981 | D62: 0.08937198068 | E62: 0.0652173913 | F62: 0.2753623188 | G62: 0.2367149758 | H62: 0.2439613527 | I62: 1 | K62: 0.2439613527
A63: Midlothian | B63: =B23/$I23 -> 0.0625 | C63: 0.0625 | D63: 0.03125 | E63: 0.046875 | F63: 0.078125 | G63: 0.640625 | H63: 0.078125 | I63: 1 | K63: 0.203125
A64: Moray | B64: =B24/$I24 -> 0.04096834264 | C64: 0.07448789572 | D64: 0.03538175047 | E64: 0.08566108007 | F64: 0.1117318436 | G64: 0.2383612663 | H64: 0.4134078212 | I64: 1 | K64: 0.2364990689
A65: North Ayrshire | B65: =B25/$I25 -> 0.08886255924 | C65: 0.1113744076 | D65: 0.05924170616 | E65: 0.0355450237 | F65: 0.0355450237 | G65: 0.1007109005 | H65: 0.5687203791 | I65: 1 | K65: 0.2950236967
A66: North Lanarkshire | B66: =B26/$I26 -> 0.06701708279 | C66: 0.01182654402 | D66: 0.04467805519 | E66: 0.01314060447 | F66: 0.06307490145 | G66: 0.6189224704 | H66: 0.1813403417 | I66: 1 | K66: 0.1366622865
A67: Orkney | B67: =B27/$I27 -> 0.09090909091 | C67: 0 | D67: 0 | E67: 0 | F67: 0.2727272727 | G67: 0.09090909091 | H67: 0.5454545455 | I67: 1 | K67: 0.09090909091
A68: Perth & Kinross | B68: =B28/$I28 -> 0.02608098833 | C68: 0.06245710364 | D68: 0.1770761839 | E68: 0.005490734386 | F68: 0.1489361702 | G68: 0.2814001373 | H68: 0.2985586822 | I68: 1 | K68: 0.2711050103
A69: Renfrewshire | B69: =B29/$I29 -> 0.03835616438 | C69: 0.01461187215 | D69: 0.07123287671 | E69: 0.03287671233 | F69: 0.1068493151 | G69: 0.3324200913 | H69: 0.403652968 | I69: 1 | K69: 0.1570776256
A70: Scottish Borders | B70: =B30/$I30 -> 0.0799086758 | C70: 0.07305936073 | D70: 0.03652968037 | E70: 0.004566210046 | F70: 0.2557077626 | G70: 0.1438356164 | H70: 0.4063926941 | I70: 1 | K70: 0.1940639269
A71: Shetland | B71: =B31/$I31 -> 0.09243697479 | C71: 0 | D71: 0.01680672269 | E71: 0.02521008403 | F71: 0.1848739496 | G71: 0.243697479 | H71: 0.4369747899 | I71: 1 | K71: 0.1344537815
A72: South Ayrshire | B72: =B32/$I32 -> 0.007751937984 | C72: 0 | D72: 0 | E72: 0 | F72: 0.02583979328 | G72: 0.01033591731 | H72: 0.9560723514 | I72: 1 | K72: 0.007751937984
A73: South Lanarkshire | B73: =B33/$I33 -> 0.07251908397 | C73: 0.1450381679 | D73: 0.03435114504 | E73: 0.02480916031 | F73: 0.2767175573 | G73: 0.1603053435 | H73: 0.286259542 | I73: 1 | K73: 0.2767175573
A74: Stirling | B74: =B34/$I34 -> 0.04379562044 | C74: 0.06569343066 | D74: 0.03649635036 | E74: 0.04379562044 | F74: 0.1167883212 | G74: 0.5620437956 | H74: 0.1313868613 | I74: 1 | K74: 0.1897810219
A75: West Dunbartonshire | B75: =B35/$I35 -> 0.2323232323 | C75: 0.0404040404 | D75: 0.0404040404 | E75: 0 | F75: 0.1919191919 | G75: 0.2828282828 | H75: 0.2121212121 | I75: 1 | K75: 0.3131313131
A76: West Lothian | B76: =B36/$I36 -> 0.072319202 | C76: 0.0349127182 | D76: 0.05236907731 | E76: 0.02493765586 | F76: 0.08229426434 | G76: 0.2244389027 | H76: 0.5087281796 | I76: 1 | K76: 0.1845386534
A78: Disclosure Control has been applied to this table. All cells have been rounded to the nearest five.
A79: Row totals may not sum to total of individual cells due to rounding.
A82: Chart Data - Remained in Current Accommodation
B83: Made homelessness application to local authority | C83: Remained in current accommodation | D83: Not Known/Lost Contact | E83: Found Alternative Accommodation
A84: South Ayrshire | B84: 0.9560723514 | C84: 0.01033591731 | D84: 0.02583979328 | E84: 0.007751937984
A85: Clackmannanshire | B85: 0.9361702128 | C85: 0.03829787234 | D85: 0.02127659574 | E85: 0.004255319149
A86: Dumfries & Galloway | B86: 0.6936758893 | C86: 0.07707509881 | D86: 0.1956521739 | E86: 0.03359683794
A87: Falkirk | B87: 0.6491994178 | C87: 0.1804949054 | D87: 0.06404657933 | E87: 0.1062590975
A88: East Dunbartonshire | B88: 0.6168831169 | C88: 0.1883116883 | D88: 0.1688311688 | E88: 0.02597402597
A89: Glasgow City | B89: 0.5959445037 | C89: 0.1489861259 | D89: 0.1400213447 | E89: 0.1150480256
A90: North Ayrshire | B90: 0.5687203791 | C90: 0.1007109005 | D90: 0.0355450237 | E90: 0.2950236967
A91: Edinburgh | B91: 0.5508509755 | C91: 0.1855541719 | D91: 0.1905354919 | E91: 0.07305936073
A92: Orkney | B92: 0.5454545455 | C92: 0.09090909091 | D92: 0.2727272727 | E92: 0.09090909091
A93: West Lothian | B93: 0.5087281796 | C93: 0.2244389027 | D93: 0.08229426434 | E93: 0.1845386534
A94: Angus | B94: 0.4845735027 | C94: 0.3248638838 | D94: 0.09800362976 | E94: 0.09255898367
A95: Fife | B95: 0.4379084967 | C95: 0.1405228758 | D95: 0.2080610022 | E95: 0.2135076253
A96: Shetland | B96: 0.4369747899 | C96: 0.243697479 | D96: 0.1848739496 | E96: 0.1344537815
A97: East Lothian | B97: 0.4324324324 | C97: 0.1891891892 | D97: 0.2702702703 | E97: 0.1081081081
A98: Moray | B98: 0.4134078212 | C98: 0.2383612663 | D98: 0.1117318436 | E98: 0.2364990689
A99: Scotland | B99: 0.4103257579 | C99: 0.2202397772 | D99: 0.2302506761 | E99: 0.1391837888
A100: Scottish Borders | B100: 0.4063926941 | C100: 0.1438356164 | D100: 0.2557077626 | E100: 0.1940639269
A101: Renfrewshire | B101: 0.403652968 | C101: 0.3324200913 | D101: 0.1068493151 | E101: 0.1570776256
A102: East Renfrewshire | B102: 0.4 | C102: 0.3555555556 | D102: 0.06666666667 | E102: 0.1777777778
A103: Dundee City | B103: 0.3757142857 | C103: 0.2657142857 | D103: 0.2042857143 | E103: 0.1542857143
A104: Aberdeenshire | B104: 0.3192261185 | C104: 0.2103990326 | D104: 0.3276904474 | E104: 0.1426844015
A105: Highland | B105: 0.3150684932 | C105: 0.301369863 | D105: 0.1438356164 | E105: 0.2397260274
A106: Perth & Kinross | B106: 0.2985586822 | C106: 0.2814001373 | D106: 0.1489361702 | E106: 0.2711050103
A107: South Lanarkshire | B107: 0.286259542 | C107: 0.1603053435 | D107: 0.2767175573 | E107: 0.2767175573
A108: Inverclyde | B108: 0.2439613527 | C108: 0.2367149758 | D108: 0.2753623188 | E108: 0.2439613527
A109: Argyll & Bute | B109: 0.2402366864 | C109: 0.4887573964 | D109: 0.1195266272 | E109: 0.1514792899
A110: West Dunbartonshire | B110: 0.2121212121 | C110: 0.2828282828 | D110: 0.1919191919 | E110: 0.3131313131
A111: Eilean Siar | B111: 0.2 | C111: 0.4 | D111: 0 | E111: 0.4
A112: North Lanarkshire | B112: 0.1813403417 | C112: 0.6189224704 | D112: 0.06307490145 | E112: 0.1366622865
A113: Aberdeen City | B113: 0.1337023632 | C113: 0.2067276985 | D113: 0.5675963381 | E113: 0.09197360017
A114: Stirling | B114: 0.1313868613 | C114: 0.5620437956 | D114: 0.1167883212 | E114: 0.1897810219
A115: East Ayrshire | B115: 0.1052631579 | C115: 0.4210526316 | D115: 0.1052631579 | E115: 0.3684210526
A116: Midlothian | B116: 0.078125 | C116: 0.640625 | D116: 0.078125 | E116: 0.203125

Sheet Chart 9 - Outcomes by LA
A1: Chart 9: Variation in outcomes for each Local Authority | N1: Back to Contents
A2: All apporaches closed between 1 April and 30 September 2017

Sheet Chart 10 - Homelessness Boxplot
A1: Chart 10: Distribution of the number of days to outcome an approach as a homelessness application
A2: All approaches closed between 1 April and 30 September 2017 where the outcome was a homelessness application.
A64: Working for Chart XX: Distribution of the number of days to make a homelessness application
A66: Local Authority | B66: Number of approaches with an outcomes of making a homelessness application | C66: Number of days between Approach Date and date of Homelessness Application
C67: P5 | D67: Q1 | E67: Median | F67: Q3 | G67: P95
A68: Scotland | B68: 10165 | C68: 0 | D68: 0 | E68: 1 | F68: 13 | G68: 109
A69: Aberdeen City | B69: 628 | C69: 0 | D69: 0 | E69: 5 | F69: 80 | G69: 628
A70: Aberdeenshire | B70: 264 | C70: 0 | D70: 0 | E70: 1 | F70: 10 | G70: 78
A71: Angus | B71: 267 | C71: 0 | D71: 2 | E71: 7 | F71: 16 | G71: 84
A72: Argyll & Bute | B72: 203 | C72: 0 | D72: 1 | E72: 3 | F72: 13 | G72: 73
A73: Clackmannanshire | B73: 220 | C73: 0 | D73: 0 | E73: 0 | F73: 0 | G73: 0
A74: Dumfries & Galloway | B74: 351 | C74: 0 | D74: 0 | E74: 0 | F74: 0 | G74: 0
A75: Dundee City | B75: 263 | C75: 1 | D75: 2 | E75: 4 | F75: 15 | G75: 106
A76: East Ayrshire | B76: 4 | C76: 10 | D76: 10 | E76: 14 | F76: 29 | G76: 40
A77: East Dunbartonshire | B77: 95 | C77: 0 | D77: 0 | E77: 0 | F77: 0 | G77: 71
A78: East Lothian | B78: 16 | C78: 1 | D78: 14 | E78: 38 | F78: 59 | G78: 197
A79: East Renfrewshire | B79: 18 | C79: 0 | D79: 6 | E79: 45 | F79: 93 | G79: 273
A80: Edinburgh | B80: 1327 | C80: 0 | D80: 0 | E80: 0 | F80: 9 | G80: 85
A81: Eilean Siar | B81: 1 | C81: 78 | D81: 78 | E81: 78 | F81: 78 | G81: 78
A82: Falkirk | B82: 446 | C82: 0 | D82: 0 | E82: 0 | F82: 0 | G82: 19
A83: Fife | B83: 402 | C83: 0 | D83: 1 | E83: 6 | F83: 15 | G83: 69
A84: Glasgow City | B84: 2792 | C84: 0 | D84: 0 | E84: 1 | F84: 9 | G84: 51
A85: Highland | B85: 46 | C85: 8 | D85: 26 | E85: 51 | F85: 126 | G85: 287
A86: Inverclyde | B86: 101 | C86: 0 | D86: 1 | E86: 6 | F86: 41 | G86: 108
A87: Midlothian | B87: 5 | C87: 48 | D87: 48 | E87: 56 | F87: 59 | G87: 77
A88: Moray | B88: 222 | C88: 0 | D88: 1 | E88: 7 | F88: 38 | G88: 148
A89: North Ayrshire | B89: 480 | C89: 0 | D89: 0 | E89: 0 | F89: 0 | G89: 127
A90: North Lanarkshire | B90: 138 | C90: 2 | D90: 23 | E90: 101 | F90: 266 | G90: 415
A91: Orkney | B91: 6 | C91: 53 | D91: 71 | E91: 112 | F91: 148 | G91: 157
A92: Perth & Kinross | B92: 435 | C92: 0 | D92: 0 | E92: 3 | F92: 13 | G92: 173
A93: Renfrewshire | B93: 442 | C93: 0 | D93: 0 | E93: 0 | F93: 2 | G93: 47
A94: Scottish Borders | B94: 178 | C94: 6 | D94: 11 | E94: 18 | F94: 31 | G94: 89
A95: Shetland | B95: 52 | C95: 0 | D95: 0 | E95: 0 | F95: 0 | G95: 172
A96: South Ayrshire | B96: 370 | C96: 0 | D96: 0 | E96: 0 | F96: 0 | G96: 0
A97: South Lanarkshire | B97: 150 | C97: 7 | D97: 16 | E97: 24 | F97: 40 | G97: 129
A98: Stirling | B98: 18 | C98: 0 | D98: 4 | E98: 33 | F98: 60 | G98: 169
A99: West Dunbartonshire | B99: 21 | C99: 5 | D99: 20 | E99: 49 | F99: 67 | G99: 143
A100: West Lothian | B100: 204 | C100: 0 | D100: 0 | E100: 15 | F100: 47 | G100: 168
A102: Notes
A103: P5 = 5th Percentile. 5% of approaches have been open for this many days.
A104: Q1 = First Quartile. 25% of approaches have been open for this many days.
A105: Median. 50% of approaches have been open for this many days.
A106: Q3 = First Quartile. 75% of approaches have been open for this many days. Conversely, 25% of cases have been open for more than this number of days.
A107: P95 = 95th Percentile. 5% of approaches have been open for more than this number of days.
A110: Data for Box Plot
B112: Number of days between Approach Date and 30 September 2017
A113: Local Authority | B113: P5 | C113: Q1 | D113: Median | E113: Q3 | F113: P95
A114: Clackmannanshire | B114: 0 | C114: 0 | D114: 0 | E114: 0 | F114: 0
A115: Dumfries & Galloway | B115: 0 | C115: 0 | D115: 0 | E115: 0 | F115: 0
A116: East Dunbartonshire | B116: 0 | C116: 0 | D116: 0 | E116: 0 | F116: 71
A117: Edinburgh | B117: 0 | C117: 0 | D117: 0 | E117: 9 | F117: 85
A118: Falkirk | B118: 0 | C118: 0 | D118: 0 | E118: 0 | F118: 19
A119: North Ayrshire | B119: 0 | C119: 0 | D119: 0 | E119: 0 | F119: 127
A120: Renfrewshire | B120: 0 | C120: 0 | D120: 0 | E120: 2 | F120: 47
A121: Shetland | B121: 0 | C121: 0 | D121: 0 | E121: 0 | F121: 172
A122: South Ayrshire | B122: 0 | C122: 0 | D122: 0 | E122: 0 | F122: 0
A123: Scotland | B123: 0 | C123: 0 | D123: 1 | E123: 13 | F123: 109
A124: Aberdeenshire | B124: 0 | C124: 0 | D124: 1 | E124: 10 | F124: 78
A125: Glasgow City | B125: 0 | C125: 0 | D125: 1 | E125: 9 | F125: 51
A126: Argyll & Bute | B126: 0 | C126: 1 | D126: 3 | E126: 13 | F126: 73
A127: Perth & Kinross | B127: 0 | C127: 0 | D127: 3 | E127: 13 | F127: 173
A128: Dundee City | B128: 1 | C128: 2 | D128: 4 | E128: 15 | F128: 106
A129: Aberdeen City | B129: 0 | C129: 0 | D129: 5 | E129: 80 | F129: 628
A130: Fife | B130: 0 | C130: 1 | D130: 6 | E130: 15 | F130: 69
A131: Inverclyde | B131: 0 | C131: 1 | D131: 6 | E131: 41 | F131: 108
A132: Angus | B132: 0 | C132: 2 | D132: 7 | E132: 16 | F132: 84
A133: Moray | B133: 0 | C133: 1 | D133: 7 | E133: 38 | F133: 148
A134: East Ayrshire | B134: 10 | C134: 10 | D134: 14 | E134: 29 | F134: 40
A135: West Lothian | B135: 0 | C135: 0 | D135: 15 | E135: 47 | F135: 168
A136: Scottish Borders | B136: 6 | C136: 11 | D136: 18 | E136: 31 | F136: 89
A137: South Lanarkshire | B137: 7 | C137: 16 | D137: 24 | E137: 40 | F137: 129
A138: Stirling | B138: 0 | C138: 4 | D138: 33 | E138: 60 | F138: 169
A139: East Lothian | B139: 1 | C139: 14 | D139: 38 | E139: 59 | F139: 197
A140: East Renfrewshire | B140: 0 | C140: 6 | D140: 45 | E140: 93 | F140: 273
A141: West Dunbartonshire | B141: 5 | C141: 20 | D141: 49 | E141: 67 | F141: 143
A142: Highland | B142: 8 | C142: 26 | D142: 51 | E142: 126 | F142: 287
A143: Midlothian | B143: 48 | C143: 48 | D143: 56 | E143: 59 | F143: 77
A144: Eilean Siar | B144: 78 | C144: 78 | D144: 78 | E144: 78 | F144: 78
A145: North Lanarkshire | B145: 2 | C145: 23 | D145: 101 | E145: 266 | F145: 415
A146: Orkney | B146: 53 | C146: 71 | D146: 112 | E146: 148 | F146: 157
A148: =A113 -> Local Authority | B148: Q1 | C148: Median-Q1 | D148: Q3-Median | E148: Q1-P5 | F148: P95-Q3 | G148: Median
A149: Clackmannanshire | B149: =C114 -> 0 | C149: =D114-C114 -> 0 | D149: =E114-D114 -> 0 | E149: =C114-B114 -> 0 | F149: =F114-E114 -> 0 | G149: =D114 -> 0
A150: Dumfries & Galloway | B150: =C115 -> 0 | C150: =D115-C115 -> 0 | D150: 0 | E150: =C115-B115 -> 0 | F150: =F115-E115 -> 0 | G150: =D115 -> 0
A151: East Dunbartonshire | B151: 0 | C151: 0 | D151: 0 | E151: 0 | F151: 71 | G151: 0
A152: Edinburgh | B152: 0 | C152: 0 | D152: 9 | E152: 0 | F152: 76 | G152: 0
A153: Falkirk | B153: 0 | C153: 0 | D153: 0 | E153: 0 | F153: 19 | G153: 0
A154: North Ayrshire | B154: 0 | C154: 0 | D154: 0 | E154: 0 | F154: 127 | G154: 0
A155: Renfrewshire | B155: 0 | C155: 0 | D155: 2 | E155: 0 | F155: 45 | G155: 0
A156: Shetland | B156: 0 | C156: 0 | D156: 0 | E156: 0 | F156: 172 | G156: 0
A157: South Ayrshire | B157: 0 | C157: 0 | D157: 0 | E157: 0 | F157: 0 | G157: 0
A158: Scotland | B158: 0 | C158: 1 | D158: 12 | E158: 0 | F158: 96 | G158: 1
A159: Aberdeenshire | B159: 0 | C159: 1 | D159: 9 | E159: 0 | F159: 68 | G159: 1
A160: Glasgow City | B160: 0 | C160: 1 | D160: 8 | E160: 0 | F160: 42 | G160: 1
A161: Argyll & Bute | B161: 1 | C161: 2 | D161: 10 | E161: 1 | F161: 60 | G161: 3
A162: Perth & Kinross | B162: 0 | C162: 3 | D162: 10 | E162: 0 | F162: 160 | G162: 3
A163: Dundee City | B163: 2 | C163: 2 | D163: 11 | E163: 1 | F163: 91 | G163: 4
A164: Aberdeen City | B164: 0 | C164: 5 | D164: 75 | E164: 0 | F164: 548 | G164: 5
A165: Fife | B165: 1 | C165: 5 | D165: 9 | E165: 1 | F165: 54 | G165: 6
A166: Inverclyde | B166: 1 | C166: =D131-C131 -> 5 | D166: 35 | E166: 1 | F166: 67 | G166: 6
A167: Angus | B167: 2 | C167: 5 | D167: 9 | E167: 2 | F167: 68 | G167: 7
A168: Moray | B168: 1 | C168: 6 | D168: 31 | E168: 1 | F168: 110 | G168: 7
A169: East Ayrshire | B169: 10 | C169: 4 | D169: 15 | E169: 0 | F169: 11 | G169: 14
A170: West Lothian | B170: 0 | C170: 15 | D170: 32 | E170: 0 | F170: 121 | G170: 15
A171: Scottish Borders | B171: 11 | C171: 7 | D171: 13 | E171: 5 | F171: 58 | G171: 18
A172: South Lanarkshire | B172: 16 | C172: 8 | D172: 16 | E172: 9 | F172: 89 | G172: 24
A173: Stirling | B173: 4 | C173: 29 | D173: 27 | E173: 4 | F173: 109 | G173: 33
A174: East Lothian | B174: 14 | C174: 24 | D174: 21 | E174: 13 | F174: 138 | G174: 38
A175: East Renfrewshire | B175: 6 | C175: 39 | D175: 48 | E175: 6 | F175: 180 | G175: 45
A176: West Dunbartonshire | B176: 20 | C176: 29 | D176: 18 | E176: 15 | F176: 76 | G176: 49
A177: Highland | B177: 26 | C177: 25 | D177: 75 | E177: 18 | F177: 161 | G177: 51
A178: Midlothian | B178: 48 | C178: 8 | D178: 3 | E178: 0 | F178: 18 | G178: 56
A179: Eilean Siar | B179: 78 | C179: 0 | D179: 0 | E179: 0 | F179: 0 | G179: 78
A180: North Lanarkshire | B180: 23 | C180: 78 | D180: 165 | E180: 21 | F180: 149 | G180: 101
A181: Orkney | B181: 71 | C181: 41 | D181: 36 | E181: =C146-B146 -> 18 | F181: =F146-E146 -> 9 | G181: =D146 -> 112

Sheet Chart 11- Lost Contact NK Boxpl
A1: Chart 11: Distribution of the number of days to outcome approach as Lost Contact or Not Known by LA | I1: Back to Contents
A2: All approaches closed between 1 April and 30 September 2017 where the outcome was lost contact or not known.
A64: Working for Chart 12: Distribution of the number of days to outcome approach as Lost Contact or Not Known by LA
A66: Local Authority | B66: Number of approaches with an outcomes of not known/ lost contact | C66: Number of days between Approach Date and Outcome Date
C67: P5 | D67: Q1 | E67: Median | F67: Q3 | G67: P95
A68: Scotland | B68: 5704 | C68: 0 | D68: 31 | E68: 137 | F68: 588 | G68: 846
A69: Aberdeen City | B69: 2666 | C69: 93 | D69: 449 | E69: 601 | F69: 735 | G69: 922
A70: Aberdeenshire | B70: 271 | C70: 2 | D70: 27 | E70: 50 | F70: 71 | G70: 140
A71: Angus | B71: 54 | C71: 4 | D71: 29 | E71: 41 | F71: 91 | G71: 479
A72: Argyll & Bute | B72: 101 | C72: 7 | D72: 28 | E72: 37 | F72: 54 | G72: 222
A73: Clackmannanshire | B73: 5 | C73: 0 | D73: 33 | E73: 116 | F73: 127 | G73: 166
A74: Dumfries & Galloway | B74: 99 | C74: 0 | D74: 0 | E74: 0 | F74: 0 | G74: 119
A75: Dundee City | B75: 143 | C75: 0 | D75: 1 | E75: 19 | F75: 42 | G75: 104
A76: East Ayrshire | B76: 4 | C76: 106 | D76: 107 | E76: 114 | F76: 143 | G76: 167
A77: East Dunbartonshire | B77: 26 | C77: 0 | D77: 0 | E77: 0 | F77: 0 | G77: 35
A78: East Lothian | B78: 10 | C78: 26 | D78: 29 | E78: 64 | F78: 67 | G78: 94
A79: East Renfrewshire | B79: 3 | C79: 33 | D79: 33 | E79: 270 | F79: 332 | G79: 332
A80: Edinburgh | B80: 459 | C80: 0 | D80: 27 | E80: 31 | F80: 55 | G80: 139
A81: Eilean Siar | B81: 0 | C81: . | D81: . | E81: . | F81: . | G81: .
A82: Falkirk | B82: 44 | C82: 8 | D82: 56 | E82: 75 | F82: 79 | G82: 134
A83: Fife | B83: 191 | C83: 3 | D83: 21 | E83: 38 | F83: 63 | G83: 142
A84: Glasgow City | B84: 656 | C84: 0 | D84: 8 | E84: 15 | F84: 55 | G84: 167
A85: Highland | B85: 21 | C85: 32 | D85: 89 | E85: 174 | F85: 208 | G85: 292
A86: Inverclyde | B86: 114 | C86: 5 | D86: 36 | E86: 74 | F86: 141 | G86: 555
A87: Midlothian | B87: 5 | C87: 23 | D87: 31 | E87: 34 | F87: 193 | G87: 348
A88: Moray | B88: 60 | C88: 13 | D88: 35 | E88: 55 | F88: 83 | G88: 142
A89: North Ayrshire | B89: 30 | C89: 0 | D89: 0 | E89: 1 | F89: 368 | G89: 418
A90: North Lanarkshire | B90: 48 | C90: 156 | D90: 256 | E90: 536 | F90: 579 | G90: 928
A91: Orkney | B91: 3 | C91: 29 | D91: 29 | E91: 67 | F91: 147 | G91: 147
A92: Perth & Kinross | B92: 217 | C92: 0 | D92: 6 | E92: 33 | F92: 111 | G92: 801
A93: Renfrewshire | B93: 117 | C93: 1 | D93: 20 | E93: 23 | F93: 33 | G93: 148
A94: Scottish Borders | B94: 112 | C94: 9 | D94: 21 | E94: 46 | F94: 83 | G94: 147
A95: Shetland | B95: 22 | C95: 0 | D95: 63 | E95: 92 | F95: 155 | G95: 214
A96: South Ayrshire | B96: 10 | C96: 0 | D96: 0 | E96: 16 | F96: 19 | G96: 35
A97: South Lanarkshire | B97: 145 | C97: 27 | D97: 57 | E97: 86 | F97: 150 | G97: 365
A98: Stirling | B98: 16 | C98: 13 | D98: 32 | E98: 52 | F98: 96 | G98: 194
A99: West Dunbartonshire | B99: 19 | C99: 27 | D99: 56 | E99: 78 | F99: 196 | G99: 304
A100: West Lothian | B100: 33 | C100: 7 | D100: 43 | E100: 84 | F100: 153 | G100: 337
A102: Notes
A103: P5 = 5th Percentile. 5% of approaches have been open for this many days.
A104: Q1 = First Quartile. 25% of approaches have been open for this many days.
A105: Median. 50% of approaches have been open for this many days.
A106: Q3 = First Quartile. 75% of approaches have been open for this many days. Conversely, 25% of cases have been open for more than this number of days.
A107: P95 = 95th Percentile. 95% of approaches have been open for more than this number of days. Conversely, 5% of approaches have been open for more than this number of days.
A110: Data for Box Plot
B112: Number of days between Approach Date and 30 September 2015
A113: Local Authority | B113: P5 | C113: Q1 | D113: Median | E113: Q3 | F113: P95
A114: Dumfries & Galloway | B114: 0 | C114: 0 | D114: 0 | E114: 0 | F114: 119
A115: East Dunbartonshire | B115: 0 | C115: 0 | D115: 0 | E115: 0 | F115: 35
A116: Eilean Siar | B116: 0 | C116: 0 | D116: 0 | E116: 0 | F116: 0
A117: North Ayrshire | B117: 0 | C117: 0 | D117: 1 | E117: 368 | F117: 418
A118: Glasgow City | B118: 0 | C118: 8 | D118: 15 | E118: 55 | F118: 167
A119: South Ayrshire | B119: 0 | C119: 0 | D119: 16 | E119: 19 | F119: 35
A120: Dundee City | B120: 0 | C120: 1 | D120: 19 | E120: 42 | F120: 104
A121: Renfrewshire | B121: 1 | C121: 20 | D121: 23 | E121: 33 | F121: 148
A122: Edinburgh | B122: 0 | C122: 27 | D122: 31 | E122: 55 | F122: 139
A123: Perth & Kinross | B123: 0 | C123: 6 | D123: 33 | E123: 111 | F123: 801
A124: Midlothian | B124: 23 | C124: 31 | D124: 34 | E124: 193 | F124: 348
A125: Argyll & Bute | B125: 7 | C125: 28 | D125: 37 | E125: 54 | F125: 222
A126: Fife | B126: 3 | C126: 21 | D126: 38 | E126: 63 | F126: 142
A127: Angus | B127: 4 | C127: 29 | D127: 41 | E127: 91 | F127: 479
A128: Scottish Borders | B128: 9 | C128: 21 | D128: 46 | E128: 83 | F128: 147
A129: Aberdeenshire | B129: 2 | C129: 27 | D129: 50 | E129: 71 | F129: 140
A130: Stirling | B130: 13 | C130: 32 | D130: 52 | E130: 96 | F130: 194
A131: Moray | B131: 13 | C131: 35 | D131: 55 | E131: 83 | F131: 142
A132: East Lothian | B132: 26 | C132: 29 | D132: 64 | E132: 67 | F132: 94
A133: Orkney | B133: 29 | C133: 29 | D133: 67 | E133: 147 | F133: 147
A134: Inverclyde | B134: 5 | C134: 36 | D134: 74 | E134: 141 | F134: 555
A135: Falkirk | B135: 8 | C135: 56 | D135: 75 | E135: 79 | F135: 134
A136: West Dunbartonshire | B136: 27 | C136: 56 | D136: 78 | E136: 196 | F136: 304
A137: West Lothian | B137: 7 | C137: 43 | D137: 84 | E137: 153 | F137: 337
A138: South Lanarkshire | B138: 27 | C138: 57 | D138: 86 | E138: 150 | F138: 365
A139: Shetland | B139: 0 | C139: 63 | D139: 92 | E139: 155 | F139: 214
A140: East Ayrshire | B140: 106 | C140: 107 | D140: 114 | E140: 143 | F140: 167
A141: Clackmannanshire | B141: 0 | C141: 33 | D141: 116 | E141: 127 | F141: 166
A142: Scotland | B142: 0 | C142: 31 | D142: 137 | E142: 588 | F142: 846
A143: Highland | B143: 32 | C143: 89 | D143: 174 | E143: 208 | F143: 292
A144: East Renfrewshire | B144: 33 | C144: 33 | D144: 270 | E144: 332 | F144: 332
A145: North Lanarkshire | B145: 156 | C145: 256 | D145: 536 | E145: 579 | F145: 928
A146: Aberdeen City | B146: 93 | C146: 449 | D146: 601 | E146: 735 | F146: 922
A148: =A113 -> Local Authority | B148: Q1 | C148: Median-Q1 | D148: Q3-Median | E148: Q1-P5 | F148: P95-Q3 | G148: Median
A149: =A114 -> Dumfries & Galloway | B149: =C114 -> 0 | C149: =D114-C114 -> 0 | D149: =E114-D114 -> 0 | E149: =C114-B114 -> 0 | F149: =F114-E114 -> 119 | G149: =D114 -> 0
A150: =A115 -> East Dunbartonshire | B150: =C115 -> 0 | C150: =D115-C115 -> 0 | D150: 0 | E150: =C115-B115 -> 0 | F150: =F115-E115 -> 35 | G150: =D115 -> 0
A151: =A117 -> North Ayrshire | B151: =C117 -> 0 | C151: =D117-C117 -> 1 | D151: 367 | E151: =C117-B117 -> 0 | F151: =F117-E117 -> 50 | G151: =D117 -> 1
A152: Glasgow City | B152: 8 | C152: 7 | D152: 40 | E152: 8 | F152: 112 | G152: 15
A153: South Ayrshire | B153: 0 | C153: 16 | D153: 3 | E153: 0 | F153: 16 | G153: 16
A154: Dundee City | B154: 1 | C154: 18 | D154: 23 | E154: 1 | F154: 62 | G154: 19
A155: Renfrewshire | B155: 20 | C155: 3 | D155: 10 | E155: 19 | F155: 115 | G155: 23
A156: Edinburgh | B156: 27 | C156: 4 | D156: 24 | E156: 27 | F156: 84 | G156: 31
A157: Perth & Kinross | B157: 6 | C157: 27 | D157: 78 | E157: 6 | F157: 690 | G157: 33
A158: Midlothian | B158: 31 | C158: 3 | D158: 159 | E158: 8 | F158: 155 | G158: 34
A159: Argyll & Bute | B159: 28 | C159: 9 | D159: 17 | E159: 21 | F159: 168 | G159: 37
A160: Fife | B160: 21 | C160: 17 | D160: 25 | E160: 18 | F160: 79 | G160: 38
A161: Angus | B161: 29 | C161: 12 | D161: 50 | E161: 25 | F161: 388 | G161: 41
A162: Scottish Borders | B162: 21 | C162: 25 | D162: 37 | E162: 12 | F162: 64 | G162: 46
A163: Aberdeenshire | B163: 27 | C163: 23 | D163: 21 | E163: 25 | F163: 69 | G163: 50
A164: Stirling | B164: 32 | C164: 20 | D164: 44 | E164: 19 | F164: 98 | G164: 52
A165: Moray | B165: 35 | C165: =D131-C131 -> 20 | D165: 28 | E165: 22 | F165: 59 | G165: 55
A166: East Lothian | B166: 29 | C166: 35 | D166: 3 | E166: 3 | F166: 27 | G166: 64
A167: Orkney | B167: 29 | C167: 38 | D167: 80 | E167: 0 | F167: 0 | G167: 67
A168: Inverclyde | B168: 36 | C168: 38 | D168: 67 | E168: 31 | F168: 414 | G168: 74
A169: Falkirk | B169: 56 | C169: 19 | D169: 4 | E169: 48 | F169: 55 | G169: 75
A170: West Dunbartonshire | B170: 56 | C170: 22 | D170: 118 | E170: 29 | F170: 108 | G170: 78
A171: West Lothian | B171: 43 | C171: 41 | D171: 69 | E171: 36 | F171: 184 | G171: 84
A172: South Lanarkshire | B172: 57 | C172: 29 | D172: 64 | E172: 30 | F172: 215 | G172: 86
A173: Shetland | B173: 63 | C173: 29 | D173: 63 | E173: 63 | F173: 59 | G173: 92
A174: East Ayrshire | B174: 107 | C174: 7 | D174: 29 | E174: 1 | F174: 24 | G174: 114
A175: Clackmannanshire | B175: 33 | C175: 83 | D175: 11 | E175: 33 | F175: 39 | G175: 116
A176: Scotland | B176: 31 | C176: 106 | D176: 451 | E176: 31 | F176: 258 | G176: 137
A177: Highland | B177: 89 | C177: 85 | D177: 34 | E177: 57 | F177: 84 | G177: 174
A178: East Renfrewshire | B178: 33 | C178: 237 | D178: 62 | E178: 0 | F178: 0 | G178: 270
A179: North Lanarkshire | B179: =C145 -> 256 | C179: =D145-C145 -> 280 | D179: =E145-D145 -> 43 | E179: =C145-B145 -> 100 | F179: =F145-E145 -> 349 | G179: =D145 -> 536
A180: Aberdeen City | B180: 449 | C180: 152 | D180: 134 | E180: 356 | F180: 187 | G180: 601

Sheet Table 10 - Repeat Approaches
A1: Table 10: Households making Repeat Approaches | E1: Back to Contents
A2: All households making approaches during the last 6 months, 1 April 2017 to 30 September 2017
A4: Local Authority | B4: Households Making | E4: All Households | F4: Proportion of Households making Repeat Approaches
B5: One approach only | C5: Two approaches | D5: Three or more approaches
A6: Scotland | B6: 20665 | C6: 1110 | D6: 105 | E6: 21875 | F6: =SUM(C6:D6)/E6 -> 0.05554285714
A7: Aberdeen City | B7: 2055 | C7: 75 | D7: 0 | E7: 2130 | F7: =SUM(C7:D7)/E7 -> 0.03521126761
A8: Aberdeenshire | B8: 755 | C8: 30 | D8: 0 | E8: 785 | F8: 0.03821656051
A9: Angus | B9: 360 | C9: 10 | D9: 0 | E9: 370 | F9: 0.02702702703
A10: Argyll & Bute | B10: 785 | C10: 50 | D10: 5 | E10: 840 | F10: 0.06547619048
A11: Clackmannanshire | B11: 255 | C11: 5 | D11: 5 | E11: 260 | F11: 0.03846153846
A12: Dumfries & Galloway | B12: 450 | C12: 20 | D12: 0 | E12: 470 | F12: 0.04255319149
A13: Dundee City | B13: 545 | C13: 20 | D13: 0 | E13: 570 | F13: 0.0350877193
A14: East Ayrshire | B14: 30 | C14: 0 | D14: 0 | E14: 30 | F14: 0
A15: East Dunbartonshire | B15: 135 | C15: 10 | D15: 0 | E15: 150 | F15: 0.06666666667
A16: East Lothian | B16: 50 | C16: 0 | D16: 0 | E16: 50 | F16: 0
A17: East Renfrewshire | B17: 60 | C17: 5 | D17: 0 | E17: 65 | F17: 0.07692307692
A18: Edinburgh | B18: 2545 | C18: 90 | D18: 5 | E18: 2640 | F18: 0.03598484848
A19: Eilean Siar | B19: 0 | C19: 0 | D19: 0 | E19: 0
A20: Falkirk | B20: 790 | C20: 80 | D20: 5 | E20: 870 | F20: 0.09770114943
A21: Fife | B21: 1170 | C21: 60 | D21: 10 | E21: 1235 | F21: 0.05668016194
A22: Glasgow City | B22: 4030 | C22: 330 | D22: 40 | E22: 4400 | F22: 0.08409090909
A23: Highland | B23: 105 | C23: 0 | D23: 0 | E23: 110 | F23: 0
A24: Inverclyde | B24: 360 | C24: 20 | D24: 10 | E24: 390 | F24: 0.07692307692
A25: Midlothian | B25: 130 | C25: 10 | D25: 0 | E25: 135 | F25: 0.07407407407
A26: Moray | B26: 525 | C26: 15 | D26: 0 | E26: 540 | F26: 0.02777777778
A27: North Ayrshire | B27: 815 | C27: 20 | D27: 0 | E27: 835 | F27: 0.02395209581
A28: North Lanarkshire | B28: 890 | C28: 10 | D28: 0 | E28: 900 | F28: 0.01111111111
A29: Orkney | B29: 15 | C29: 0 | D29: 0 | E29: 15 | F29: 0
A30: Perth & Kinross | B30: 975 | C30: 125 | D30: 5 | E30: 1110 | F30: 0.1171171171
A31: Renfrewshire | B31: 870 | C31: 65 | D31: 5 | E31: 945 | F31: 0.07407407407
A32: Scottish Borders | B32: 355 | C32: 10 | D32: 0 | E32: 365 | F32: 0.02739726027
A33: Shetland | B33: 105 | C33: 0 | D33: 0 | E33: 105 | F33: 0
A34: South Ayrshire | B34: 490 | C34: 15 | D34: 0 | E34: 505 | F34: 0.0297029703
A35: South Lanarkshire | B35: 395 | C35: 10 | D35: 0 | E35: 405 | F35: 0.02469135802
A36: Stirling | B36: 160 | C36: 10 | D36: 0 | E36: 170 | F36: 0.05882352941
A37: West Dunbartonshire | B37: 110 | C37: 0 | D37: 0 | E37: 115 | F37: 0
A38: West Lothian | B38: 350 | C38: 15 | D38: 0 | E38: 365 | F38: 0.04109589041
A40: Disclosure Control has been applied to this table. All cells have been rounded to the nearest five.
A41: Row totals may not sum to total of individual cells due to rounding.
A49: Chart Data - Repeat approaches
B50: Proportion of Households making Repeat Approaches
A51: Perth & Kinross | B51: 0.1171171171
A52: Falkirk | B52: 0.09770114943
A53: Glasgow City | B53: 0.08409090909
A54: East Renfrewshire | B54: 0.07692307692
A55: Inverclyde | B55: 0.07692307692
A56: Midlothian | B56: 0.07407407407
A57: Renfrewshire | B57: 0.07407407407
A58: East Dunbartonshire | B58: 0.06666666667
A59: Argyll & Bute | B59: 0.06547619048
A60: Stirling | B60: 0.05882352941
A61: Fife | B61: 0.05668016194
A62: Scotland | B62: 0.05554285714
A63: Dumfries & Galloway | B63: 0.04255319149
A64: West Lothian | B64: 0.04109589041
A65: Clackmannanshire | B65: 0.03846153846
A66: Aberdeenshire | B66: 0.03821656051
A67: Edinburgh | B67: 0.03598484848
A68: Aberdeen City | B68: 0.03521126761
A69: Dundee City | B69: 0.0350877193
A70: South Ayrshire | B70: 0.0297029703
A71: Moray | B71: 0.02777777778
A72: Scottish Borders | B72: 0.02739726027
A73: Angus | B73: 0.02702702703
A74: South Lanarkshire | B74: 0.02469135802
A75: North Ayrshire | B75: 0.02395209581
A76: North Lanarkshire | B76: 0.01111111111
A77: East Ayrshire | B77: 0
A78: East Lothian | B78: 0
A79: Highland | B79: 0
A80: Orkney | B80: 0
A81: Shetland | B81: 0
A82: West Dunbartonshire | B82: 0
A83: Eilean Siar

Sheet Chart 12- Repeat Approaches
A1: Chart 12: Proportion of Unique Households in each LA area making Repeat Approaches | M1: Back to Contents
A2: All Households making approaches between 1 April and 30 September 2017

Sheet SAS code - last 6 months (hidden)
A1: Table 1: Total Housing Options approaches by LA and quarter
B2: Quarter of Approach
B3: 2014 Q2 | C3: 2014 Q3 | D3: 2014 Q4 | E3: 2015 Q1 | F3: 2015 Q2 | G3: 2015 Q3 | H3: 2015 Q4 | I3: 2016 Q1 | J3: 2016 Q2 | K3: 2016 Q3 | L3: 2016 Q4 | M3: 2017 Q1 | N3: 2017 Q2 | O3: 2017 Q3
B4: N | C4: N | D4: N | E4: N | F4: N | G4: N | H4: N | I4: N | J4: N | K4: N | L4: N | M4: N | N4: N | O4: N
A5: Aberdeen City | B5: 1167 | C5: 1595 | D5: 1617 | E5: 1908 | F5: 1708 | G5: 1582 | H5: 1332 | I5: 1516 | J5: 1416 | K5: 1398 | L5: 1024 | M5: 1345 | N5: 1218 | O5: 1003
A6: Aberdeenshire | B6: 573 | C6: 478 | D6: 422 | E6: 614 | F6: 558 | G6: 532 | H6: 437 | I6: 574 | J6: 479 | K6: 461 | L6: 391 | M6: 458 | N6: 406 | O6: 422
A7: Angus | B7: 273 | C7: 274 | D7: 238 | E7: 295 | F7: 261 | G7: 252 | H7: 178 | I7: 215 | J7: 292 | K7: 305 | L7: 191 | M7: 270 | N7: 181 | O7: 199
A8: Argyll & Bute | B8: 129 | C8: 99 | D8: 261 | E8: 638 | F8: 579 | G8: 455 | H8: 401 | I8: 465 | J8: 436 | K8: 491 | L8: 374 | M8: 481 | N8: 518 | O8: 466
A9: Clackmannanshire | B9: 31 | C9: 44 | D9: 29 | E9: 27 | F9: 13 | G9: 50 | H9: 28 | I9: 25 | J9: 123 | K9: 101 | L9: 88 | M9: 180 | N9: 150 | O9: 121
A10: Dumfries & Galloway | B10: 237 | C10: 250 | D10: 193 | E10: 212 | F10: 231 | G10: 201 | H10: 192 | I10: 235 | J10: 220 | K10: 254 | L10: 203 | M10: 299 | N10: 237 | O10: 255
A11: Dundee City | B11: 767 | C11: 787 | D11: 439 | E11: 478 | F11: 547 | G11: 552 | H11: 490 | I11: 617 | J11: 531 | K11: 501 | L11: 466 | M11: 656 | N11: 352 | O11: 238
A12: East Ayrshire | B12: 63 | C12: 47 | D12: 21 | E12: 26 | F12: 7 | G12: 5 | H12: 1 | I12: 31 | J12: 15 | K12: 32 | L12: 23 | M12: 28 | N12: 20 | O12: 11
A13: East Dunbartonshire | B13: 33 | C13: 32 | D13: 33 | E13: 36 | F13: 34 | G13: 39 | H13: 25 | I13: 68 | J13: 58 | K13: 126 | L13: 88 | M13: 148 | N13: 107 | O13: 58
A14: East Lothian | B14: 124 | C14: 109 | D14: 64 | E14: 134 | F14: 89 | G14: 110 | H14: 91 | I14: 72 | J14: 53 | K14: 42 | L14: 52 | M14: 53 | N14: 23 | O14: 26
A15: East Renfrewshire | B15: 38 | C15: 52 | D15: 47 | E15: 23 | F15: 44 | G15: 48 | H15: 44 | I15: 50 | J15: 54 | K15: 47 | L15: 39 | M15: 43 | N15: 35 | O15: 29
A16: Edinburgh | B16: 1940 | C16: 2106 | D16: 1960 | E16: 2168 | F16: 2044 | G16: 1928 | H16: 1783 | I16: 1844 | J16: 1761 | K16: 1602 | L16: 1468 | M16: 1595 | N16: 1466 | O16: 1274
A17: Eilean Siar | B17: 6 | C17: 3 | D17: 2 | E17: 5 | F17: 2 | G17: 1 | H17: 3 | I17: 6 | J17: 2 | K17: 2 | L17: 2 | M17: 8 | N17: 1 | O17: 1
A18: Falkirk | B18: 567 | C18: 580 | D18: 433 | E18: 476 | F18: 441 | G18: 471 | H18: 397 | I18: 521 | J18: 485 | K18: 513 | L18: 448 | M18: 541 | N18: 504 | O18: 462
A19: Fife | B19: 804 | C19: 832 | D19: 649 | E19: 904 | F19: 843 | G19: 716 | H19: 558 | I19: 696 | J19: 700 | K19: 691 | L19: 571 | M19: 737 | N19: 716 | O19: 588
A20: Glasgow City | B20: 3686 | C20: 3212 | D20: 2845 | E20: 3326 | F20: 2113 | G20: 2719 | H20: 2385 | I20: 2891 | J20: 2527 | K20: 2521 | L20: 2085 | M20: 2592 | N20: 2484 | O20: 2363
A21: Highland | B21: 492 | C21: 490 | D21: 346 | E21: 401 | F21: 464 | G21: 431 | H21: 328 | I21: 323 | J21: 161 | K21: 129 | L21: 75 | M21: 109 | N21: 78 | O21: 30
A22: Inverclyde | B22: 226 | C22: 307 | D22: 216 | E22: 250 | F22: 240 | G22: 215 | H22: 204 | I22: 264 | J22: 234 | K22: 212 | L22: 224 | M22: 276 | N22: 222 | O22: 240
A23: Midlothian | B23: 162 | C23: 129 | D23: 90 | E23: 125 | F23: 124 | G23: 89 | H23: 87 | I23: 113 | J23: 101 | K23: 109 | L23: 91 | M23: 88 | N23: 66 | O23: 75
A24: Moray | B24: 323 | C24: 305 | D24: 270 | E24: 340 | F24: 316 | G24: 231 | H24: 227 | I24: 325 | J24: 257 | K24: 267 | L24: 242 | M24: 318 | N24: 278 | O24: 278
A25: North Ayrshire | B25: 469 | C25: 482 | D25: 409 | E25: 565 | F25: 469 | G25: 480 | H25: 378 | I25: 468 | J25: 435 | K25: 379 | L25: 321 | M25: 434 | N25: 425 | O25: 435
A26: North Lanarkshire | B26: 920 | C26: 873 | D26: 742 | E26: 995 | F26: 898 | G26: 923 | H26: 725 | I26: 873 | J26: 835 | K26: 828 | L26: 912 | M26: 631 | N26: 468 | O26: 443
A27: Orkney | B27: 9 | C27: 17 | D27: 13 | E27: 14 | F27: 11 | G27: 18 | H27: 9 | I27: 22 | J27: 12 | K27: 12 | L27: 3 | M27: 4 | N27: 7 | O27: 6
A28: Perth & Kinross | B28: 565 | C28: 535 | D28: 487 | E28: 551 | F28: 458 | G28: 545 | H28: 433 | I28: 551 | J28: 577 | K28: 588 | L28: 526 | M28: 672 | N28: 633 | O28: 619
A29: Renfrewshire | B29: 461 | C29: 520 | D29: 459 | E29: 550 | F29: 533 | G29: 520 | H29: 469 | I29: 584 | J29: 529 | K29: 542 | L29: 484 | M29: 562 | N29: 523 | O29: 491
A30: Scottish Borders | B30: 277 | C30: 254 | D30: 202 | E30: 271 | F30: 259 | G30: 241 | H30: 162 | I30: 205 | J30: 209 | K30: 218 | L30: 166 | M30: 255 | N30: 189 | O30: 185
A31: Shetland | B31: 99 | C31: 67 | D31: 74 | E31: 63 | F31: 42 | G31: 40 | H31: 43 | I31: 40 | J31: 51 | K31: 43 | L31: 56 | M31: 51 | N31: 47 | O31: 64
A32: South Ayrshire | B32: 242 | C32: 229 | D32: 247 | E32: 352 | F32: 367 | G32: 395 | H32: 357 | I32: 448 | J32: 310 | K32: 261 | L32: 223 | M32: 215 | N32: 256 | O32: 266
A33: South Lanarkshire | B33: 346 | C33: 364 | D33: 253 | E33: 333 | F33: 262 | G33: 317 | H33: 236 | I33: 265 | J33: 226 | K33: 194 | L33: 173 | M33: 259 | N33: 225 | O33: 189
A34: Stirling | B34: 202 | C34: 234 | D34: 157 | E34: 55 | F34: 100 | G34: 103 | H34: 78 | I34: 131 | J34: 103 | K34: 91 | L34: 52 | M34: 70 | N34: 91 | O34: 85
A35: West Dunbartonshire | B35: 422 | C35: 465 | D35: 386 | E35: 384 | F35: 286 | G35: 45 | H35: 20 | I35: 34 | J35: 41 | K35: 58 | L35: 42 | M35: 56 | N35: 60 | O35: 54
A36: West Lothian | B36: 372 | C36: 429 | D36: 316 | E36: 428 | F36: 329 | G36: 341 | H36: 274 | I36: 369 | J36: 335 | K36: 301 | L36: 254 | M36: 181 | N36: 224 | O36: 151
A37: Scotland | B37: 16025 | C37: 16200 | D37: 13920 | E37: 16947 | F37: 14672 | G37: 14595 | H37: 12375 | I37: 14841 | J37: 13568 | K37: 13319 | L37: 11357 | M37: 13615 | N37: 12210 | O37: 11127
A38: Household is assigned to local authority of most recent approach
A39: Table 1M: Total Housing Options approaches by LA and quarter
B40: approach_year
B41: 2014 | N41: 2015 | Z41: 2016 | AL41: 2017
B42: approach_month | N42: approach_month | Z42: approach_month | AL42: approach_month
B43: 1 | C43: 2 | D43: 3 | E43: 4 | F43: 5 | G43: 6 | H43: 7 | I43: 8 | J43: 9 | K43: 10 | L43: 11 | M43: 12 | N43: 1 | O43: 2 | P43: 3 | Q43: 4 | R43: 5 | S43: 6 | T43: 7 | U43: 8 | V43: 9 | W43: 10 | X43: 11 | Y43: 12 | Z43: 1 | AA43: 2 | AB43: 3 | AC43: 4 | AD43: 5 | AE43: 6 | AF43: 7 | AG43: 8 | AH43: 9 | AI43: 10 | AJ43: 11 | AK43: 12 | AL43: 1 | AM43: 2 | AN43: 3 | AO43: 4 | AP43: 5 | AQ43: 6 | AR43: 7 | AS43: 8 | AT43: 9 | AU43: 10 | AV43: 11 | AW43: 12
A44: Scotland | B44: 0 | C44: 0 | D44: 0 | E44: 5418 | F44: 5127 | G44: 5480 | H44: 5473 | I44: 5286 | J44: 5441 | K44: 5556 | L44: 4696 | M44: 3668 | N44: 5589 | O44: 5513 | P44: 5845 | Q44: 4900 | R44: 4798 | S44: 4974 | T44: 4734 | U44: 4994 | V44: 4867 | W44: 4715 | X44: 4438 | Y44: 3222 | Z44: 4774 | AA44: 4988 | AB44: 5079 | AC44: 4555 | AD44: 4408 | AE44: 4605 | AF44: 4054 | AG44: 4712 | AH44: 4553 | AI44: 4293 | AJ44: 4155 | AK44: 2909 | AL44: 4482 | AM44: 4303 | AN44: 4830 | AO44: 3768 | AP44: 4337 | AQ44: 4105 | AR44: 3771 | AS44: 4085 | AT44: 3271 | AU44: 0 | AV44: 0 | AW44: 0
A45: Household is assigned to local authority of most recent approach
A46: Table 3a: Reasons for Housing Options approaches by quarter
B47: Quarter of Approach
B48: 2014 Q2 | C48: 2014 Q3 | D48: 2014 Q4 | E48: 2015 Q1 | F48: 2015 Q2 | G48: 2015 Q3 | H48: 2015 Q4 | I48: 2016 Q1 | J48: 2016 Q2 | K48: 2016 Q3 | L48: 2016 Q4 | M48: 2017 Q1 | N48: 2017 Q2 | O48: 2017 Q3 | R48: N | S48: N | T48: N | U48: N | V48: N | W48: N | X48: N | Y48: N | Z48: N | AA48: N
B49: N | C49: N | D49: N | E49: N | F49: N | G49: N | H49: N | I49: N | J49: N | K49: N | L49: N | M49: N | N49: N | O49: N | R49: 2015 Q2 | S49: 2015 Q3 | T49: 2015 Q4 | U49: 2016 Q1 | V49: 2016 Q2 | W49: 2016 Q3 | X49: 2016 Q4 | Y49: 2017 Q1 | Z49: 2017 Q2 | AA49: 2017 Q3
A50: Termination of tenancy / mortgage due to rent arrears / default on payments | B50: 893 | C50: 872 | D50: 720 | E50: 905 | F50: 653 | G50: 576 | H50: 561 | I50: 627 | J50: 555 | K50: 458 | L50: 428 | M50: 574 | N50: 464 | O50: 405 | Q50: General housing options advice | R50: 1975 | S50: 2115 | T50: 1810 | U50: 2392 | V50: 2090 | W50: 2085 | X50: 1779 | Y50: 2174 | Z50: 2201 | AA50: 2077
A51: Other action by landlord resulting in the termination of the tenancy | B51: 1163 | C51: 1016 | D51: 828 | E51: 1207 | F51: 1042 | G51: 1041 | H51: 819 | I51: 1122 | J51: 1127 | K51: 972 | L51: 757 | M51: 1077 | N51: 951 | O51: 763 | Q51: Asked to leave | R51: 2132 | S51: 2102 | T51: 1782 | U51: 2121 | V51: 1979 | W51: 1779 | X51: 1464 | Y51: 1878 | Z51: 1634 | AA51: 1517
A52: Applicant terminated secure accommodation | B52: 168 | C52: 176 | D52: 159 | E52: 177 | F52: 148 | G52: 155 | H52: 131 | I52: 144 | J52: 112 | K52: 149 | L52: 115 | M52: 148 | N52: 135 | O52: 125 | Q52: Dispute within household / relationship breakdown: non-violent | R52: 1850 | S52: 1895 | T52: 1581 | U52: 1879 | V52: 1669 | W52: 1776 | X52: 1535 | Y52: 1988 | Z52: 1582 | AA52: 1453
A53: Loss of service / tied accommodation | B53: 82 | C53: 82 | D53: 65 | E53: 71 | F53: 61 | G53: 64 | H53: 63 | I53: 59 | J53: 66 | K53: 49 | L53: 34 | M53: 49 | N53: 40 | O53: 57 | Q53: Risk of losing accommodation | R53: 1274 | S53: 1126 | T53: 1006 | U53: 1227 | V53: 1062 | W53: 1103 | X53: 924 | Y53: 1041 | Z53: 949 | AA53: 900
A54: Discharge from prison / hospital / care / other institution | B54: 1150 | C54: 952 | D54: 719 | E54: 887 | F54: 674 | G54: 672 | H54: 523 | I54: 586 | J54: 609 | K54: 536 | L54: 546 | M54: 597 | N54: 568 | O54: 470 | Q54: Other action by landlord resulting in the termination of the tenancy | R54: 1042 | S54: 1041 | T54: 819 | U54: 1122 | V54: 1127 | W54: 972 | X54: 757 | Y54: 1077 | Z54: 951 | AA54: 763
A55: Emergency (fire, flood, storm, closing order from Environmental Health etc.) | B55: 28 | C55: 50 | D55: 38 | E55: 46 | F55: 41 | G55: 34 | H55: 36 | I55: 45 | J55: 51 | K55: 27 | L55: 42 | M55: 31 | N55: 34 | O55: 22 | Q55: Dispute within household: violent or abusive | R55: 836 | S55: 881 | T55: 780 | U55: 838 | V55: 816 | W55: 789 | X55: 708 | Y55: 826 | Z55: 785 | AA55: 747
A56: Forced division and sale of matrimonial home | B56: 71 | C56: 81 | D56: 62 | E56: 63 | F56: 69 | G56: 71 | H56: 45 | I56: 63 | J56: 56 | K56: 51 | L56: 37 | M56: 48 | N56: 44 | O56: 49 | Q56: Discharge from prison / hospital / care / other institution | R56: 674 | S56: 672 | T56: 523 | U56: 586 | V56: 609 | W56: 536 | X56: 546 | Y56: 597 | Z56: 568 | AA56: 470
A57: Other reason for loss of accommodation | B57: 447 | C57: 395 | D57: 367 | E57: 466 | F57: 314 | G57: 347 | H57: 333 | I57: 408 | J57: 432 | K57: 372 | L57: 369 | M57: 407 | N57: 454 | O57: 373 | Q57: Other reason for leaving accommodation / household | R57: 473 | S57: 543 | T57: 508 | U57: 505 | V57: 479 | W57: 554 | X57: 411 | Y57: 501 | Z57: 413 | AA57: 434
A58: Dispute within household: violent or abusive | B58: 935 | C58: 1042 | D58: 823 | E58: 943 | F58: 836 | G58: 881 | H58: 780 | I58: 838 | J58: 816 | K58: 789 | L58: 708 | M58: 826 | N58: 785 | O58: 747 | Q58: Accommodation unsuitable | R58: 614 | S58: 619 | T58: 433 | U58: 531 | V58: 497 | W58: 639 | X58: 521 | Y58: 633 | Z58: 582 | AA58: 416
A59: Dispute within household / relationship breakdown: non-violent | B59: 2267 | C59: 2279 | D59: 1850 | E59: 2139 | F59: 1850 | G59: 1895 | H59: 1581 | I59: 1879 | J59: 1669 | K59: 1776 | L59: 1535 | M59: 1988 | N59: 1582 | O59: 1453 | Q59: Termination of tenancy / mortgage due to rent arrears / default on payments | R59: 653 | S59: 576 | T59: 561 | U59: 627 | V59: 555 | W59: 458 | X59: 428 | Y59: 574 | Z59: 464 | AA59: 405
A60: Fleeing non-domestic violence | B60: 273 | C60: 260 | D60: 214 | E60: 206 | F60: 211 | G60: 215 | H60: 175 | I60: 173 | J60: 200 | K60: 131 | L60: 137 | M60: 158 | N60: 161 | O60: 153 | Q60: Other reason for loss of accommodation | R60: 314 | S60: 347 | T60: 333 | U60: 408 | V60: 432 | W60: 372 | X60: 369 | Y60: 407 | Z60: 454 | AA60: 373
A61: Harassment | B61: 256 | C61: 283 | D61: 206 | E61: 215 | F61: 227 | G61: 208 | H61: 153 | I61: 162 | J61: 180 | K61: 187 | L61: 145 | M61: 182 | N61: 156 | O61: 166 | Q61: Personal issues – affordability / financial difficulties | R61: 388 | S61: 383 | T61: 297 | U61: 368 | V61: 360 | W61: 443 | X61: 479 | Y61: 455 | Z61: 323 | AA61: 304
A62: Overcrowding | B62: 316 | C62: 311 | D62: 270 | E62: 346 | F62: 254 | G62: 237 | H62: 225 | I62: 256 | J62: 185 | K62: 194 | L62: 155 | M62: 201 | N62: 178 | O62: 146 | Q62: Other | R62: 735 | S62: 696 | T62: 586 | U62: 666 | V62: 499 | W62: 406 | X62: 243 | Y62: 196 | Z62: 190 | AA62: 198
A63: Asked to leave | B63: 2363 | C63: 2472 | D63: 2062 | E63: 2474 | F63: 2132 | G63: 2102 | H63: 1782 | I63: 2121 | J63: 1979 | K63: 1779 | L63: 1464 | M63: 1878 | N63: 1634 | O63: 1517 | Q63: Harassment | R63: 227 | S63: 208 | T63: 153 | U63: 162 | V63: 180 | W63: 187 | X63: 145 | Y63: 182 | Z63: 156 | AA63: 166
A64: Other reason for leaving accommodation / household | B64: 632 | C64: 673 | D64: 511 | E64: 558 | F64: 473 | G64: 543 | H64: 508 | I64: 505 | J64: 479 | K64: 554 | L64: 411 | M64: 501 | N64: 413 | O64: 434 | Q64: Fleeing non-domestic violence | R64: 211 | S64: 215 | T64: 175 | U64: 173 | V64: 200 | W64: 131 | X64: 137 | Y64: 158 | Z64: 161 | AA64: 153
A65: General housing options advice | B65: 1689 | C65: 1752 | D65: 1595 | E65: 2112 | F65: 1975 | G65: 2115 | H65: 1810 | I65: 2392 | J65: 2090 | K65: 2085 | L65: 1779 | M65: 2174 | N65: 2201 | O65: 2077 | Q65: Overcrowding | R65: 254 | S65: 237 | T65: 225 | U65: 256 | V65: 185 | W65: 194 | X65: 155 | Y65: 201 | Z65: 178 | AA65: 146
A66: Benefit issues & Welfare Reform | B66: 343 | C66: 216 | D66: 279 | E66: 332 | F66: 248 | G66: 157 | H66: 148 | I66: 183 | J66: 117 | K66: 215 | L66: 188 | M66: 132 | N66: 139 | O66: 127 | Q66: Benefit issues & Welfare Reform | R66: 248 | S66: 157 | T66: 148 | U66: 183 | V66: 117 | W66: 215 | X66: 188 | Y66: 132 | Z66: 139 | AA66: 127
A67: Property condition | B67: 140 | C67: 144 | D67: 146 | E67: 219 | F67: 136 | G67: 127 | H67: 139 | I67: 167 | J67: 104 | K67: 98 | L67: 95 | M67: 123 | N67: 74 | O67: 68 | Q67: Applicant terminated secure accommodation | R67: 148 | S67: 155 | T67: 131 | U67: 144 | V67: 112 | W67: 149 | X67: 115 | Y67: 148 | Z67: 135 | AA67: 125
A68: Accommodation unsuitable | B68: 412 | C68: 558 | D68: 508 | E68: 587 | F68: 614 | G68: 619 | H68: 433 | I68: 531 | J68: 497 | K68: 639 | L68: 521 | M68: 633 | N68: 582 | O68: 416 | Q68: Household experiencing anti-social behaviour / neighbour problems | R68: 104 | S68: 104 | T68: 67 | U68: 94 | V68: 114 | W68: 106 | X68: 92 | Y68: 100 | Z68: 88 | AA68: 93
A69: Household experiencing anti-social behaviour / neighbour problems | B69: 103 | C69: 108 | D69: 85 | E69: 76 | F69: 104 | G69: 104 | H69: 67 | I69: 94 | J69: 114 | K69: 106 | L69: 92 | M69: 100 | N69: 88 | O69: 93 | Q69: Property condition | R69: 136 | S69: 127 | T69: 139 | U69: 167 | V69: 104 | W69: 98 | X69: 95 | Y69: 123 | Z69: 74 | AA69: 68
A70: Other | B70: 544 | C70: 657 | D70: 659 | E70: 728 | F70: 735 | G70: 696 | H70: 586 | I70: 666 | J70: 499 | K70: 406 | L70: 243 | M70: 196 | N70: 190 | O70: 198 | Q70: Loss of service / tied accommodation | R70: 61 | S70: 64 | T70: 63 | U70: 59 | V70: 66 | W70: 49 | X70: 34 | Y70: 49 | Z70: 40 | AA70: 57
A71: Household member needing care | B71: 71 | C71: 148 | D71: 166 | E71: 209 | F71: 165 | G71: 182 | H71: 140 | I71: 182 | J71: 176 | K71: 170 | L71: 119 | M71: 62 | N71: 40 | O71: 37 | Q71: Forced division and sale of matrimonial home | R71: 69 | S71: 71 | T71: 45 | U71: 63 | V71: 56 | W71: 51 | X71: 37 | Y71: 48 | Z71: 44 | AA71: 49
A72: Personal issues – affordability / financial difficulties | B72: 365 | C72: 376 | D72: 334 | E72: 468 | F72: 388 | G72: 383 | H72: 297 | I72: 368 | J72: 360 | K72: 443 | L72: 479 | M72: 455 | N72: 323 | O72: 304 | Q72: Household member needing care | R72: 165 | S72: 182 | T72: 140 | U72: 182 | V72: 176 | W72: 170 | X72: 119 | Y72: 62 | Z72: 40 | AA72: 37
A73: Risk of losing accommodation | B73: 1266 | C73: 1242 | D73: 1212 | E73: 1463 | F73: 1274 | G73: 1126 | H73: 1006 | I73: 1227 | J73: 1062 | K73: 1103 | L73: 924 | M73: 1041 | N73: 949 | O73: 900 | Q73: Landlord issue | R73: 48 | S73: 45 | T73: 34 | U73: 43 | V73: 33 | W73: 30 | X73: 34 | Y73: 34 | Z73: 25 | AA73: 27
A74: Landlord issue | B74: 48 | C74: 55 | D74: 42 | E74: 50 | F74: 48 | G74: 45 | H74: 34 | I74: 43 | J74: 33 | K74: 30 | L74: 34 | M74: 34 | N74: 25 | O74: 27 | Q74: Emergency (fire, flood, storm, closing order from Environmental Health etc.) | R74: 41 | S74: 34 | T74: 36 | U74: 45 | V74: 51 | W74: 27 | X74: 42 | Y74: 31 | Z74: 34 | AA74: 22
A75: Scotland | B75: 16025 | C75: 16200 | D75: 13920 | E75: 16947 | F75: 14672 | G75: 14595 | H75: 12375 | I75: 14841 | J75: 13568 | K75: 13319 | L75: 11357 | M75: 13615 | N75: 12210 | O75: 11127 | Q75: Scotland | R75: 14672 | S75: 14595 | T75: 12375 | U75: 14841 | V75: 13568 | W75: 13319 | X75: 11357 | Y75: 13615 | Z75: 12210 | AA75: 11127
A76: Household is assigned to local authority of most recent approach
A77: Table 3b: Reasons for Housing Options approaches by quarter
B78: Quarter of Approach
B79: 2014 Q2 | C79: 2014 Q3 | D79: 2014 Q4 | E79: 2015 Q1 | F79: 2015 Q2 | G79: 2015 Q3 | H79: 2015 Q4 | I79: 2016 Q1 | J79: 2016 Q2 | K79: 2016 Q3 | L79: 2016 Q4 | M79: 2017 Q1 | N79: 2017 Q2 | O79: 2017 Q3
B80: N | C80: N | D80: N | E80: N | F80: N | G80: N | H80: N | I80: N | J80: N | K80: N | L80: N | M80: N | N80: N | O80: N
A81: Homelessness Type | B81: 11044 | C81: 10944 | D81: 8894 | E81: 10703 | F81: 8985 | G81: 9041 | H81: 7715 | I81: 8988 | J81: 8516 | K81: 8024 | L81: 6883 | M81: 8665 | N81: 7599 | O81: 6880
A82: Prevention Type | B82: 4981 | C82: 5256 | D82: 5026 | E82: 6244 | F82: 5687 | G82: 5554 | H82: 4660 | I82: 5853 | J82: 5052 | K82: 5295 | L82: 4474 | M82: 4950 | N82: 4611 | O82: 4247
A83: Scotland | B83: 16025 | C83: 16200 | D83: 13920 | E83: 16947 | F83: 14672 | G83: 14595 | H83: 12375 | I83: 14841 | J83: 13568 | K83: 13319 | L83: 11357 | M83: 13615 | N83: 12210 | O83: 11127
A84: Household is assigned to local authority of most recent approach
A85: Table 4: Maximum Type of Housing Options activities by quarter
C86: Quarter of Approach
C87: 2014 Q2 | D87: 2014 Q3 | E87: 2014 Q4 | F87: 2015 Q1 | G87: 2015 Q2 | H87: 2015 Q3 | I87: 2015 Q4 | J87: 2016 Q1 | K87: 2016 Q2 | L87: 2016 Q3 | M87: 2016 Q4 | N87: 2017 Q1 | O87: 2017 Q2 | P87: 2017 Q3
A88: 0 | B88: N | C88: . | D88: . | E88: 1 | F88: . | G88: . | H88: . | I88: . | J88: . | K88: . | L88: . | M88: . | N88: . | O88: . | P88: .
A89: 1 | B89: N | C89: 8108 | D89: 8850 | E89: 7882 | F89: 9471 | G89: 8291 | H89: 7935 | I89: 6665 | J89: 8133 | K89: 7428 | L89: 7072 | M89: 6127 | N89: 7466 | O89: 6965 | P89: 6355
A90: 2 | B90: N | C90: 7834 | D90: 7287 | E90: 5987 | F90: 7435 | G90: 6349 | H90: 6620 | I90: 5683 | J90: 6666 | K90: 6073 | L90: 6177 | M90: 5152 | N90: 6070 | O90: 5169 | P90: 4707
A91: 3 | B91: N | C91: 83 | D91: 63 | E91: 50 | F91: 41 | G91: 32 | H91: 40 | I91: 27 | J91: 42 | K91: 67 | L91: 70 | M91: 78 | N91: 79 | O91: 76 | P91: 65
A92: Total | B92: N | C92: 16025 | D92: 16200 | E92: 13920 | F92: 16947 | G92: 14672 | H92: 14595 | I92: 12375 | J92: 14841 | K92: 13568 | L92: 13319 | M92: 11357 | N92: 13615 | O92: 12210 | P92: 11127
A93: Household is assigned to local authority of most recent approach
A94: Table 5: Housing Options activities by quarter
C95: Quarter of Approach | Q95: All
C96: 2014 Q2 | D96: 2014 Q3 | E96: 2014 Q4 | F96: 2015 Q1 | G96: 2015 Q2 | H96: 2015 Q3 | I96: 2015 Q4 | J96: 2016 Q1 | K96: 2016 Q2 | L96: 2016 Q3 | M96: 2016 Q4 | N96: 2017 Q1 | O96: 2017 Q2 | P96: 2017 Q3 | T96: 2015 Q2 | U96: 2015 Q3 | V96: 2015 Q4 | W96: 2016 Q1 | X96: 2016 Q2 | Y96: 2016 Q3 | Z96: 2016 Q4 | AA96: 2017 Q1 | AB96: 2017 Q2 | AC96: 2017 Q3
A97: Mediation/outreach work | B97: N | C97: 556 | D97: 667 | E97: 520 | F97: 644 | G97: 397 | H97: 393 | I97: 339 | J97: 440 | K97: 414 | L97: 475 | M97: 342 | N97: 416 | O97: 315 | P97: 252 | Q97: 6170 | S97: General Housing advice/Tenancy rights advice | T97: 12462 | U97: 12712 | V97: 10400 | W97: 12594 | X97: 11084 | Y97: 10662 | Z97: 8906 | AA97: 10934 | AB97: 9839 | AC97: 8499
A98: Financial assistance/advice | B98: N | C98: 2438 | D98: 2830 | E98: 2380 | F98: 2705 | G98: 2439 | H98: 2474 | I98: 2059 | J98: 2147 | K98: 2007 | L98: 2193 | M98: 1822 | N98: 1814 | O98: 1593 | P98: 1357 | Q98: 30258 | S98: Client informed of rights under homelessness legislation | T98: 7814 | U98: 7839 | V98: 6827 | W98: 8103 | X98: 7466 | Y98: 7110 | Z98: 6138 | AA98: 7739 | AB98: 6806 | AC98: 6294
A99: Rent/repairs/referrals/negotiation with landlords | B99: N | C99: 2313 | D99: 2259 | E99: 1969 | F99: 2626 | G99: 2246 | H99: 2315 | I99: 1765 | J99: 1850 | K99: 1679 | L99: 1778 | M99: 1464 | N99: 1741 | O99: 1588 | P99: 1514 | Q99: 27107 | S99: Rent/repairs/referrals/negotiation with landlords | T99: 2246 | U99: 2315 | V99: 1765 | W99: 1850 | X99: 1679 | Y99: 1778 | Z99: 1464 | AA99: 1741 | AB99: 1588 | AC99: 1514
A100: Help to remain in accommodation | B100: N | C100: 832 | D100: 902 | E100: 709 | F100: 801 | G100: 693 | H100: 774 | I100: 566 | J100: 732 | K100: 616 | L100: 736 | M100: 560 | N100: 564 | O100: 579 | P100: 417 | Q100: 9481 | S100: Help to move property | T100: 1874 | U100: 2008 | V100: 1601 | W100: 2000 | X100: 2028 | Y100: 2154 | Z100: 1702 | AA100: 2173 | AB100: 1958 | AC100: 1443
A101: Mortgage/home ownership advice | B101: N | C101: 160 | D101: 204 | E101: 115 | F101: 172 | G101: 164 | H101: 154 | I101: 99 | J101: 131 | K101: 97 | L101: 91 | M101: 68 | N101: 103 | O101: 86 | P101: 65 | Q101: 1709 | S101: Other | T101: 1611 | U101: 1642 | V101: 1393 | W101: 1696 | X101: 1546 | Y101: 1686 | Z101: 1437 | AA101: 1455 | AB101: 1113 | AC101: 1414
A102: Tenancy/social care support/adaptations to property | B102: N | C102: 322 | D102: 342 | E102: 291 | F102: 410 | G102: 372 | H102: 340 | I102: 343 | J102: 419 | K102: 377 | L102: 342 | M102: 251 | N102: 343 | O102: 419 | P102: 382 | Q102: 4953 | S102: Financial assistance/advice | T102: 2439 | U102: 2474 | V102: 2059 | W102: 2147 | X102: 2007 | Y102: 2193 | Z102: 1822 | AA102: 1814 | AB102: 1593 | AC102: 1357
A103: Referral to health/Social Work/employment services | B103: N | C103: 960 | D103: 1026 | E103: 931 | F103: 913 | G103: 795 | H103: 958 | I103: 717 | J103: 836 | K103: 805 | L103: 882 | M103: 734 | N103: 825 | O103: 837 | P103: 760 | Q103: 11979 | S103: Referral to health/Social Work/employment services | T103: 795 | U103: 958 | V103: 717 | W103: 836 | X103: 805 | Y103: 882 | Z103: 734 | AA103: 825 | AB103: 837 | AC103: 760
A104: Client informed of rights under homelessness legislation | B104: N | C104: 9131 | D104: 8526 | E104: 6697 | F104: 8674 | G104: 7814 | H104: 7839 | I104: 6827 | J104: 8103 | K104: 7466 | L104: 7110 | M104: 6138 | N104: 7739 | O104: 6806 | P104: 6294 | Q104: 105164 | S104: Help to remain in accommodation | T104: 693 | U104: 774 | V104: 566 | W104: 732 | X104: 616 | Y104: 736 | Z104: 560 | AA104: 564 | AB104: 579 | AC104: 417
A105: General Housing advice/Tenancy rights advice | B105: N | C105: 12143 | D105: 12294 | E105: 10544 | F105: 13220 | G105: 12462 | H105: 12712 | I105: 10400 | J105: 12594 | K105: 11084 | L105: 10662 | M105: 8906 | N105: 10934 | O105: 9839 | P105: 8499 | Q105: 156293 | S105: Tenancy/social care support/adaptations to property | T105: 372 | U105: 340 | V105: 343 | W105: 419 | X105: 377 | Y105: 342 | Z105: 251 | AA105: 343 | AB105: 419 | AC105: 382
A106: Help to move property | B106: N | C106: 1869 | D106: 2000 | E106: 1598 | F106: 1969 | G106: 1874 | H106: 2008 | I106: 1601 | J106: 2000 | K106: 2028 | L106: 2154 | M106: 1702 | N106: 2173 | O106: 1958 | P106: 1443 | Q106: 26377 | S106: Mediation/outreach work | T106: 397 | U106: 393 | V106: 339 | W106: 440 | X106: 414 | Y106: 475 | Z106: 342 | AA106: 416 | AB106: 315 | AC106: 252
A107: Other | B107: N | C107: 1437 | D107: 2236 | E107: 1619 | F107: 1610 | G107: 1611 | H107: 1642 | I107: 1393 | J107: 1696 | K107: 1546 | L107: 1686 | M107: 1437 | N107: 1455 | O107: 1113 | P107: 1414 | Q107: 21895 | S107: Mortgage/home ownership advice | T107: 164 | U107: 154 | V107: 99 | W107: 131 | X107: 97 | Y107: 91 | Z107: 68 | AA107: 103 | AB107: 86 | AC107: 65
A108: Total (ALL) | B108: N | C108: 32161 | D108: 33286 | E108: 27373 | F108: 33744 | G108: 30867 | H108: 31609 | I108: 26109 | J108: 30948 | K108: 28119 | L108: 28109 | M108: 23424 | N108: 28107 | O108: 25133 | P108: 22397 | Q108: 401386 | S108: Total (ALL) | T108: 30867 | U108: 31609 | V108: 26109 | W108: 30948 | X108: 28119 | Y108: 28109 | Z108: 23424 | AA108: 28107 | AB108: 25133 | AC108: 22397
A109: Household is assigned to local authority of most recent approach
A110: Table 6: Housing Options activities by Local Authority, during the last 6 months, 1 April 2017 to 30 Sept 2017
C111: ACTIVITY | N111: All
C112: Mediation/outreach work | D112: Financial assistance/advice | E112: Rent/repairs/referrals/negotiation with landlords | F112: Help to remain in accommodation | G112: Mortgage/home ownership advice | H112: Tenancy/social care support/adaptations to property | I112: Referral to health/Social Work/employment services | J112: Client informed of rights under homelessness legislation | K112: General Housing advice/Tenancy rights advice | L112: Help to move property | M112: Other
A113: Aberdeen City | B113: N | C113: 21 | D113: 33 | E113: 22 | F113: 88 | G113: 6 | H113: 7 | I113: 23 | J113: 742 | K113: 1145 | L113: 189 | M113: 0 | N113: 2276
A114: Aberdeenshire | B114: N | C114: 21 | D114: 210 | E114: 263 | F114: 19 | G114: 9 | H114: 6 | I114: 18 | J114: 629 | K114: 894 | L114: 5 | M114: 19 | N114: 2093
A115: Angus | B115: N | C115: 6 | D115: 224 | E115: 79 | F115: 36 | G115: 5 | H115: 25 | I115: 10 | J115: 282 | K115: 428 | L115: 281 | M115: 0 | N115: 1376
A116: Argyll & Bute | B116: N | C116: 5 | D116: 24 | E116: 62 | F116: 128 | G116: 0 | H116: 41 | I116: 5 | J116: 433 | K116: 612 | L116: 88 | M116: 7 | N116: 1405
A117: Clackmannanshire | B117: N | C117: 0 | D117: 1 | E117: 9 | F117: 1 | G117: 0 | H117: 0 | I117: 0 | J117: 276 | K117: 243 | L117: 19 | M117: 2 | N117: 551
A118: Dumfries & Galloway | B118: N | C118: 2 | D118: 15 | E118: 42 | F118: 9 | G118: 0 | H118: 83 | I118: 27 | J118: 457 | K118: 479 | L118: 149 | M118: 11 | N118: 1274
A119: Dundee City | B119: N | C119: 10 | D119: 11 | E119: 31 | F119: 12 | G119: 0 | H119: 3 | I119: 5 | J119: 594 | K119: 681 | L119: 65 | M119: 20 | N119: 1432
A120: East Ayrshire | B120: N | C120: 2 | D120: 55 | E120: 38 | F120: 4 | G120: 19 | H120: 22 | I120: 15 | J120: 31 | K120: 37 | L120: 5 | M120: 1 | N120: 229
A121: East Dunbartonshire | B121: N | C121: 0 | D121: 94 | E121: 70 | F121: 10 | G121: 6 | H121: 3 | I121: 4 | J121: 130 | K121: 136 | L121: 152 | M121: 1 | N121: 606
A122: East Lothian | B122: N | C122: 0 | D122: 25 | E122: 58 | F122: 13 | G122: 4 | H122: 0 | I122: 0 | J122: 47 | K122: 76 | L122: 54 | M122: 7 | N122: 284
A123: East Renfrewshire | B123: N | C123: 0 | D123: 26 | E123: 24 | F123: 6 | G123: 4 | H123: 4 | I123: 8 | J123: 59 | K123: 52 | L123: 5 | M123: 0 | N123: 188
A124: Edinburgh | B124: N | C124: 2 | D124: 94 | E124: 46 | F124: 6 | G124: 3 | H124: 2 | I124: 45 | J124: 824 | K124: 1687 | L124: 17 | M124: 15 | N124: 2741
A125: Eilean Siar | B125: N | C125: 0 | D125: 2 | E125: 1 | F125: 0 | G125: 0 | H125: 0 | I125: 1 | J125: 1 | K125: 1 | L125: 1 | M125: 0 | N125: 7
A126: Falkirk | B126: N | C126: 331 | D126: 969 | E126: 76 | F126: 460 | G126: 0 | H126: 48 | I126: 487 | J126: 1020 | K126: 1229 | L126: 753 | M126: 1492 | N126: 6865
A127: Fife | B127: N | C127: 31 | D127: 147 | E127: 428 | F127: 37 | G127: 52 | H127: 28 | I127: 69 | J127: 1105 | K127: 1456 | L127: 265 | M127: 56 | N127: 3674
A128: Glasgow City | B128: N | C128: 11 | D128: 70 | E128: 81 | F128: 52 | G128: 1 | H128: 2 | I128: 636 | J128: 1795 | K128: 2265 | L128: 26 | M128: 0 | N128: 4939
A129: Highland | B129: N | C129: 1 | D129: 7 | E129: 5 | F129: 7 | G129: 7 | H129: 0 | I129: 0 | J129: 66 | K129: 96 | L129: 1 | M129: 0 | N129: 190
A130: Inverclyde | B130: N | C130: 2 | D130: 4 | E130: 0 | F130: 4 | G130: 0 | H130: 0 | I130: 4 | J130: 233 | K130: 322 | L130: 20 | M130: 5 | N130: 594
A131: Midlothian | B131: N | C131: 15 | D131: 26 | E131: 13 | F131: 1 | G131: 2 | H131: 5 | I131: 2 | J131: 127 | K131: 236 | L131: 31 | M131: 108 | N131: 566
A132: Moray | B132: N | C132: 25 | D132: 66 | E132: 29 | F132: 4 | G132: 0 | H132: 8 | I132: 14 | J132: 430 | K132: 528 | L132: 105 | M132: 124 | N132: 1333
A133: North Ayrshire | B133: N | C133: 0 | D133: 73 | E133: 724 | F133: 11 | G133: 5 | H133: 0 | I133: 5 | J133: 792 | K133: 850 | L133: 8 | M133: 3 | N133: 2471
A134: North Lanarkshire | B134: N | C134: 4 | D134: 262 | E134: 140 | F134: 31 | G134: 4 | H134: 109 | I134: 34 | J134: 198 | K134: 978 | L134: 35 | M134: 87 | N134: 1882
A135: Orkney | B135: N | C135: 0 | D135: 0 | E135: 2 | F135: 0 | G135: 0 | H135: 0 | I135: 0 | J135: 8 | K135: 19 | L135: 0 | M135: 0 | N135: 29
A136: Perth & Kinross | B136: N | C136: 8 | D136: 18 | E136: 235 | F136: 0 | G136: 2 | H136: 2 | I136: 5 | J136: 427 | K136: 724 | L136: 7 | M136: 75 | N136: 1503
A137: Renfrewshire | B137: N | C137: 56 | D137: 296 | E137: 173 | F137: 11 | G137: 7 | H137: 75 | I137: 70 | J137: 766 | K137: 944 | L137: 278 | M137: 42 | N137: 2718
A138: Scottish Borders | B138: N | C138: 0 | D138: 32 | E138: 53 | F138: 1 | G138: 0 | H138: 46 | I138: 4 | J138: 224 | K138: 279 | L138: 114 | M138: 1 | N138: 754
A139: Shetland | B139: N | C139: 1 | D139: 7 | E139: 0 | F139: 1 | G139: 0 | H139: 0 | I139: 1 | J139: 97 | K139: 112 | L139: 2 | M139: 2 | N139: 223
A140: South Ayrshire | B140: N | C140: 8 | D140: 45 | E140: 229 | F140: 12 | G140: 4 | H140: 282 | I140: 96 | J140: 403 | K140: 630 | L140: 231 | M140: 445 | N140: 2385
A141: South Lanarkshire | B141: N | C141: 3 | D141: 67 | E141: 109 | F141: 11 | G141: 2 | H141: 0 | I141: 1 | J141: 382 | K141: 498 | L141: 420 | M141: 0 | N141: 1493
A142: Stirling | B142: N | C142: 0 | D142: 4 | E142: 9 | F142: 1 | G142: 0 | H142: 0 | I142: 0 | J142: 38 | K142: 167 | L142: 5 | M142: 0 | N142: 224
A143: West Dunbartonshire | B143: N | C143: 1 | D143: 30 | E143: 23 | F143: 16 | G143: 3 | H143: 0 | I143: 2 | J143: 106 | K143: 87 | L143: 51 | M143: 2 | N143: 321
A144: West Lothian | B144: N | C144: 1 | D144: 13 | E144: 28 | F144: 4 | G144: 6 | H144: 0 | I144: 6 | J144: 378 | K144: 447 | L144: 19 | M144: 2 | N144: 904
A145: Scotland | B145: N | C145: 567 | D145: 2950 | E145: 3102 | F145: 996 | G145: 151 | H145: 801 | I145: 1597 | J145: 13100 | K145: 18338 | L145: 3401 | M145: 2527 | N145: 47530
A146: Household is assigned to local authority of most recent approach
A147: Table 7: Outcomes by Quarter
C148: Quarter of Outcome | Q148: All | T148: 2015 Q2 | U148: 2015 Q3 | V148: 2015 Q4 | W148: 2016 Q1 | X148: 2016 Q2 | Y148: 2016 Q3 | Z148: 2016 Q4 | AA148: 2017 Q1 | AB148: 2017 Q2 | AC148: 2017 Q3
C149: 2014 Q2 | D149: 2014 Q3 | E149: 2014 Q4 | F149: 2015 Q1 | G149: 2015 Q2 | H149: 2015 Q3 | I149: 2015 Q4 | J149: 2016 Q1 | K149: 2016 Q2 | L149: 2016 Q3 | M149: 2016 Q4 | N149: 2017 Q1 | O149: 2017 Q2 | P149: 2017 Q3 | S149: Made homelessness application to local authority | T149: 6624 | U149: 6761 | V149: 6203 | W149: 6535 | X149: 6478 | Y149: 5412 | Z149: 5521 | AA149: 6334 | AB149: 5367 | AC149: 4798
A150: LA/RSL Tenancy | B150: N | C150: 223 | D150: 405 | E150: 504 | F150: 482 | G150: 578 | H150: 544 | I150: 565 | J150: 586 | K150: 528 | L150: 812 | M150: 509 | N150: 513 | O150: 417 | P150: 424 | Q150: 7090 | S150: Remained in current accommodation | T150: 2606 | U150: 2834 | V150: 2705 | W150: 2736 | X150: 2613 | Y150: 2704 | Z150: 2376 | AA150: 3308 | AB150: 2832 | AC150: 2624
A151: PRS Tenancy | B151: N | C151: 267 | D151: 459 | E151: 415 | F151: 458 | G151: 489 | H151: 462 | I151: 468 | J151: 408 | K151: 459 | L151: 502 | M151: 395 | N151: 422 | O151: 402 | P151: 401 | Q151: 6007 | S151: Lost Contact/ Not known | T151: 1689 | U151: 1794 | V151: 2205 | W151: 1900 | X151: 2074 | Y151: 1906 | Z151: 1843 | AA151: 2961 | AB151: 4033 | AC151: 1671
A152: Other (known) | B152: N | C152: 458 | D152: 717 | E152: 656 | F152: 470 | G152: 515 | H152: 576 | I152: 439 | J152: 680 | K152: 545 | L152: 735 | M152: 715 | N152: 892 | O152: 682 | P152: 613 | Q152: 8693 | S152: Other (known) | T152: 515 | U152: 576 | V152: 439 | W152: 680 | X152: 545 | Y152: 735 | Z152: 715 | AA152: 892 | AB152: 682 | AC152: 613
A153: Moved-in with friends/ relatives | B153: N | C153: 185 | D153: 339 | E153: 292 | F153: 258 | G153: 246 | H153: 251 | I153: 302 | J153: 275 | K153: 267 | L153: 307 | M153: 232 | N153: 268 | O153: 258 | P153: 251 | Q153: 3731 | S153: LA/RSL Tenancy | T153: 578 | U153: 544 | V153: 565 | W153: 586 | X153: 528 | Y153: 812 | Z153: 509 | AA153: 513 | AB153: 417 | AC153: 424
A154: Lost Contact/ Not known | B154: N | C154: 1069 | D154: 2522 | E154: 2389 | F154: 1777 | G154: 1689 | H154: 1794 | I154: 2205 | J154: 1900 | K154: 2074 | L154: 1906 | M154: 1843 | N154: 2961 | O154: 4033 | P154: 1671 | Q154: 29833 | S154: PRS Tenancy | T154: 489 | U154: 462 | V154: 468 | W154: 408 | X154: 459 | Y154: 502 | Z154: 395 | AA154: 422 | AB154: 402 | AC154: 401
A155: Remained in current accommodation | B155: N | C155: 1649 | D155: 2608 | E155: 2963 | F155: 2717 | G155: 2606 | H155: 2834 | I155: 2705 | J155: 2736 | K155: 2613 | L155: 2704 | M155: 2376 | N155: 3308 | O155: 2832 | P155: 2624 | Q155: 37275 | S155: Moved-in with friends/ relatives | T155: 246 | U155: 251 | V155: 302 | W155: 275 | X155: 267 | Y155: 307 | Z155: 232 | AA155: 268 | AB155: 258 | AC155: 251
A156: Made homelessness application to local authority | B156: N | C156: 4984 | D156: 6730 | E156: 6106 | F156: 7235 | G156: 6624 | H156: 6761 | I156: 6203 | J156: 6535 | K156: 6478 | L156: 5412 | M156: 5521 | N156: 6334 | O156: 5367 | P156: 4798 | Q156: 85088 | S156: Total (ALL) | T156: 12747 | U156: 13222 | V156: 12887 | W156: 13120 | X156: 12964 | Y156: 12378 | Z156: 11591 | AA156: 14698 | AB156: 13991 | AC156: 10782
A157: Total (ALL) | B157: N | C157: 8835 | D157: 13780 | E157: 13325 | F157: 13397 | G157: 12747 | H157: 13222 | I157: 12887 | J157: 13120 | K157: 12964 | L157: 12378 | M157: 11591 | N157: 14698 | O157: 13991 | P157: 10782 | Q157: 177717
A158: Household is assigned to local authority of most recent approach
A159: Table 8: Outcomes by LA: during the last 6 months, 1 April 2017 to 30 Sept 2017
C160: LA/RSL Tenancy | D160: PRS Tenancy | E160: Other (known) | F160: Moved-in with friends/ relatives | G160: Lost Contact/ Not known | H160: Remained in current accommodation | I160: Made homelessness application to local authority | J160: All
A161: Aberdeen City | B161: N | C161: 182 | D161: 102 | E161: 113 | F161: 35 | G161: 2666 | H161: 971 | I161: 628 | J161: 4697
A162: Aberdeenshire | B162: N | C162: 20 | D162: 52 | E162: 20 | F162: 26 | G162: 271 | H162: 174 | I162: 264 | J162: 827
A163: Angus | B163: N | C163: 15 | D163: 18 | E163: 17 | F163: 1 | G163: 54 | H163: 179 | I163: 267 | J163: 551
A164: Argyll & Bute | B164: N | C164: 38 | D164: 30 | E164: 51 | F164: 9 | G164: 101 | H164: 413 | I164: 203 | J164: 845
A165: Clackmannanshire | B165: N | C165: 0 | D165: 0 | E165: 0 | F165: 1 | G165: 5 | H165: 9 | I165: 220 | J165: 235
A166: Dumfries & Galloway | B166: N | C166: 7 | D166: 6 | E166: 2 | F166: 2 | G166: 99 | H166: 39 | I166: 351 | J166: 506
A167: Dundee City | B167: N | C167: 33 | D167: 27 | E167: 33 | F167: 15 | G167: 143 | H167: 186 | I167: 263 | J167: 700
A168: East Ayrshire | B168: N | C168: 6 | D168: 3 | E168: 0 | F168: 5 | G168: 4 | H168: 16 | I168: 4 | J168: 38
A169: East Dunbartonshire | B169: N | C169: 1 | D169: 1 | E169: 2 | F169: 0 | G169: 26 | H169: 29 | I169: 95 | J169: 154
A170: East Lothian | B170: N | C170: 0 | D170: 2 | E170: 0 | F170: 2 | G170: 10 | H170: 7 | I170: 16 | J170: 37
A171: East Renfrewshire | B171: N | C171: 1 | D171: 5 | E171: 1 | F171: 1 | G171: 3 | H171: 16 | I171: 18 | J171: 45
A172: Edinburgh | B172: N | C172: 35 | D172: 38 | E172: 52 | F172: 51 | G172: 459 | H172: 447 | I172: 1327 | J172: 2409
A173: Eilean Siar | B173: N | C173: 1 | D173: 0 | E173: 0 | F173: 1 | G173: 0 | H173: 2 | I173: 1 | J173: 5
A174: Falkirk | B174: N | C174: 18 | D174: 3 | E174: 27 | F174: 25 | G174: 44 | H174: 124 | I174: 446 | J174: 687
A175: Fife | B175: N | C175: 53 | D175: 93 | E175: 41 | F175: 9 | G175: 191 | H175: 129 | I175: 402 | J175: 918
A176: Glasgow City | B176: N | C176: 32 | D176: 5 | E176: 381 | F176: 121 | G176: 656 | H176: 698 | I176: 2792 | J176: 4685
A177: Highland | B177: N | C177: 3 | D177: 10 | E177: 11 | F177: 11 | G177: 21 | H177: 44 | I177: 46 | J177: 146
A178: Inverclyde | B178: N | C178: 18 | D178: 19 | E178: 37 | F178: 27 | G178: 114 | H178: 98 | I178: 101 | J178: 414
A179: Midlothian | B179: N | C179: 4 | D179: 4 | E179: 2 | F179: 3 | G179: 5 | H179: 41 | I179: 5 | J179: 64
A180: Moray | B180: N | C180: 22 | D180: 40 | E180: 19 | F180: 46 | G180: 60 | H180: 128 | I180: 222 | J180: 537
A181: North Ayrshire | B181: N | C181: 75 | D181: 94 | E181: 50 | F181: 30 | G181: 30 | H181: 85 | I181: 480 | J181: 844
A182: North Lanarkshire | B182: N | C182: 51 | D182: 9 | E182: 34 | F182: 10 | G182: 48 | H182: 471 | I182: 138 | J182: 761
A183: Orkney | B183: N | C183: 1 | D183: 0 | E183: 0 | F183: 0 | G183: 3 | H183: 1 | I183: 6 | J183: 11
A184: Perth & Kinross | B184: N | C184: 38 | D184: 91 | E184: 258 | F184: 8 | G184: 217 | H184: 410 | I184: 435 | J184: 1457
A185: Renfrewshire | B185: N | C185: 42 | D185: 16 | E185: 78 | F185: 36 | G185: 117 | H185: 364 | I185: 442 | J185: 1095
A186: Scottish Borders | B186: N | C186: 35 | D186: 32 | E186: 16 | F186: 2 | G186: 112 | H186: 63 | I186: 178 | J186: 438
A187: Shetland | B187: N | C187: 11 | D187: 0 | E187: 2 | F187: 3 | G187: 22 | H187: 29 | I187: 52 | J187: 119
A188: South Ayrshire | B188: N | C188: 3 | D188: 0 | E188: 0 | F188: 0 | G188: 10 | H188: 4 | I188: 370 | J188: 387
A189: South Lanarkshire | B189: N | C189: 38 | D189: 76 | E189: 18 | F189: 13 | G189: 145 | H189: 84 | I189: 150 | J189: 524
A190: Stirling | B190: N | C190: 6 | D190: 9 | E190: 5 | F190: 6 | G190: 16 | H190: 77 | I190: 18 | J190: 137
A191: West Dunbartonshire | B191: N | C191: 23 | D191: 4 | E191: 4 | F191: 0 | G191: 19 | H191: 28 | I191: 21 | J191: 99
A192: West Lothian | B192: N | C192: 29 | D192: 14 | E192: 21 | F192: 10 | G192: 33 | H192: 90 | I192: 204 | J192: 401
A193: Total (ALL) | B193: N | C193: 841 | D193: 803 | E193: 1295 | F193: 509 | G193: 5704 | H193: 5456 | I193: 10165 | J193: 24773
A194: Household is assigned to local authority of most recent approach
A195: Table 9: Outcomes: Number of days from approach to case closure - for the last 6 months - BOXPLOT
B196: outcome_time
B197: P5 | C197: Q1 | D197: Median | E197: Q3 | F197: P95 | G197: N
A198: LA/RSL Tenancy | B198: 4 | C198: 40 | D198: 84 | E198: 156 | F198: 381 | G198: 841
A199: PRS Tenancy | B199: 6 | C199: 29 | D199: 60 | E199: 129 | F199: 374 | G199: 803
A200: Other (known) | B200: 0 | C200: 4 | D200: 33 | E200: 103 | F200: 371 | G200: 1295
... 311 more rows

Sheet all data - from 04-14 (hidden)
A1: Table 1: Total Housing Options approaches by LA and quarter
B2: Quarter of Approach
B3: 2014 Q2 | C3: 2014 Q3 | D3: 2014 Q4 | E3: 2015 Q1 | F3: 2015 Q2 | G3: 2015 Q3 | H3: 2015 Q4 | I3: 2016 Q1 | J3: 2016 Q2 | K3: 2016 Q3 | L3: 2016 Q4 | M3: 2017 Q1 | N3: 2017 Q2 | O3: 2017 Q3
B4: N | C4: N | D4: N | E4: N | F4: N | G4: N | H4: N | I4: N | J4: N | K4: N | L4: N | M4: N | N4: N | O4: N
A5: Aberdeen City | B5: 1167 | C5: 1595 | D5: 1617 | E5: 1908 | F5: 1708 | G5: 1582 | H5: 1332 | I5: 1516 | J5: 1416 | K5: 1398 | L5: 1024 | M5: 1345 | N5: 1218 | O5: 1003 | Q5: =SUM(B5:O5) -> 19829
A6: Aberdeenshire | B6: 573 | C6: 478 | D6: 422 | E6: 614 | F6: 558 | G6: 532 | H6: 437 | I6: 574 | J6: 479 | K6: 461 | L6: 391 | M6: 458 | N6: 406 | O6: 422 | Q6: =SUM(B6:O6) -> 6805
A7: Angus | B7: 273 | C7: 274 | D7: 238 | E7: 295 | F7: 261 | G7: 252 | H7: 178 | I7: 215 | J7: 292 | K7: 305 | L7: 191 | M7: 270 | N7: 181 | O7: 199 | Q7: 3424
A8: Argyll & Bute | B8: 129 | C8: 99 | D8: 261 | E8: 638 | F8: 579 | G8: 455 | H8: 401 | I8: 465 | J8: 436 | K8: 491 | L8: 374 | M8: 481 | N8: 518 | O8: 466 | Q8: 5793
A9: Clackmannanshire | B9: 31 | C9: 44 | D9: 29 | E9: 27 | F9: 13 | G9: 50 | H9: 28 | I9: 25 | J9: 123 | K9: 101 | L9: 88 | M9: 180 | N9: 150 | O9: 121 | Q9: 1010
A10: Dumfries & Galloway | B10: 237 | C10: 250 | D10: 193 | E10: 212 | F10: 231 | G10: 201 | H10: 192 | I10: 235 | J10: 220 | K10: 254 | L10: 203 | M10: 299 | N10: 237 | O10: 255 | Q10: 3219
A11: Dundee City | B11: 767 | C11: 787 | D11: 439 | E11: 478 | F11: 547 | G11: 552 | H11: 490 | I11: 617 | J11: 531 | K11: 501 | L11: 466 | M11: 656 | N11: 352 | O11: 238 | Q11: 7421
A12: East Ayrshire | B12: 63 | C12: 47 | D12: 21 | E12: 26 | F12: 7 | G12: 5 | H12: 1 | I12: 31 | J12: 15 | K12: 32 | L12: 23 | M12: 28 | N12: 20 | O12: 11 | Q12: 330
A13: East Dunbartonshire | B13: 33 | C13: 32 | D13: 33 | E13: 36 | F13: 34 | G13: 39 | H13: 25 | I13: 68 | J13: 58 | K13: 126 | L13: 88 | M13: 148 | N13: 107 | O13: 58 | Q13: 885
A14: East Lothian | B14: 124 | C14: 109 | D14: 64 | E14: 134 | F14: 89 | G14: 110 | H14: 91 | I14: 72 | J14: 53 | K14: 42 | L14: 52 | M14: 53 | N14: 23 | O14: 26 | Q14: 1042
A15: East Renfrewshire | B15: 38 | C15: 52 | D15: 47 | E15: 23 | F15: 44 | G15: 48 | H15: 44 | I15: 50 | J15: 54 | K15: 47 | L15: 39 | M15: 43 | N15: 35 | O15: 29 | Q15: 593
A16: Edinburgh | B16: 1940 | C16: 2106 | D16: 1960 | E16: 2168 | F16: 2044 | G16: 1928 | H16: 1783 | I16: 1844 | J16: 1761 | K16: 1602 | L16: 1468 | M16: 1595 | N16: 1466 | O16: 1274 | Q16: 24939
A17: Eilean Siar | B17: 6 | C17: 3 | D17: 2 | E17: 5 | F17: 2 | G17: 1 | H17: 3 | I17: 6 | J17: 2 | K17: 2 | L17: 2 | M17: 8 | N17: 1 | O17: 1 | Q17: 44
A18: Falkirk | B18: 567 | C18: 580 | D18: 433 | E18: 476 | F18: 441 | G18: 471 | H18: 397 | I18: 521 | J18: 485 | K18: 513 | L18: 448 | M18: 541 | N18: 504 | O18: 462 | Q18: 6839
A19: Fife | B19: 804 | C19: 832 | D19: 649 | E19: 904 | F19: 843 | G19: 716 | H19: 558 | I19: 696 | J19: 700 | K19: 691 | L19: 571 | M19: 737 | N19: 716 | O19: 588 | Q19: 10005
A20: Glasgow City | B20: 3686 | C20: 3212 | D20: 2845 | E20: 3326 | F20: 2113 | G20: 2719 | H20: 2385 | I20: 2891 | J20: 2527 | K20: 2521 | L20: 2085 | M20: 2592 | N20: 2484 | O20: 2363 | Q20: 37749
A21: Highland | B21: 492 | C21: 490 | D21: 346 | E21: 401 | F21: 464 | G21: 431 | H21: 328 | I21: 323 | J21: 161 | K21: 129 | L21: 75 | M21: 109 | N21: 78 | O21: 30 | Q21: 3857
A22: Inverclyde | B22: 226 | C22: 307 | D22: 216 | E22: 250 | F22: 240 | G22: 215 | H22: 204 | I22: 264 | J22: 234 | K22: 212 | L22: 224 | M22: 276 | N22: 222 | O22: 240 | Q22: 3330
A23: Midlothian | B23: 162 | C23: 129 | D23: 90 | E23: 125 | F23: 124 | G23: 89 | H23: 87 | I23: 113 | J23: 101 | K23: 109 | L23: 91 | M23: 88 | N23: 66 | O23: 75 | Q23: 1449
A24: Moray | B24: 323 | C24: 305 | D24: 270 | E24: 340 | F24: 316 | G24: 231 | H24: 227 | I24: 325 | J24: 257 | K24: 267 | L24: 242 | M24: 318 | N24: 278 | O24: 278 | Q24: 3977
A25: North Ayrshire | B25: 469 | C25: 482 | D25: 409 | E25: 565 | F25: 469 | G25: 480 | H25: 378 | I25: 468 | J25: 435 | K25: 379 | L25: 321 | M25: 434 | N25: 425 | O25: 435 | Q25: 6149
A26: North Lanarkshire | B26: 920 | C26: 873 | D26: 742 | E26: 995 | F26: 898 | G26: 923 | H26: 725 | I26: 873 | J26: 835 | K26: 828 | L26: 912 | M26: 631 | N26: 468 | O26: 443 | Q26: 11066
A27: Orkney | B27: 9 | C27: 17 | D27: 13 | E27: 14 | F27: 11 | G27: 18 | H27: 9 | I27: 22 | J27: 12 | K27: 12 | L27: 3 | M27: 4 | N27: 7 | O27: 6 | Q27: 157
A28: Perth & Kinross | B28: 565 | C28: 535 | D28: 487 | E28: 551 | F28: 458 | G28: 545 | H28: 433 | I28: 551 | J28: 577 | K28: 588 | L28: 526 | M28: 672 | N28: 633 | O28: 619 | Q28: 7740
A29: Renfrewshire | B29: 461 | C29: 520 | D29: 459 | E29: 550 | F29: 533 | G29: 520 | H29: 469 | I29: 584 | J29: 529 | K29: 542 | L29: 484 | M29: 562 | N29: 523 | O29: 491 | Q29: 7227
A30: Scottish Borders | B30: 277 | C30: 254 | D30: 202 | E30: 271 | F30: 259 | G30: 241 | H30: 162 | I30: 205 | J30: 209 | K30: 218 | L30: 166 | M30: 255 | N30: 189 | O30: 185 | Q30: 3093
A31: Shetland | B31: 99 | C31: 67 | D31: 74 | E31: 63 | F31: 42 | G31: 40 | H31: 43 | I31: 40 | J31: 51 | K31: 43 | L31: 56 | M31: 51 | N31: 47 | O31: 64 | Q31: 780
A32: South Ayrshire | B32: 242 | C32: 229 | D32: 247 | E32: 352 | F32: 367 | G32: 395 | H32: 357 | I32: 448 | J32: 310 | K32: 261 | L32: 223 | M32: 215 | N32: 256 | O32: 266 | Q32: 4168
A33: South Lanarkshire | B33: 346 | C33: 364 | D33: 253 | E33: 333 | F33: 262 | G33: 317 | H33: 236 | I33: 265 | J33: 226 | K33: 194 | L33: 173 | M33: 259 | N33: 225 | O33: 189 | Q33: 3642
A34: Stirling | B34: 202 | C34: 234 | D34: 157 | E34: 55 | F34: 100 | G34: 103 | H34: 78 | I34: 131 | J34: 103 | K34: 91 | L34: 52 | M34: 70 | N34: 91 | O34: 85 | Q34: 1552
A35: West Dunbartonshire | B35: 422 | C35: 465 | D35: 386 | E35: 384 | F35: 286 | G35: 45 | H35: 20 | I35: 34 | J35: 41 | K35: 58 | L35: 42 | M35: 56 | N35: 60 | O35: 54 | Q35: 2353
A36: West Lothian | B36: 372 | C36: 429 | D36: 316 | E36: 428 | F36: 329 | G36: 341 | H36: 274 | I36: 369 | J36: 335 | K36: 301 | L36: 254 | M36: 181 | N36: 224 | O36: 151 | Q36: 4304
A37: Scotland | B37: 16025 | C37: 16200 | D37: 13920 | E37: 16947 | F37: 14672 | G37: 14595 | H37: 12375 | I37: 14841 | J37: 13568 | K37: 13319 | L37: 11357 | M37: 13615 | N37: 12210 | O37: 11127 | Q37: 194771
A38: Household is assigned to local authority of most recent approach
A39: Table 1M: Total Housing Options approaches by LA and quarter
B40: approach_year
B41: 2014 | N41: 2015 | Z41: 2016 | AL41: 2017
B42: approach_month | N42: approach_month | Z42: approach_month | AL42: approach_month
B43: 1 | C43: 2 | D43: 3 | E43: 4 | F43: 5 | G43: 6 | H43: 7 | I43: 8 | J43: 9 | K43: 10 | L43: 11 | M43: 12 | N43: 1 | O43: 2 | P43: 3 | Q43: 4 | R43: 5 | S43: 6 | T43: 7 | U43: 8 | V43: 9 | W43: 10 | X43: 11 | Y43: 12 | Z43: 1 | AA43: 2 | AB43: 3 | AC43: 4 | AD43: 5 | AE43: 6 | AF43: 7 | AG43: 8 | AH43: 9 | AI43: 10 | AJ43: 11 | AK43: 12 | AL43: 1 | AM43: 2 | AN43: 3 | AO43: 4 | AP43: 5 | AQ43: 6 | AR43: 7 | AS43: 8 | AT43: 9 | AU43: 10 | AV43: 11 | AW43: 12
A44: Scotland | B44: 0 | C44: 0 | D44: 0 | E44: 5418 | F44: 5127 | G44: 5480 | H44: 5473 | I44: 5286 | J44: 5441 | K44: 5556 | L44: 4696 | M44: 3668 | N44: 5589 | O44: 5513 | P44: 5845 | Q44: 4900 | R44: 4798 | S44: 4974 | T44: 4734 | U44: 4994 | V44: 4867 | W44: 4715 | X44: 4438 | Y44: 3222 | Z44: 4774 | AA44: 4988 | AB44: 5079 | AC44: 4555 | AD44: 4408 | AE44: 4605 | AF44: 4054 | AG44: 4712 | AH44: 4553 | AI44: 4293 | AJ44: 4155 | AK44: 2909 | AL44: 4482 | AM44: 4303 | AN44: 4830 | AO44: 3768 | AP44: 4337 | AQ44: 4105 | AR44: 3771 | AS44: 4085 | AT44: 3271 | AU44: 0 | AV44: 0 | AW44: 0
A45: Household is assigned to local authority of most recent approach
A46: Table 3a: Reasons for Housing Options approaches by quarter
B47: Quarter of Approach
B48: 2014 Q2 | C48: 2014 Q3 | D48: 2014 Q4 | E48: 2015 Q1 | F48: 2015 Q2 | G48: 2015 Q3 | H48: 2015 Q4 | I48: 2016 Q1 | J48: 2016 Q2 | K48: 2016 Q3 | L48: 2016 Q4 | M48: 2017 Q1 | N48: 2017 Q2 | O48: 2017 Q3
B49: N | C49: N | D49: N | E49: N | F49: N | G49: N | H49: N | I49: N | J49: N | K49: N | L49: N | M49: N | N49: N | O49: N
A50: Termination of tenancy / mortgage due to rent arrears / default on payments | B50: 893 | C50: 872 | D50: 720 | E50: 905 | F50: 653 | G50: 576 | H50: 561 | I50: 627 | J50: 555 | K50: 458 | L50: 428 | M50: 574 | N50: 464 | O50: 405
A51: Other action by landlord resulting in the termination of the tenancy | B51: 1163 | C51: 1016 | D51: 828 | E51: 1207 | F51: 1042 | G51: 1041 | H51: 819 | I51: 1122 | J51: 1127 | K51: 972 | L51: 757 | M51: 1077 | N51: 951 | O51: 763
A52: Applicant terminated secure accommodation | B52: 168 | C52: 176 | D52: 159 | E52: 177 | F52: 148 | G52: 155 | H52: 131 | I52: 144 | J52: 112 | K52: 149 | L52: 115 | M52: 148 | N52: 135 | O52: 125
A53: Loss of service / tied accommodation | B53: 82 | C53: 82 | D53: 65 | E53: 71 | F53: 61 | G53: 64 | H53: 63 | I53: 59 | J53: 66 | K53: 49 | L53: 34 | M53: 49 | N53: 40 | O53: 57
A54: Discharge from prison / hospital / care / other institution | B54: 1150 | C54: 952 | D54: 719 | E54: 887 | F54: 674 | G54: 672 | H54: 523 | I54: 586 | J54: 609 | K54: 536 | L54: 546 | M54: 597 | N54: 568 | O54: 470
A55: Emergency (fire, flood, storm, closing order from Environmental Health etc.) | B55: 28 | C55: 50 | D55: 38 | E55: 46 | F55: 41 | G55: 34 | H55: 36 | I55: 45 | J55: 51 | K55: 27 | L55: 42 | M55: 31 | N55: 34 | O55: 22
A56: Forced division and sale of matrimonial home | B56: 71 | C56: 81 | D56: 62 | E56: 63 | F56: 69 | G56: 71 | H56: 45 | I56: 63 | J56: 56 | K56: 51 | L56: 37 | M56: 48 | N56: 44 | O56: 49
A57: Other reason for loss of accommodation | B57: 447 | C57: 395 | D57: 367 | E57: 466 | F57: 314 | G57: 347 | H57: 333 | I57: 408 | J57: 432 | K57: 372 | L57: 369 | M57: 407 | N57: 454 | O57: 373
A58: Dispute within household: violent or abusive | B58: 935 | C58: 1042 | D58: 823 | E58: 943 | F58: 836 | G58: 881 | H58: 780 | I58: 838 | J58: 816 | K58: 789 | L58: 708 | M58: 826 | N58: 785 | O58: 747
A59: Dispute within household / relationship breakdown: non-violent | B59: 2267 | C59: 2279 | D59: 1850 | E59: 2139 | F59: 1850 | G59: 1895 | H59: 1581 | I59: 1879 | J59: 1669 | K59: 1776 | L59: 1535 | M59: 1988 | N59: 1582 | O59: 1453
A60: Fleeing non-domestic violence | B60: 273 | C60: 260 | D60: 214 | E60: 206 | F60: 211 | G60: 215 | H60: 175 | I60: 173 | J60: 200 | K60: 131 | L60: 137 | M60: 158 | N60: 161 | O60: 153
A61: Harassment | B61: 256 | C61: 283 | D61: 206 | E61: 215 | F61: 227 | G61: 208 | H61: 153 | I61: 162 | J61: 180 | K61: 187 | L61: 145 | M61: 182 | N61: 156 | O61: 166
A62: Overcrowding | B62: 316 | C62: 311 | D62: 270 | E62: 346 | F62: 254 | G62: 237 | H62: 225 | I62: 256 | J62: 185 | K62: 194 | L62: 155 | M62: 201 | N62: 178 | O62: 146
A63: Asked to leave | B63: 2363 | C63: 2472 | D63: 2062 | E63: 2474 | F63: 2132 | G63: 2102 | H63: 1782 | I63: 2121 | J63: 1979 | K63: 1779 | L63: 1464 | M63: 1878 | N63: 1634 | O63: 1517
A64: Other reason for leaving accommodation / household | B64: 632 | C64: 673 | D64: 511 | E64: 558 | F64: 473 | G64: 543 | H64: 508 | I64: 505 | J64: 479 | K64: 554 | L64: 411 | M64: 501 | N64: 413 | O64: 434
A65: General housing options advice | B65: 1689 | C65: 1752 | D65: 1595 | E65: 2112 | F65: 1975 | G65: 2115 | H65: 1810 | I65: 2392 | J65: 2090 | K65: 2085 | L65: 1779 | M65: 2174 | N65: 2201 | O65: 2077
A66: Benefit issues & Welfare Reform | B66: 343 | C66: 216 | D66: 279 | E66: 332 | F66: 248 | G66: 157 | H66: 148 | I66: 183 | J66: 117 | K66: 215 | L66: 188 | M66: 132 | N66: 139 | O66: 127
A67: Property condition | B67: 140 | C67: 144 | D67: 146 | E67: 219 | F67: 136 | G67: 127 | H67: 139 | I67: 167 | J67: 104 | K67: 98 | L67: 95 | M67: 123 | N67: 74 | O67: 68
A68: Accommodation unsuitable | B68: 412 | C68: 558 | D68: 508 | E68: 587 | F68: 614 | G68: 619 | H68: 433 | I68: 531 | J68: 497 | K68: 639 | L68: 521 | M68: 633 | N68: 582 | O68: 416
A69: Household experiencing anti-social behaviour / neighbour problems | B69: 103 | C69: 108 | D69: 85 | E69: 76 | F69: 104 | G69: 104 | H69: 67 | I69: 94 | J69: 114 | K69: 106 | L69: 92 | M69: 100 | N69: 88 | O69: 93
A70: Other | B70: 544 | C70: 657 | D70: 659 | E70: 728 | F70: 735 | G70: 696 | H70: 586 | I70: 666 | J70: 499 | K70: 406 | L70: 243 | M70: 196 | N70: 190 | O70: 198
A71: Household member needing care | B71: 71 | C71: 148 | D71: 166 | E71: 209 | F71: 165 | G71: 182 | H71: 140 | I71: 182 | J71: 176 | K71: 170 | L71: 119 | M71: 62 | N71: 40 | O71: 37
A72: Personal issues – affordability / financial difficulties | B72: 365 | C72: 376 | D72: 334 | E72: 468 | F72: 388 | G72: 383 | H72: 297 | I72: 368 | J72: 360 | K72: 443 | L72: 479 | M72: 455 | N72: 323 | O72: 304
A73: Risk of losing accommodation | B73: 1266 | C73: 1242 | D73: 1212 | E73: 1463 | F73: 1274 | G73: 1126 | H73: 1006 | I73: 1227 | J73: 1062 | K73: 1103 | L73: 924 | M73: 1041 | N73: 949 | O73: 900
A74: Landlord issue | B74: 48 | C74: 55 | D74: 42 | E74: 50 | F74: 48 | G74: 45 | H74: 34 | I74: 43 | J74: 33 | K74: 30 | L74: 34 | M74: 34 | N74: 25 | O74: 27
A75: Scotland | B75: 16025 | C75: 16200 | D75: 13920 | E75: 16947 | F75: 14672 | G75: 14595 | H75: 12375 | I75: 14841 | J75: 13568 | K75: 13319 | L75: 11357 | M75: 13615 | N75: 12210 | O75: 11127
A76: Household is assigned to local authority of most recent approach
A77: Table 3b: Reasons for Housing Options approaches by quarter
B78: Quarter of Approach
B79: 2014 Q2 | C79: 2014 Q3 | D79: 2014 Q4 | E79: 2015 Q1 | F79: 2015 Q2 | G79: 2015 Q3 | H79: 2015 Q4 | I79: 2016 Q1 | J79: 2016 Q2 | K79: 2016 Q3 | L79: 2016 Q4 | M79: 2017 Q1 | N79: 2017 Q2 | O79: 2017 Q3
B80: N | C80: N | D80: N | E80: N | F80: N | G80: N | H80: N | I80: N | J80: N | K80: N | L80: N | M80: N | N80: N | O80: N
A81: Homelessness Type | B81: 11044 | C81: 10944 | D81: 8894 | E81: 10703 | F81: 8985 | G81: 9041 | H81: 7715 | I81: 8988 | J81: 8516 | K81: 8024 | L81: 6883 | M81: 8665 | N81: 7599 | O81: 6880
A82: Prevention Type | B82: 4981 | C82: 5256 | D82: 5026 | E82: 6244 | F82: 5687 | G82: 5554 | H82: 4660 | I82: 5853 | J82: 5052 | K82: 5295 | L82: 4474 | M82: 4950 | N82: 4611 | O82: 4247
A83: Scotland | B83: 16025 | C83: 16200 | D83: 13920 | E83: 16947 | F83: 14672 | G83: 14595 | H83: 12375 | I83: 14841 | J83: 13568 | K83: 13319 | L83: 11357 | M83: 13615 | N83: 12210 | O83: 11127
A84: Household is assigned to local authority of most recent approach
A85: Table 4: Maximum Type of Housing Options activities by quarter
C86: Quarter of Approach
C87: 2014 Q2 | D87: 2014 Q3 | E87: 2014 Q4 | F87: 2015 Q1 | G87: 2015 Q2 | H87: 2015 Q3 | I87: 2015 Q4 | J87: 2016 Q1 | K87: 2016 Q2 | L87: 2016 Q3 | M87: 2016 Q4 | N87: 2017 Q1 | O87: 2017 Q2 | P87: 2017 Q3
A88: 0 | B88: N | C88: . | D88: . | E88: 1 | F88: . | G88: . | H88: . | I88: . | J88: . | K88: . | L88: . | M88: . | N88: . | O88: . | P88: .
A89: 1 | B89: N | C89: 8108 | D89: 8850 | E89: 7882 | F89: 9471 | G89: 8291 | H89: 7935 | I89: 6665 | J89: 8133 | K89: 7428 | L89: 7072 | M89: 6127 | N89: 7466 | O89: 6965 | P89: 6355
A90: 2 | B90: N | C90: 7834 | D90: 7287 | E90: 5987 | F90: 7435 | G90: 6349 | H90: 6620 | I90: 5683 | J90: 6666 | K90: 6073 | L90: 6177 | M90: 5152 | N90: 6070 | O90: 5169 | P90: 4707
A91: 3 | B91: N | C91: 83 | D91: 63 | E91: 50 | F91: 41 | G91: 32 | H91: 40 | I91: 27 | J91: 42 | K91: 67 | L91: 70 | M91: 78 | N91: 79 | O91: 76 | P91: 65
A92: Total | B92: N | C92: 16025 | D92: 16200 | E92: 13920 | F92: 16947 | G92: 14672 | H92: 14595 | I92: 12375 | J92: 14841 | K92: 13568 | L92: 13319 | M92: 11357 | N92: 13615 | O92: 12210 | P92: 11127
A93: Household is assigned to local authority of most recent approach
A94: Table 5: Housing Options activities by quarter
C95: Quarter of Approach | Q95: All
C96: 2014 Q2 | D96: 2014 Q3 | E96: 2014 Q4 | F96: 2015 Q1 | G96: 2015 Q2 | H96: 2015 Q3 | I96: 2015 Q4 | J96: 2016 Q1 | K96: 2016 Q2 | L96: 2016 Q3 | M96: 2016 Q4 | N96: 2017 Q1 | O96: 2017 Q2 | P96: 2017 Q3
A97: Mediation/outreach work | B97: N | C97: 556 | D97: 667 | E97: 520 | F97: 644 | G97: 397 | H97: 393 | I97: 339 | J97: 440 | K97: 414 | L97: 475 | M97: 342 | N97: 416 | O97: 315 | P97: 252 | Q97: 6170
A98: Financial assistance/advice | B98: N | C98: 2438 | D98: 2830 | E98: 2380 | F98: 2705 | G98: 2439 | H98: 2474 | I98: 2059 | J98: 2147 | K98: 2007 | L98: 2193 | M98: 1822 | N98: 1814 | O98: 1593 | P98: 1357 | Q98: 30258
A99: Rent/repairs/referrals/negotiation with landlords | B99: N | C99: 2313 | D99: 2259 | E99: 1969 | F99: 2626 | G99: 2246 | H99: 2315 | I99: 1765 | J99: 1850 | K99: 1679 | L99: 1778 | M99: 1464 | N99: 1741 | O99: 1588 | P99: 1514 | Q99: 27107
A100: Help to remain in accommodation | B100: N | C100: 832 | D100: 902 | E100: 709 | F100: 801 | G100: 693 | H100: 774 | I100: 566 | J100: 732 | K100: 616 | L100: 736 | M100: 560 | N100: 564 | O100: 579 | P100: 417 | Q100: 9481
A101: Mortgage/home ownership advice | B101: N | C101: 160 | D101: 204 | E101: 115 | F101: 172 | G101: 164 | H101: 154 | I101: 99 | J101: 131 | K101: 97 | L101: 91 | M101: 68 | N101: 103 | O101: 86 | P101: 65 | Q101: 1709
A102: Tenancy/social care support/adaptations to property | B102: N | C102: 322 | D102: 342 | E102: 291 | F102: 410 | G102: 372 | H102: 340 | I102: 343 | J102: 419 | K102: 377 | L102: 342 | M102: 251 | N102: 343 | O102: 419 | P102: 382 | Q102: 4953
A103: Referral to health/Social Work/employment services | B103: N | C103: 960 | D103: 1026 | E103: 931 | F103: 913 | G103: 795 | H103: 958 | I103: 717 | J103: 836 | K103: 805 | L103: 882 | M103: 734 | N103: 825 | O103: 837 | P103: 760 | Q103: 11979
A104: Client informed of rights under homelessness legislation | B104: N | C104: 9131 | D104: 8526 | E104: 6697 | F104: 8674 | G104: 7814 | H104: 7839 | I104: 6827 | J104: 8103 | K104: 7466 | L104: 7110 | M104: 6138 | N104: 7739 | O104: 6806 | P104: 6294 | Q104: 105164
A105: General Housing advice/Tenancy rights advice | B105: N | C105: 12143 | D105: 12294 | E105: 10544 | F105: 13220 | G105: 12462 | H105: 12712 | I105: 10400 | J105: 12594 | K105: 11084 | L105: 10662 | M105: 8906 | N105: 10934 | O105: 9839 | P105: 8499 | Q105: 156293
A106: Help to move property | B106: N | C106: 1869 | D106: 2000 | E106: 1598 | F106: 1969 | G106: 1874 | H106: 2008 | I106: 1601 | J106: 2000 | K106: 2028 | L106: 2154 | M106: 1702 | N106: 2173 | O106: 1958 | P106: 1443 | Q106: 26377
A107: Other | B107: N | C107: 1437 | D107: 2236 | E107: 1619 | F107: 1610 | G107: 1611 | H107: 1642 | I107: 1393 | J107: 1696 | K107: 1546 | L107: 1686 | M107: 1437 | N107: 1455 | O107: 1113 | P107: 1414 | Q107: 21895
A108: Total (ALL) | B108: N | C108: 32161 | D108: 33286 | E108: 27373 | F108: 33744 | G108: 30867 | H108: 31609 | I108: 26109 | J108: 30948 | K108: 28119 | L108: 28109 | M108: 23424 | N108: 28107 | O108: 25133 | P108: 22397 | Q108: 401386
A109: Household is assigned to local authority of most recent approach
A110: Table 6: Housing Options activities by Local Authority, during 1 April 2014 to 30 Sept 2017
C111: ACTIVITY | N111: All
C112: Mediation/outreach work | D112: Financial assistance/advice | E112: Rent/repairs/referrals/negotiation with landlords | F112: Help to remain in accommodation | G112: Mortgage/home ownership advice | H112: Tenancy/social care support/adaptations to property | I112: Referral to health/Social Work/employment services | J112: Client informed of rights under homelessness legislation | K112: General Housing advice/Tenancy rights advice | L112: Help to move property | M112: Other
A113: Aberdeen City | B113: N | C113: 236 | D113: 545 | E113: 244 | F113: 554 | G113: 140 | H113: 43 | I113: 132 | J113: 4254 | K113: 12703 | L113: 2486 | M113: 0 | N113: 21337
A114: Aberdeenshire | B114: N | C114: 131 | D114: 1629 | E114: 1599 | F114: 165 | G114: 218 | H114: 19 | I114: 150 | J114: 5213 | K114: 7013 | L114: 269 | M114: 288 | N114: 16694
A115: Angus | B115: N | C115: 81 | D115: 2005 | E115: 507 | F115: 554 | G115: 81 | H115: 253 | I115: 93 | J115: 2433 | K115: 4054 | L115: 2419 | M115: 84 | N115: 12564
A116: Argyll & Bute | B116: N | C116: 49 | D116: 255 | E116: 534 | F116: 898 | G116: 2 | H116: 281 | I116: 37 | J116: 885 | K116: 3700 | L116: 346 | M116: 105 | N116: 7092
A117: Clackmannanshire | B117: N | C117: 7 | D117: 127 | E117: 234 | F117: 7 | G117: 1 | H117: 2 | I117: 13 | J117: 1261 | K117: 1026 | L117: 103 | M117: 8 | N117: 2789
A118: Dumfries & Galloway | B118: N | C118: 24 | D118: 340 | E118: 665 | F118: 138 | G118: 11 | H118: 396 | I118: 237 | J118: 2732 | K118: 3209 | L118: 850 | M118: 180 | N118: 8782
A119: Dundee City | B119: N | C119: 732 | D119: 319 | E119: 420 | F119: 262 | G119: 2 | H119: 16 | I119: 61 | J119: 8011 | K119: 6323 | L119: 902 | M119: 350 | N119: 17398
A120: East Ayrshire | B120: N | C120: 18 | D120: 549 | E120: 246 | F120: 47 | G120: 41 | H120: 111 | I120: 54 | J120: 240 | K120: 409 | L120: 55 | M120: 39 | N120: 1809
A121: East Dunbartonshire | B121: N | C121: 1 | D121: 525 | E121: 408 | F121: 47 | G121: 48 | H121: 7 | I121: 40 | J121: 672 | K121: 761 | L121: 649 | M121: 8 | N121: 3166
A122: East Lothian | B122: N | C122: 36 | D122: 389 | E122: 1149 | F122: 247 | G122: 38 | H122: 5 | I122: 7 | J122: 1060 | K122: 1602 | L122: 1507 | M122: 105 | N122: 6145
A123: East Renfrewshire | B123: N | C123: 12 | D123: 255 | E123: 293 | F123: 65 | G123: 50 | H123: 40 | I123: 43 | J123: 518 | K123: 424 | L123: 65 | M123: 4 | N123: 1769
A124: Edinburgh | B124: N | C124: 138 | D124: 1895 | E124: 311 | F124: 93 | G124: 20 | H124: 28 | I124: 297 | J124: 5775 | K124: 16008 | L124: 176 | M124: 327 | N124: 25068
A125: Eilean Siar | B125: N | C125: 2 | D125: 29 | E125: 24 | F125: 3 | G125: 1 | H125: 3 | I125: 5 | J125: 38 | K125: 23 | L125: 11 | M125: 2 | N125: 141
A126: Falkirk | B126: N | C126: 3272 | D126: 9673 | E126: 1058 | F126: 3894 | G126: 227 | H126: 665 | I126: 3596 | J126: 6952 | K126: 8934 | L126: 5293 | M126: 14540 | N126: 58104
A127: Fife | B127: N | C127: 177 | D127: 956 | E127: 3296 | F127: 210 | G127: 336 | H127: 148 | I127: 396 | J127: 8780 | K127: 11004 | L127: 2332 | M127: 350 | N127: 27985
A128: Glasgow City | B128: N | C128: 66 | D128: 751 | E128: 1142 | F128: 947 | G128: 16 | H128: 36 | I128: 5023 | J128: 14378 | K128: 16471 | L128: 487 | M128: 0 | N128: 39317
A129: Highland | B129: N | C129: 66 | D129: 960 | E129: 208 | F129: 122 | G129: 68 | H129: 79 | I129: 67 | J129: 3197 | K129: 3612 | L129: 240 | M129: 91 | N129: 8710
A130: Inverclyde | B130: N | C130: 33 | D130: 200 | E130: 695 | F130: 91 | G130: 5 | H130: 10 | I130: 74 | J130: 1786 | K130: 2235 | L130: 188 | M130: 523 | N130: 5840
A131: Midlothian | B131: N | C131: 275 | D131: 231 | E131: 176 | F131: 44 | G131: 32 | H131: 111 | I131: 94 | J131: 1288 | K131: 2391 | L131: 643 | M131: 1169 | N131: 6454
A132: Moray | B132: N | C132: 166 | D132: 784 | E132: 361 | F132: 69 | G132: 14 | H132: 118 | I132: 133 | J132: 3248 | K132: 4038 | L132: 566 | M132: 875 | N132: 10372
A133: North Ayrshire | B133: N | C133: 3 | D133: 412 | E133: 6121 | F133: 182 | G133: 81 | H133: 10 | I133: 73 | J133: 7219 | K133: 7857 | L133: 593 | M133: 132 | N133: 22683
A134: North Lanarkshire | B134: N | C134: 57 | D134: 2242 | E134: 917 | F134: 318 | G134: 54 | H134: 1432 | I134: 452 | J134: 3260 | K134: 14525 | L134: 585 | M134: 515 | N134: 24357
A135: Orkney | B135: N | C135: 2 | D135: 24 | E135: 40 | F135: 5 | G135: 6 | H135: 0 | I135: 1 | J135: 109 | K135: 196 | L135: 21 | M135: 5 | N135: 409
A136: Perth & Kinross | B136: N | C136: 87 | D136: 399 | E136: 1646 | F136: 43 | G136: 20 | H136: 28 | I136: 109 | J136: 2742 | K136: 4054 | L136: 126 | M136: 1008 | N136: 10262
A137: Renfrewshire | B137: N | C137: 409 | D137: 2111 | E137: 1018 | F137: 135 | G137: 27 | H137: 376 | I137: 437 | J137: 5350 | K137: 6279 | L137: 1634 | M137: 420 | N137: 18196
A138: Scottish Borders | B138: N | C138: 19 | D138: 431 | E138: 908 | F138: 57 | G138: 35 | H138: 420 | I138: 45 | J138: 2075 | K138: 2544 | L138: 1242 | M138: 113 | N138: 7889
A139: Shetland | B139: N | C139: 14 | D139: 21 | E139: 4 | F139: 4 | G139: 0 | H139: 0 | I139: 6 | J139: 708 | K139: 761 | L139: 8 | M139: 31 | N139: 1557
A140: South Ayrshire | B140: N | C140: 13 | D140: 70 | E140: 310 | F140: 27 | G140: 7 | H140: 294 | I140: 117 | J140: 1818 | K140: 2713 | L140: 251 | M140: 474 | N140: 6094
A141: South Lanarkshire | B141: N | C141: 7 | D141: 647 | E141: 930 | F141: 105 | G141: 55 | H141: 1 | I141: 20 | J141: 2659 | K141: 4081 | L141: 1552 | M141: 80 | N141: 10137
A142: Stirling | B142: N | C142: 1 | D142: 31 | E142: 111 | F142: 24 | G142: 3 | H142: 0 | I142: 8 | J142: 319 | K142: 1336 | L142: 65 | M142: 2 | N142: 1900
A143: West Dunbartonshire | B143: N | C143: 14 | D143: 167 | E143: 71 | F143: 34 | G143: 9 | H143: 2 | I143: 14 | J143: 1931 | K143: 849 | L143: 213 | M143: 25 | N143: 3329
A144: West Lothian | B144: N | C144: 22 | D144: 1286 | E144: 1461 | F144: 90 | G144: 61 | H144: 19 | I144: 145 | J144: 4253 | K144: 5158 | L144: 500 | M144: 42 | N144: 13037
A145: Scotland | B145: N | C145: 6170 | D145: 30258 | E145: 27107 | F145: 9481 | G145: 1709 | H145: 4953 | I145: 11979 | J145: 105164 | K145: 156293 | L145: 26377 | M145: 21895 | N145: 401386
A146: Household is assigned to local authority of most recent approach
A147: Table 7: Outcomes by Quarter
C148: Quarter of Outcome | Q148: All
C149: 2014 Q2 | D149: 2014 Q3 | E149: 2014 Q4 | F149: 2015 Q1 | G149: 2015 Q2 | H149: 2015 Q3 | I149: 2015 Q4 | J149: 2016 Q1 | K149: 2016 Q2 | L149: 2016 Q3 | M149: 2016 Q4 | N149: 2017 Q1 | O149: 2017 Q2 | P149: 2017 Q3
A150: LA/RSL Tenancy | B150: N | C150: 223 | D150: 405 | E150: 504 | F150: 482 | G150: 578 | H150: 544 | I150: 565 | J150: 586 | K150: 528 | L150: 812 | M150: 509 | N150: 513 | O150: 417 | P150: 424 | Q150: 7090
A151: PRS Tenancy | B151: N | C151: 267 | D151: 459 | E151: 415 | F151: 458 | G151: 489 | H151: 462 | I151: 468 | J151: 408 | K151: 459 | L151: 502 | M151: 395 | N151: 422 | O151: 402 | P151: 401 | Q151: 6007
A152: Other (known) | B152: N | C152: 458 | D152: 717 | E152: 656 | F152: 470 | G152: 515 | H152: 576 | I152: 439 | J152: 680 | K152: 545 | L152: 735 | M152: 715 | N152: 892 | O152: 682 | P152: 613 | Q152: 8693
A153: Moved-in with friends/ relatives | B153: N | C153: 185 | D153: 339 | E153: 292 | F153: 258 | G153: 246 | H153: 251 | I153: 302 | J153: 275 | K153: 267 | L153: 307 | M153: 232 | N153: 268 | O153: 258 | P153: 251 | Q153: 3731
A154: Lost Contact/ Not known | B154: N | C154: 1069 | D154: 2522 | E154: 2389 | F154: 1777 | G154: 1689 | H154: 1794 | I154: 2205 | J154: 1900 | K154: 2074 | L154: 1906 | M154: 1843 | N154: 2961 | O154: 4033 | P154: 1671 | Q154: 29833
A155: Remained in current accommodation | B155: N | C155: 1649 | D155: 2608 | E155: 2963 | F155: 2717 | G155: 2606 | H155: 2834 | I155: 2705 | J155: 2736 | K155: 2613 | L155: 2704 | M155: 2376 | N155: 3308 | O155: 2832 | P155: 2624 | Q155: 37275
A156: Made homelessness application to local authority | B156: N | C156: 4984 | D156: 6730 | E156: 6106 | F156: 7235 | G156: 6624 | H156: 6761 | I156: 6203 | J156: 6535 | K156: 6478 | L156: 5412 | M156: 5521 | N156: 6334 | O156: 5367 | P156: 4798 | Q156: 85088
A157: Total (ALL) | B157: N | C157: 8835 | D157: 13780 | E157: 13325 | F157: 13397 | G157: 12747 | H157: 13222 | I157: 12887 | J157: 13120 | K157: 12964 | L157: 12378 | M157: 11591 | N157: 14698 | O157: 13991 | P157: 10782 | Q157: 177717
A158: Household is assigned to local authority of most recent approach
A159: Table 8: Outcomes by LA: 1 April 2014 to 30 Sept 2017
C160: LA/RSL Tenancy | D160: PRS Tenancy | E160: Other (known) | F160: Moved-in with friends/ relatives | G160: Lost Contact/ Not known | H160: Remained in current accommodation | I160: Made homelessness application to local authority | J160: All
A161: Aberdeen City | B161: N | C161: 1358 | D161: 442 | E161: 1173 | F161: 187 | G161: 6424 | H161: 3624 | I161: 4895 | J161: 18103
A162: Aberdeenshire | B162: N | C162: 126 | D162: 304 | E162: 238 | F162: 224 | G162: 1649 | H162: 1540 | I162: 2505 | J162: 6586
A163: Angus | B163: N | C163: 99 | D163: 90 | E163: 136 | F163: 81 | G163: 267 | H163: 1060 | I163: 1609 | J163: 3342
A164: Argyll & Bute | B164: N | C164: 312 | D164: 294 | E164: 296 | F164: 143 | G164: 516 | H164: 2412 | I164: 1226 | J164: 5199
A165: Clackmannanshire | B165: N | C165: 23 | D165: 35 | E165: 6 | F165: 6 | G165: 57 | H165: 75 | I165: 688 | J165: 890
A166: Dumfries & Galloway | B166: N | C166: 102 | D166: 102 | E166: 39 | F166: 40 | G166: 580 | H166: 325 | I166: 2014 | J166: 3202
A167: Dundee City | B167: N | C167: 164 | D167: 191 | E167: 428 | F167: 83 | G167: 1877 | H167: 1273 | I167: 3336 | J167: 7352
A168: East Ayrshire | B168: N | C168: 91 | D168: 38 | E168: 6 | F168: 23 | G168: 15 | H168: 70 | I168: 65 | J168: 308
A169: East Dunbartonshire | B169: N | C169: 12 | D169: 36 | E169: 26 | F169: 6 | G169: 98 | H169: 220 | I169: 420 | J169: 818
A170: East Lothian | B170: N | C170: 9 | D170: 100 | E170: 21 | F170: 54 | G170: 131 | H170: 279 | I170: 399 | J170: 993
A171: East Renfrewshire | B171: N | C171: 14 | D171: 20 | E171: 17 | F171: 12 | G171: 63 | H171: 171 | I171: 192 | J171: 489
A172: Edinburgh | B172: N | C172: 733 | D172: 291 | E172: 362 | F172: 391 | G172: 3378 | H172: 5382 | I172: 10839 | J172: 21376
A173: Eilean Siar | B173: N | C173: 6 | D173: 2 | E173: 1 | F173: 1 | G173: 3 | H173: 10 | I173: 15 | J173: 38
A174: Falkirk | B174: N | C174: 283 | D174: 23 | E174: 279 | F174: 130 | G174: 935 | H174: 630 | I174: 4240 | J174: 6520
A175: Fife | B175: N | C175: 557 | D175: 649 | E175: 285 | F175: 76 | G175: 1405 | H175: 1302 | I175: 3697 | J175: 7971
A176: Glasgow City | B176: N | C176: 334 | D176: 71 | E176: 2456 | F176: 750 | G176: 5617 | H176: 5599 | I176: 22009 | J176: 36836
A177: Highland | B177: N | C177: 239 | D177: 287 | E177: 166 | F177: 180 | G177: 428 | H177: 729 | I177: 1701 | J177: 3730
A178: Inverclyde | B178: N | C178: 152 | D178: 147 | E178: 170 | F178: 139 | G178: 582 | H178: 816 | I178: 887 | J178: 2893
A179: Midlothian | B179: N | C179: 18 | D179: 41 | E179: 107 | F179: 52 | G179: 138 | H179: 262 | I179: 216 | J179: 834
A180: Moray | B180: N | C180: 160 | D180: 265 | E180: 105 | F180: 302 | G180: 379 | H180: 701 | I180: 1857 | J180: 3769
A181: North Ayrshire | B181: N | C181: 644 | D181: 913 | E181: 344 | F181: 132 | G181: 188 | H181: 620 | I181: 2730 | J181: 5571
A182: North Lanarkshire | B182: N | C182: 288 | D182: 30 | E182: 514 | F182: 97 | G182: 232 | H182: 2487 | I182: 4826 | J182: 8474
A183: Orkney | B183: N | C183: 13 | D183: 19 | E183: 6 | F183: 2 | G183: 51 | H183: 14 | I183: 43 | J183: 148
A184: Perth & Kinross | B184: N | C184: 172 | D184: 375 | E184: 615 | F184: 83 | G184: 1534 | H184: 1781 | I184: 2677 | J184: 7237
A185: Renfrewshire | B185: N | C185: 247 | D185: 85 | E185: 330 | F185: 204 | G185: 666 | H185: 2450 | I185: 2932 | J185: 6914
A186: Scottish Borders | B186: N | C186: 268 | D186: 268 | E186: 133 | F186: 41 | G186: 680 | H186: 405 | I186: 1217 | J186: 3012
A187: Shetland | B187: N | C187: 51 | D187: 10 | E187: 17 | F187: 16 | G187: 111 | H187: 79 | I187: 353 | J187: 637
A188: South Ayrshire | B188: N | C188: 134 | D188: 34 | E188: 32 | F188: 17 | G188: 306 | H188: 783 | I188: 2493 | J188: 3799
A189: South Lanarkshire | B189: N | C189: 202 | D189: 458 | E189: 216 | F189: 83 | G189: 624 | H189: 558 | I189: 958 | J189: 3099
A190: Stirling | B190: N | C190: 32 | D190: 61 | E190: 40 | F190: 68 | G190: 254 | H190: 440 | I190: 442 | J190: 1337
A191: West Dunbartonshire | B191: N | C191: 126 | D191: 36 | E191: 46 | F191: 11 | G191: 202 | H191: 326 | I191: 1515 | J191: 2262
A192: West Lothian | B192: N | C192: 121 | D192: 290 | E192: 83 | F192: 97 | G192: 443 | H192: 852 | I192: 2092 | J192: 3978
A193: Total (ALL) | B193: N | C193: 7090 | D193: 6007 | E193: 8693 | F193: 3731 | G193: 29833 | H193: 37275 | I193: 85088 | J193: 177717
A194: Household is assigned to local authority of most recent approach
A195: Table 9: Outcomes: Number of days from approach to case closure - for the most recent quarter - BOXPLOT
B196: outcome_time
B197: P5 | C197: Q1 | D197: Median | E197: Q3 | F197: P95 | G197: N
A198: LA/RSL Tenancy | B198: 0 | C198: 26 | D198: 68 | E198: 142 | F198: 390 | G198: 7090
A199: PRS Tenancy | B199: 1 | C199: 23 | D199: 50 | E199: 106 | F199: 329 | G199: 6007
A200: Other (known) | B200: 0 | C200: 3 | D200: 31 | E200: 99 | F200: 368 | G200: 8693
... 311 more rows
